Workbook

Sheet Data
A1: Date | B1: DecDate | C1: Day | D1: GeoAA | F1: Bin Notes | G1: Begin Bin | H1: 3.19-Center | I1: Bin Avr | J1: 28 Avr | K1: 1-9 BP | M1: 27-day Model | N1: Lag (yrs) | O1: 28.7 Model | P1: Lag (yrs) | Q1: Cycles | R1: Actual | S1: 27 Correl | U1: Bin Notes | V1: Begin Bin | W1: 9.56-Center | X1: Bin Avr | Y1: Inv Avr | Z1: 86 Avr | AA1: 86 BP | AC1: 1/2 Year | AD1: Theta | AE1: Lag (yrs) | AF1: Cycles | AG1: Correl | AI1: 86-day Model | AJ1: Lag (yrs) | AK1: Cycles | AL1: Correlations | AN1: Bin Notes | AO1: Begin Bin | AP1: 28-Center | AQ1: Bin Avr | AR1: 258 Avr | AS1: 258 BP | AU1: 258-day Model | AV1: Lag (yrs) | AW1: Cycles | AX1: Correlations | AZ1: Bin Notes | BA1: Begin Bin | BB1: 86-Center | BC1: Bin Avr | BD1: 2.12 Avr | BE1: 2.12 BP | BG1: 2.12-yr Model | BH1: Lag (yrs) | BI1: Cycles | BJ1: Correlations | BL1: Bin Notes | BM1: Begin Bin | BN1: 258-Center | BO1: Bin Avr | BP1: 6.36 Avr | BQ1: 6.36 BP | BS1: 6.36-yr Model | BT1: Lag (yrs) | BU1: Cycles | BV1: Correlations | BX1: Day of Year | BY1: Avr Geo AA | BZ1: 25-Day Smoothed
A2: 18680101 | B2: 1868.0027 | C2: =ROUND(365.25*(B2-INT(B2)),0) -> 1 | D2: 7.8 | F2: Δt | G2: =H2-(0.00873130763355885/2) -> 1867.798332 | H2: =1866.623971+(15*0.0785817687020297) -> 1867.802698 | M2: =SIN((2*PI()*(I2-2000+N2)/0.074195756) + 2.57488197) -> -0.9447886955 | N2: 0.0005 | O2: =SIN((2*PI()*(I2-2000+P2)/0.0785817687020297) + 3.39124283) -> 0.831650329 | P2: 0 | Q2: -4 | S2: =CORREL(K13661:K16244,M13665:M16248) -> -0.02240101521 | U2: Δt | V2: =W2-(0.0261939229006765/2) -> 1867.789601 | W2: =1866.623971+(15*0.0785817687020297) -> 1867.802698 | AC2: =SIN((2*PI()*(W2-2000+AE2)/0.5) + AD2) -> -0.6730877164 | AD2: 1.741 | AE2: 0 | AF2: -4 | AG2: =CORREL(Y15:Y5405,AC19:AC5409) -> 0.03881643304 | AI2: =SIN((2*PI()*(W2-2000+AJ2)/0.235745306106089) + 0.083216746) -> 0.8777133716 | AJ2: -0.01875 | AK2: -4 | AL2: =CORREL(AA4555:AA5413,AI4559:AI5417) -> -0.07295796371 | AN2: Δt | AO2: =AP2-(0.0785817687020297/2) -> 1867.056171 | AP2: =1866.623971+(6*0.0785817687020297) -> 1867.095462 | AU2: =SIN((2*PI()*(AP2-2000+AV2)/0.707235918318267) + 5.263726692) -> -0.9789662909 | AV2: -0.141 | AW2: -4 | AX2: =CORREL(AS17:AS1812,AU12:AU1807) -> -0.03466511478 | AZ2: Δt | BA2: =BB2-(0.235745306106089/2) -> 1866.977589 | BB2: =1866.623971+(6*0.0785817687020297) -> 1867.095462 | BG2: =SIN((2*PI()*(BB2-2000+BH2)/2.1217077549548) + 0.707378034) -> 0.5853035958 | BH2: -0.1522 | BI2: -4 | BJ2: =CORREL(BE10:BE603,BG5:BG598) -> -0.06332296375 | BL2: Δt | BM2: =BN2-(0.707235918318267/2) -> 1859.90523 | BN2: 1860.258848 | BS2: =SIN((2*PI()*(BN2-2000+BT2)/6.3651232648644) + 1.28299025) -> -0.05793033048 | BT2: -1.65 | BU2: -4 | BV2: =CORREL(BQ16:BQ209,BS11:BS204) -> -0.0539764264 | BX2: =BX3-1 -> 352
A3: 18680102 | B3: =B2 + (1/365.25) -> 1868.005438 | C3: =ROUND(365.25*(B3-INT(B3)),0) -> 2 | D3: 4.2 | F3: 3.19 day bins | G3: =G2+0.00873130763355885 -> 1867.807063 | H3: =H2+0.00873130763355885 -> 1867.811429 | M3: =SIN((2*PI()*(H3-2000+N3)/0.074195756) + 2.57488197) -> -0.9557750625 | N3: =N2 -> 0.0005 | O3: =SIN((2*PI()*(H3-2000+P3)/0.0785817687020297) + 3.39124283) -> 0.7660329499 | P3: =P2 -> 0 | Q3: -3 | S3: =CORREL(K13661:K16244,M13664:M16247) -> -0.01370250772 | U3: 9.56 day bins | V3: =V2+0.0261939229006765 -> 1867.815794 | W3: =W2+0.0261939229006765 -> 1867.828891 | AC3: =SIN((2*PI()*(W3-2000+AE3)/0.5) + AD3) -> -0.397887808 | AD3: =AD2 -> 1.741 | AE3: =AE2 -> 0 | AF3: -3 | AG3: =CORREL(Y15:Y5405,AC18:AC5408) -> 0.08468683773 | AI3: =SIN((2*PI()*(W3-2000+AJ3)/0.235745306106089) + 0.083216746) -> 0.9803822844 | AJ3: =AJ2 -> -0.01875 | AK3: -3 | AL3: =CORREL(AA4555:AA5413,AI4558:AI5416) -> -0.03879375957 | AN3: 28.68 day bins | AO3: =AO2+0.0785817687020297 -> 1867.134752 | AP3: =AP2+0.0785817687020297 -> 1867.174043 | AU3: =SIN((2*PI()*(AP3-2000+AV3)/0.707235918318267) + 5.263726692) -> -0.8810745399 | AV3: =AV2 -> -0.141 | AW3: -3 | AX3: =CORREL(AS17:AS1812,AU11:AU1806) -> -0.01862940559 | AZ3: 86.04 day bins | BA3: =BA2+0.235745306106089 -> 1867.213334 | BB3: =BB2+0.235745306106089 -> 1867.331207 | BG3: =SIN((2*PI()*(BB3-2000+BH3)/2.1217077549548) + 0.707378034) -> -0.07281276779 | BH3: =BH2 -> -0.1522 | BI3: -3 | BJ3: =CORREL(BE10:BE603,BG4:BG597) -> -0.03376813377 | BL3: 258 day bins | BM3: =BM2+0.707235918318267 -> 1860.612466 | BN3: =BN2+0.707235918318267 -> 1860.966084 | BS3: =SIN((2*PI()*(BN3-2000+BT3)/6.3651232648644) + 1.28299025) -> 0.5973309226 | BT3: =BT2 -> -1.65 | BU3: -3 | BV3: =CORREL(BQ16:BQ209,BS10:BS203) -> -0.02894577821 | BX3: 353 | BY3: =AVERAGEIFS(GeoAA,Day,">"&BX2,Day,"<="&BX3) -> 17.01338028
A4: 18680103 | B4: =B3 + (1/365.25) -> 1868.008176 | C4: =ROUND(365.25*(B4-INT(B4)),0) -> 3 | D4: 3.1 | G4: =G3+0.00873130763355885 -> 1867.815794 | H4: =H3+0.00873130763355885 -> 1867.82016 | M4: -0.5080186008 | N4: =N3 -> 0.0005 | O4: 0.1736305692 | P4: 0 | Q4: -2 | S4: =CORREL(K13661:K16244,M13663:M16246) -> 0.002150375459 | V4: =V3+0.0261939229006765 -> 1867.841988 | W4: 1867.855085 | AC4: -0.07996539963 | AD4: =AD3 -> 1.741 | AE4: 0 | AF4: -2 | AG4: =CORREL(Y15:Y5405,AC17:AC5407) -> 0.1214562285 | AI4: 0.6243194305 | AJ4: =AJ3 -> -0.01875 | AK4: -2 | AL4: =CORREL(AA4555:AA5413,AI4557:AI5415) -> 0.01351135512 | AO4: =AO3+0.0785817687020297 -> 1867.213334 | AP4: =AP3+0.0785817687020297 -> 1867.252625 | AU4: -0.3709182197 | AV4: =AV3 -> -0.141 | AW4: -2 | AX4: =CORREL(AS17:AS1812,AU10:AU1805) -> 0.006119248761 | BA4: =BA3+0.235745306106089 -> 1867.44908 | BB4: =BB3+0.235745306106089 -> 1867.566952 | BG4: -0.6968592281 | BH4: =BH3 -> -0.1522 | BI4: -2 | BJ4: =CORREL(BE10:BE603,BG3:BG596) -> 0.01154243694 | BM4: =BM3+0.707235918318267 -> 1861.319702 | BN4: =BN3+0.707235918318267 -> 1861.67332 | BS4: 0.9730943984 | BT4: =BT3 -> -1.65 | BU4: -2 | BV4: =CORREL(BQ16:BQ209,BS9:BS202) -> 0.0096834195 | BX4: 354 | BY4: =AVERAGEIFS(GeoAA,Day,">"&BX3,Day,"<="&BX4) -> 15.64014085
A5: 18680104 | B5: 1868.010914 | C5: =ROUND(365.25*(B5-INT(B5)),0) -> 4 | D5: 3.3 | G5: 1867.824526 | H5: 1867.828891 | M5: 0.205053364 | N5: 0.0005 | O5: -0.5000154845 | P5: 0 | Q5: -1 | S5: =CORREL(K13661:K16244,M13662:M16245) -> 0.016876051 | V5: 1867.868182 | W5: 1867.881279 | AC5: 0.2465431522 | AD5: 1.741 | AE5: 0 | AF5: -1 | AG5: =CORREL(Y15:Y5405,AC16:AC5406) -> 0.1451814282 | AI5: -0.02386942342 | AJ5: -0.01875 | AK5: -1 | AL5: =CORREL(AA4555:AA5413,AI4556:AI5414) -> 0.05942470883 | AO5: 1867.291916 | AP5: 1867.331207 | AU5: 0.3127948579 | AV5: -0.141 | AW5: -1 | AX5: =CORREL(AS17:AS1812,AU9:AU1804) -> 0.02799191207 | BA5: 1867.684825 | BB5: 1867.802698 | BG5: -0.9948375109 | BH5: -0.1522 | BI5: -1 | BJ5: =CORREL(BE10:BE603,BG2:BG595) -> 0.0515233921 | BM5: 1862.026938 | BN5: 1862.380556 | BS5: 0.8935361904 | BT5: -1.65 | BU5: -1 | BV5: =CORREL(BQ16:BQ209,BS8:BS201) -> 0.04381861209 | BX5: 355 | BY5: 18.08028169
A6: 18680105 | B6: 1868.013651 | C6: =ROUND(365.25*(B6-INT(B6)),0) -> 5 | D6: 8.7 | F6: Max Time | G6: 1867.833257 | H6: 1867.837623 | M6: 0.8110350837 | N6: 0.0005 | O6: -0.939698736 | P6: 0 | Q6: 0 | S6: =CORREL(K13661:K16244,M13661:M16244) -> 0.02279497046 | U6: Max Time | V6: 1867.894376 | W6: 1867.907473 | AC6: 0.5465795689 | AD6: 1.741 | AE6: 0 | AF6: 0 | AG6: =CORREL(Y15:Y5405,AC15:AC5405) -> 0.1533225883 | AI6: -0.6608895088 | AJ6: -0.01875 | AK6: 0 | AL6: =CORREL(AA4555:AA5413,AI4555:AI5413) -> 0.07761328666 | AN6: Max Time | AO6: 1867.370498 | AP6: 1867.409789 | AU6: 0.8501477451 | AV6: -0.141 | AW6: 0 | AX6: =CORREL(AS17:AS1812,AU17:AU1812) -> 0.03678353027 | AZ6: Max Time | BA6: 1867.92057 | BB6: 1868.038443 | BC6: =AVERAGEIFS(GeoAA,DecDate,">"&BA6,DecDate,"<="&BA7) -> 13.25789474 | BG6: -0.8273202659 | BH6: -0.1522 | BI6: 0 | BJ6: =CORREL(BE10:BE603,BG10:BG603) -> 0.06736952921 | BL6: Max Time | BM6: 1862.734174 | BN6: 1863.087792 | BS6: 0.3958824684 | BT6: -1.65 | BU6: 0 | BV6: =CORREL(BQ16:BQ209,BS16:BS209) -> 0.05735902955 | BX6: 356 | BY6: 17.16126761
A7: 18680106 | B7: 1868.016389 | C7: 6 | D7: 14.1 | F7: =MAX(H2:H10000) -> 1955.098311 | G7: 1867.841988 | H7: 1867.846354 | M7: 0.9934492787 | N7: 0.0005 | O7: -0.9396865053 | P7: 0 | Q7: 1 | S7: =CORREL(K13661:K16244,M13660:M16243) -> 0.0168049864 | U7: =MAX(W2:W10000) -> 2009.695178 | V7: 1867.92057 | W7: 1867.933667 | AC7: 0.7879279705 | AD7: 1.741 | AE7: 0 | AF7: 1 | AG7: =CORREL(Y15:Y5405,AC14:AC5404) -> 0.1450090723 | AI7: -0.9886720481 | AJ7: -0.01875 | AK7: 1 | AL7: =CORREL(AA4555:AA5413,AI4554:AI5412) -> 0.05947475613 | AN7: =MAX(AP2:AP10000) -> 2010.114281 | AO7: 1867.44908 | AP7: 1867.48837 | AU7: 0.989707054 | AV7: -0.141 | AW7: 1 | AX7: =CORREL(AS17:AS1812,AU16:AU1811) -> 0.02835977652 | AZ7: =MAX(BB2:BB10000) -> 2011.607334 | BA7: 1868.156315 | BB7: 1868.274188 | BC7: 18.20116279 | BG7: -0.2726906739 | BH7: -0.1522 | BI7: 1 | BJ7: =CORREL(BE10:BE603,BG9:BG602) -> 0.05164793979 | BL7: =MAX(BN2:BN10000) -> 2014.436278 | BM7: 1863.44141 | BN7: 1863.795028 | BS7: -0.2870090603 | BT7: -1.65 | BU7: 1 | BV7: =CORREL(BQ16:BQ209,BS15:BS208) -> 0.04411516703 | BX7: 357 | BY7: 15.87042254
A8: 18680107 | B8: 1868.019127 | C8: 7 | D8: 7.2 | G8: 1867.85072 | H8: 1867.855085 | M8: 0.6570291342 | N8: 0.0005 | O8: -0.4999845153 | P8: 0 | Q8: 2 | S8: =CORREL(K13661:K16244,M13659:M16242) -> 0.00203660324 | V8: 1867.946764 | W8: 1867.959861 | AC8: 0.9446739992 | AD8: 1.741 | AE8: 0 | AF8: 2 | AG8: =CORREL(Y15:Y5405,AC13:AC5403) -> 0.1211297916 | AI8: -0.8538439482 | AJ8: -0.01875 | AK8: 2 | AL8: =CORREL(AA4555:AA5413,AI4553:AI5411) -> 0.0134375422 | AO8: 1867.527661 | AP8: 1867.566952 | AU8: 0.666171433 | AV8: -0.141 | AW8: 2 | AX8: =CORREL(AS17:AS1812,AU15:AU1810) -> 0.006653430653 | BA8: 1868.392061 | BB8: 1868.509933 | BC8: 19.82209302 | BG8: 0.4095339151 | BH8: -0.1522 | BI8: 2 | BJ8: =CORREL(BE10:BE603,BG8:BG601) -> 0.01183091836 | BM8: 1864.148646 | BN8: 1864.502264 | BS8: -0.83560586 | BT8: -1.65 | BU8: 2 | BV8: =CORREL(BQ16:BQ209,BS14:BS207) -> 0.01026620939 | BX8: 358 | BY8: 15.72042254
A9: 18680108 | B9: 1868.021865 | C9: 8 | D9: 8.8 | F9: Observations | G9: 1867.859451 | H9: 1867.863817 | M9: -0.02252808249 | N9: 0.0005 | O9: 0.1736657861 | P9: 0 | Q9: 3 | S9: =CORREL(K13661:K16244,M13658:M16241) -> -0.01378900714 | U9: Observations | V9: 1867.972958 | W9: 1867.986055 | AC9: 0.999987327 | AD9: 1.741 | AE9: 0 | AF9: 3 | AG9: =CORREL(Y15:Y5405,AC12:AC5402) -> 0.08424111532 | AI9: -0.3194927755 | AJ9: -0.01875 | AK9: 3 | AL9: =CORREL(AA4555:AA5413,AI4552:AI5410) -> -0.03880641694 | AN9: Observations | AO9: 1867.606243 | AP9: 1867.645534 | AU9: 0.03092679485 | AV9: -0.141 | AW9: 3 | AX9: =CORREL(AS17:AS1812,AU14:AU1809) -> -0.01814943854 | AZ9: Observations | BA9: 1868.627806 | BB9: 1868.745679 | BC9: 22.3255814 | BG9: 0.9001330337 | BH9: -0.1522 | BI9: 3 | BJ9: =CORREL(BE10:BE603,BG7:BG600) -> -0.03354832959 | BL9: Observations | BM9: 1864.855881 | BN9: 1865.209499 | BS9: -0.993213391 | BT9: -1.65 | BU9: 3 | BV9: =CORREL(BQ16:BQ209,BS13:BS206) -> -0.02847795648 | BX9: 359 | BY9: 17.58943662
A10: 18680109 | B10: 1868.024603 | C10: 9 | D10: 7.2 | F10: =COUNT(I2:I10000) -> 9976 | G10: 1867.868182 | H10: 1867.872548 | M10: =SIN((2*PI()*(H10-2000+N10)/0.074195756) + 2.57488197) -> -0.6903198845 | N10: =N9 -> 0.0005 | O10: =SIN((2*PI()*(H10-2000+P10)/0.0785817687020297) + 3.39124283) -> 0.7660559361 | P10: =P9 -> 0 | Q10: 4 | S10: =CORREL(K13661:K16244,M13657:M16240) -> -0.02241904959 | U10: =COUNT(X2:X10000) -> 5406 | V10: 1867.999152 | W10: 1868.012249 | X10: =AVERAGEIFS(GeoAA,DecDate,">"&V10,DecDate,"<="&V11) -> 7.155555556 | Y10: =-X10 -> -7.155555556 | AC10: 0.9479287833 | AD10: 1.741 | AE10: 0 | AF10: 4 | AG10: =CORREL(Y15:Y5405,AC11:AC5401) -> 0.03829923419 | AI10: 0.3643526176 | AJ10: -0.01875 | AK10: 4 | AL10: =CORREL(AA4555:AA5413,AI4551:AI5409) -> -0.07290350871 | AN10: =COUNT(AQ2:AQ10000) -> 1802 | AO10: 1867.684825 | AP10: 1867.724116 | AU10: -0.6187888344 | AV10: -0.141 | AW10: 4 | AX10: =CORREL(AS17:AS1812,AU13:AU1808) -> -0.03446393936 | AZ10: =COUNT(BC2:BC10000) -> 601 | BA10: 1868.863551 | BB10: 1868.981424 | BC10: 17.50465116 | BD10: =AVERAGE(BC6:BC14) -> 19.48834489 | BE10: =BC10-BD10 -> -1.98369373 | BG10: 0.969549902 | BH10: -0.1522 | BI10: 4 | BJ10: =CORREL(BE10:BE603,BG6:BG599) -> -0.06327478927 | BL10: =COUNT(BO2:BO10000) -> 201 | BM10: 1865.563117 | BN10: 1865.916735 | BS10: -0.6860853381 | BT10: -1.65 | BU10: 4 | BV10: =CORREL(BQ16:BQ209,BS12:BS205) -> -0.05384227646 | BX10: 360 | BY10: 16.78380282
A11: 18680110 | B11: 1868.027341 | C11: 10 | D11: 2.7 | G11: 1867.876914 | H11: 1867.881279 | M11: -0.9975883372 | N11: 0.0005 | O11: 0.9999999998 | P11: 0 | V11: 1868.025346 | W11: 1868.038443 | X11: 9.966666667 | Y11: =-X11 -> -9.966666667 | AC11: 0.7940880622 | AD11: 1.741 | AE11: 0 | AG11: Semi-Annual | AI11: 0.8777133716 | AJ11: -0.01875 | AO11: 1867.763407 | AP11: 1867.802698 | AU11: =SIN((2*PI()*(AP11-2000+AV11)/0.707235918318267) + 5.263726692) -> -0.9789662909 | AV11: =AV10 -> -0.141 | BA11: 1869.099297 | BB11: 1869.217169 | BC11: 24.01046512 | BD11: 20.41039235 | BE11: 3.600072767 | BG11: =SIN((2*PI()*(BB11-2000+BH11)/2.1217077549548) + 0.707378034) -> 0.5853035958 | BH11: =BH10 -> -0.1522 | BM11: 1866.270353 | BN11: 1866.623971 | BS11: =SIN((2*PI()*(BN11-2000+BT11)/6.3651232648644) + 1.28299025) -> -0.05793033048 | BT11: =BT10 -> -1.65 | BX11: 361 | BY11: 17.70633803
A12: 18680111 | B12: 1868.030079 | C12: 11 | D12: 10.5 | F12: BP Observ | G12: 1867.885645 | H12: 1867.890011 | M12: -0.7838608044 | N12: 0.0005 | O12: 0.7660329499 | P12: 0 | S12: 1987 to 2009 | U12: BP Observ | V12: 1868.05154 | W12: 1868.064637 | X12: 15.37 | Y12: -15.37 | AC12: 0.5549835391 | AD12: 1.741 | AE12: 0 | AG12: Geo Cycle | AI12: 0.9803822844 | AJ12: -0.01875 | AL12: 95 cycles | AN12: BP Observ | AO12: 1867.841988 | AP12: 1867.881279 | AU12: -0.8810745399 | AV12: -0.141 | AX12: 200 cycles | AZ12: BP Observ | BA12: 1869.335042 | BB12: 1869.452915 | BC12: 20.55930233 | BD12: 20.57615462 | BE12: -0.01685229737 | BG12: -0.07281276779 | BH12: -0.1522 | BJ12: 66 cycles | BL12: BP Observ | BM12: 1866.977589 | BN12: 1867.331207 | BS12: 0.5973309226 | BT12: -1.65 | BV12: 21 cycles | BX12: 362 | BY12: 17.46478873
A13: 18680112 | B13: 1868.032816 | C13: 12 | D13: 10.2 | F13: =COUNT(K2:K10000) -> 9972 | G13: 1867.894376 | H13: 1867.898742 | M13: -0.1607576634 | N13: 0.0005 | O13: 0.1736305692 | P13: 0 | S13: 287 cycles | U13: =COUNT(AA2:AA10000) -> 5398 | V13: 1868.077734 | W13: 1868.090831 | X13: 13.66666667 | Y13: -13.66666667 | AC13: 0.2562886395 | AD13: 1.741 | AE13: 0 | AI13: =SIN((2*PI()*(W13-2000+AJ13)/0.235745306106089) + 0.083216746) -> 0.6243194305 | AJ13: =AJ12 -> -0.01875 | AL13: 90% | AN13: =COUNT(AS2:AS10000) -> 1794 | AO13: 1867.92057 | AP13: 1867.959861 | AU13: -0.3709182197 | AV13: -0.141 | AX13: 70% | AZ13: =COUNT(BE2:BE10000) -> 593 | BA13: 1869.570787 | BB13: 1869.68866 | BC13: 21.41046512 | BD13: 21.03468175 | BE13: 0.3757833615 | BG13: -0.6968592281 | BH13: -0.1522 | BJ13: 75% | BL13: =COUNT(BQ2:BQ10000) -> 193 | BM13: 1867.684825 | BN13: 1868.038443 | BO13: =AVERAGEIFS(GeoAA,DecDate,">"&BM13,DecDate,"<="&BM14) -> 16.23076923 | BS13: 0.9730943984 | BT13: -1.65 | BV13: 30% | BX13: 363 | BY13: 17.12394366
A14: 18680113 | B14: 1868.035554 | C14: 13 | D14: 13.1 | G14: 1867.903108 | H14: 1867.907473 | M14: 0.5463020498 | N14: 0.0005 | O14: -0.5000154845 | P14: 0 | S14: ?% | V14: 1868.103928 | W14: 1868.117025 | X14: 12.32 | Y14: -12.32 | Z14: =AVERAGE(X10:X18) -> 15.45345679 | AA14: =X14-Z14 -> -3.13345679 | AC14: -0.06992479971 | AD14: 1.741 | AE14: 0 | AG14: 284 cycles | AI14: -0.0238694234 | AJ14: -0.01875 | AO14: 1867.999152 | AP14: 1868.038443 | AQ14: =AVERAGEIFS(GeoAA,DecDate,">"&AO14,DecDate,"<="&AO15) -> 10.99285714 | AU14: 0.3127948579 | AV14: -0.141 | BA14: 1869.806533 | BB14: 1869.924405 | BC14: 18.30348837 | BD14: 21.15935876 | BE14: -2.855870385 | BG14: -0.9948375109 | BH14: -0.1522 | BM14: 1868.392061 | BN14: 1868.745679 | BO14: 19.88410853 | BS14: 0.8935361904 | BT14: -1.65 | BX14: =BX15-1 -> 364 | BY14: 16.90774648 | BZ14: =AVERAGE(BY2:BY26) -> 17.41523629
A15: 18680114 | B15: 1868.038292 | C15: 14 | D15: 6 | G15: 1867.911839 | H15: 1867.916205 | M15: 0.9680525185 | N15: 0.0005 | O15: 0.8988222295 | P15: -0.0406 | V15: 1868.130122 | W15: 1868.143219 | X15: 20.17 | Y15: -20.17 | Z15: 17.19061728 | AA15: 2.979382716 | AC15: -0.3886301872 | AD15: 1.741 | AE15: 0 | AG15: 99.9% | AI15: -0.6608895088 | AJ15: -0.01875 | AL15: Cells | AO15: 1868.077734 | AP15: 1868.117025 | AQ15: 15.44482759 | AU15: 0.8501477451 | AV15: -0.141 | AX15: Cells | BA15: 1870.042278 | BB15: 1870.160151 | BC15: 21.55632184 | BD15: 21.4545784 | BE15: 0.1017434435 | BG15: -0.8273202659 | BH15: -0.1522 | BJ15: Cells | BM15: 1869.099297 | BN15: 1869.452915 | BO15: 21.99341085 | BS15: 0.3958824684 | BT15: -1.65 | BV15: Cells | BX15: 365 | BY15: 17.88691589 | BZ15: =AVERAGE(BY3:BY27) -> 17.40922824
A16: 18680115 | B16: 1868.04103 | C16: 15 | D16: 6.7 | G16: 1867.92057 | H16: 1867.924936 | M16: 0.8842322451 | N16: 0.0005 | O16: 0.9702801699 | P16: -0.0406 | S16: 1868 to 1899 | V16: 1868.156315 | W16: 1868.169412 | X16: 15.72222222 | Y16: -15.72222222 | Z16: 16.9708642 | AA16: -1.248641975 | AC16: -0.6656070952 | AD16: 1.741 | AE16: 0 | AI16: -0.9886720481 | AJ16: -0.01875 | AL16: 4553 to 5411 | AO16: 1868.156315 | AP16: 1868.195606 | AQ16: 19.72857143 | AU16: 0.989707054 | AV16: -0.141 | AX16: 17 to 1812 | BA16: 1870.278023 | BB16: 1870.395896 | BC16: 19.69302326 | BD16: 21.32783421 | BE16: -1.634810954 | BG16: -0.2726906739 | BH16: -0.1522 | BJ16: 10 to 602 | BM16: 1869.806533 | BN16: 1870.160151 | BO16: 19.85752896 | BS16: -0.2870090603 | BT16: -1.65 | BV16: 17 to 209 | BX16: 1 | BY16: =AVERAGEIFS(GeoAA,Day,">0",Day,"<="&BX16) -> 17.71608392 | BZ16: 17.41912659
A17: 18680116 | B17: 1868.043768 | C17: 16 | D17: 16.1 | G17: 1867.929301 | H17: 1867.933667 | M17: 0.3386168276 | N17: 0.0005 | O17: 0.5877332354 | P17: -0.0406 | Q17: Cycles | R17: Actual | S17: 28.7 Correl | V17: 1868.182509 | W17: 1868.195606 | X17: 8.51 | Y17: -8.51 | Z17: 18.13975309 | AA17: -9.629753086 | AC17: -0.8711156181 | AD17: 1.741 | AE17: 0 | AI17: -0.8538439482 | AJ17: -0.01875 | AO17: 1868.234897 | AP17: 1868.274188 | AQ17: 19.26551724 | AU17: 0.666171433 | AV17: -0.141 | BA17: 1870.513769 | BB17: 1870.631641 | BC17: 23.94883721 | BD17: =AVERAGE(BC13:BC21) -> 21.48519855 | BE17: =BC17-BD17 -> 2.463638659 | BG17: 0.4095339151 | BH17: -0.1522 | BM17: 1870.513769 | BN17: 1870.867387 | BO17: 22.51937984 | BP17: =AVERAGE(BO13:BO21) -> 20.8409457 | BQ17: =BO17-BP17 -> 1.678434146 | BS17: -0.83560586 | BT17: -1.65 | BX17: =BX16+1 -> 2 | BY17: =AVERAGEIFS(GeoAA,Day,">"&BX16,Day,"<="&BX17) -> 18.00629371 | BZ17: 17.45936711
A18: 18680117 | B18: 1868.046506 | C18: 17 | D18: 10.6 | G18: 1867.938033 | H18: 1867.942398 | M18: -0.383843087 | N18: 0.0005 | O18: -0.06982061193 | P18: -0.0406 | Q18: -4 | R18: -0.031 | S18: =CORREL(K29:K3689,O33:O3693) -> -0.02422195473 | V18: 1868.208703 | W18: 1868.2218 | X18: 36.2 | Y18: -36.2 | Z18: 18.70679012 | AA18: 17.49320988 | AC18: -0.9830896413 | AD18: 1.741 | AE18: 0 | AI18: -0.3194927755 | AJ18: -0.01875 | AL18: from 1987.011 | AO18: 1868.313479 | AP18: 1868.35277 | AQ18: 15.66206897 | AR18: =AVERAGE(AQ14:AQ22) -> 17.67998084 | AS18: =AQ18-AR18 -> -2.017911877 | AU18: 0.03092679486 | AV18: -0.141 | AX18: from 1868.353 | BA18: 1870.749514 | BB18: 1870.867387 | BC18: 23.44767442 | BD18: 21.46814429 | BE18: =BC18-BD18 -> 1.979530132 | BG18: 0.9001330337 | BH18: -0.1522 | BJ18: from 1868.981 | BM18: 1871.221005 | BN18: 1871.574623 | BO18: 22.03410853 | BP18: 20.66695633 | BQ18: =BO18-BP18 -> 1.367152202 | BS18: -0.993213391 | BT18: -1.65 | BV18: from 1870.867 | BX18: =BX17+1 -> 3 | BY18: 20.78251748 | BZ18: 17.48569431
A19: 18680118 | B19: 1868.049243 | C19: 18 | D19: 13.8 | G19: 1867.946764 | H19: 1867.95113 | M19: -0.9058388423 | N19: 0.0005 | O19: -0.6947046189 | P19: -0.0406 | Q19: -3 | R19: -0.017 | S19: =CORREL(K29:K3689,O32:O3692) -> -0.01004085361 | V19: 1868.234897 | W19: 1868.247994 | X19: 22.79 | Y19: -22.79 | Z19: 18.86135802 | AA19: 3.928641975 | AC19: -0.989506152 | AD19: 1.741 | AE19: 0 | AI19: 0.3643526176 | AJ19: -0.01875 | AL19: to 2009.486 | AO19: 1868.392061 | AP19: 1868.431352 | AQ19: 19.75357143 | AR19: 19.32442529 | AS19: 0.4291461412 | AU19: -0.6187888343 | AV19: -0.141 | AX19: to 2009.250 | BA19: 1870.985259 | BB19: 1871.103132 | BC19: 20.16162791 | BD19: 21.72744661 | BE19: -1.565818706 | BG19: 0.969549902 | BH19: -0.1522 | BJ19: to 2008.543 | BM19: 1871.928241 | BN19: 1872.281859 | BO19: 22.00501931 | BP19: 19.87905796 | BQ19: 2.125961343 | BS19: -0.6860853381 | BT19: -1.65 | BV19: to 2006.657 | BX19: 4 | BY19: 19.91188811 | BZ19: 17.55236248
A20: 18680119 | B20: 1868.051981 | C20: 19 | D20: 4.6 | G20: 1867.955495 | H20: 1867.959861 | M20: -0.9547552894 | N20: 0.0005 | O20: -0.994528614 | P20: -0.0406 | Q20: -2 | R20: 0.006 | S20: =CORREL(K29:K3689,O31:O3691) -> 0.008822159168 | V20: 1868.261091 | W20: 1868.274188 | X20: 7.988888889 | Y20: -7.988888889 | Z20: 18.21024691 | AA20: -10.22135802 | AC20: =SIN((2*PI()*(W20-2000+AE20)/0.5) + AD20) -> -0.8896761889 | AD20: =AD19 -> 1.741 | AE20: 0 | AI20: 0.8777133716 | AJ20: -0.01875 | AO20: 1868.470643 | AP20: 1868.509933 | AQ20: 21.05172414 | AR20: 20.13515326 | AS20: 0.9165708812 | AU20: -0.9789662909 | AV20: -0.141 | BA20: 1871.221004 | BB20: 1871.338877 | BC20: 22.86976744 | BD20: 21.84532656 | BE20: 1.02444088 | BG20: 0.5853035958 | BH20: -0.1522 | BM20: 1872.635477 | BN20: 1872.989095 | BO20: 24.49341085 | BP20: 18.61437235 | BQ20: 5.879038507 | BS20: -0.05793033048 | BT20: -1.65 | BX20: 5 | BY20: 18.17412587 | BZ20: 17.71421691
A21: 18680120 | B21: 1868.054719 | C21: 20 | D21: 9.7 | G21: 1867.964227 | H21: 1867.968592 | M21: -0.5050455454 | N21: 0.0005 | O21: -0.8290016176 | P21: -0.0406 | Q21: -1 | R21: 0.025 | S21: =CORREL(K29:K3689,O30:O3690) -> 0.02285268368 | V21: 1868.287285 | W21: 1868.300382 | X21: 25.89 | Y21: -25.89 | Z21: 19.08802469 | AA21: 6.801975309 | AC21: -0.6943188176 | AD21: 1.741 | AE21: 0 | AI21: 0.9803822844 | AJ21: -0.01875 | AO21: 1868.549224 | AP21: 1868.588515 | AQ21: 18.65862069 | AR21: 19.50860701 | AS21: -0.8499863164 | AU21: -0.8810745399 | AV21: -0.141 | BA21: 1871.45675 | BB21: 1871.574622 | BC21: 21.9755814 | BD21: 22.18537824 | BE21: -0.2097968458 | BG21: -0.07281276779 | BH21: -0.1522 | BM21: 1873.342712 | BN21: 1873.69633 | BO21: 18.55077519 | BP21: 17.42990216 | BQ21: 1.120873033 | BS21: 0.5973309226 | BT21: -1.65 | BX21: 6 | BY21: 16.45174825 | BZ21: 17.79272868
A22: 18680121 | B22: 1868.057457 | C22: 21 | D22: 10.6 | G22: 1867.972958 | H22: 1867.977324 | M22: 0.2084270072 | N22: 0.0005 | O22: -0.275575551 | P22: -0.0406 | Q22: 0 | R22: 0.033 | S22: =CORREL(K29:K3689,O29:O3689) -> 0.02676573097 | V22: 1868.313479 | W22: 1868.326576 | X22: 18.77 | Y22: -18.77 | Z22: 20.10135802 | AA22: =X22-Z22 -> -1.331358025 | AC22: -0.4244101907 | AD22: 1.741 | AE22: 0 | AI22: 0.6243194305 | AJ22: -0.01875 | AO22: 1868.627806 | AP22: 1868.667097 | AQ22: 18.56206897 | AR22: 19.05966065 | AS22: -0.4975916804 | AU22: -0.3709182197 | AV22: -0.141 | BA22: 1871.692495 | BB22: 1871.810368 | BC22: 21.25697674 | BD22: 22.72297514 | BE22: -1.465998396 | BG22: -0.6968592281 | BH22: -0.1522 | BM22: 1874.049948 | BN22: 1874.403566 | BO22: 14.66486486 | BP22: 16.00681861 | BQ22: -1.341953748 | BS22: 0.9730943984 | BT22: -1.65 | BX22: 7 | BY22: 15.89160839 | BZ22: 17.80783653
A23: 18680122 | B23: 1868.060195 | C23: 22 | D23: 11.7 | G23: 1867.981689 | H23: 1867.986055 | M23: 0.8130474111 | N23: 0.0005 | O23: 0.4067953786 | P23: -0.0406 | Q23: 1 | R23: 0.025 | S23: =CORREL(K29:K3689,O28:O3688) -> 0.01893172884 | V23: 1868.339673 | W23: 1868.35277 | X23: 13.71111111 | Y23: -13.71111111 | Z23: 18.1062963 | AA23: -4.395185185 | AC23: -0.1089312697 | AD23: 1.741 | AE23: 0 | AI23: -0.02386942337 | AJ23: -0.01875 | AO23: 1868.706388 | AP23: 1868.745679 | AQ23: 25.79285714 | AR23: 19.88839628 | AS23: 5.904460865 | AU23: 0.3127948578 | AV23: -0.141 | BA23: 1871.92824 | BB23: 1872.046113 | BC23: 20.6372093 | BD23: 22.70023612 | BE23: -2.06302682 | BG23: -0.9948375109 | BH23: -0.1522 | BM23: 1874.757184 | BN23: 1875.110802 | BO23: 12.79302326 | BP23: 14.41121138 | BQ23: -1.618188122 | BS23: 0.8935361904 | BT23: -1.65 | BX23: 8 | BY23: 16.01188811 | BZ23: 17.84291798
A24: 18680123 | B24: 1868.062933 | C24: 23 | D24: 22.1 | G24: 1867.990421 | H24: 1867.994786 | M24: 0.9930493412 | N24: 0.0005 | O24: 0.8988222295 | P24: -0.0406 | Q24: 2 | R24: 0.006 | S24: =CORREL(K29:K3689,O27:O3687) -> 0.00236590932 | V24: 1868.365867 | W24: 1868.378964 | X24: 14.31 | Y24: -14.31 | Z24: 17.40518519 | AA24: -3.095185185 | AC24: 0.2182439537 | AD24: 1.741 | AE24: 0 | AI24: -0.6608895088 | AJ24: -0.01875 | AO24: 1868.78497 | AP24: 1868.824261 | AQ24: 22.74137931 | AR24: 20.05600712 | AS24: 2.685372195 | AU24: 0.8501477451 | AV24: -0.141 | BA24: 1872.163986 | BB24: 1872.281858 | BC24: 22.61724138 | BD24: 22.84338858 | BE24: -0.2261471977 | BG24: -0.8273202659 | BH24: -0.1522 | BM24: 1875.46442 | BN24: 1875.818038 | BO24: 10.61124031 | BP24: 12.77465023 | BQ24: -2.163409922 | BS24: 0.3958824684 | BT24: -1.65 | BX24: 9 | BY24: 18.96433566 | BZ24: 17.96056656
A25: 18680124 | B25: 1868.065671 | C25: 24 | D25: 30.6 | G25: 1867.999152 | H25: 1868.003518 | I25: =AVERAGEIFS(GeoAA,DecDate,">"&G25,DecDate,"<="&G26) -> 6 | M25: 0.6544258014 | N25: 0.0005 | O25: 0.9702801699 | P25: -0.0406 | Q25: 3 | R25: -0.016 | S25: =CORREL(K29:K3689,O26:O3686) -> -0.01469373646 | V25: 1868.392061 | W25: 1868.405158 | X25: 23.62222222 | Y25: -23.62222222 | Z25: 18.67753086 | AA25: 4.944691358 | AC25: 0.5219856185 | AD25: 1.741 | AE25: 0 | AI25: -0.9886720481 | AJ25: -0.01875 | AO25: 1868.863551 | AP25: 1868.902842 | AQ25: 14.08965517 | AR25: 20.21851396 | AS25: -6.128858785 | AU25: 0.989707054 | AV25: -0.141 | BA25: 1872.399731 | BB25: 1872.517604 | BC25: 22.75348837 | BD25: 22.83214827 | BE25: -0.07865989486 | BG25: -0.2726906739 | BH25: -0.1522 | BM25: 1876.171656 | BN25: 1876.525274 | BO25: 9.197297297 | BP25: 10.80210909 | BQ25: -1.604811789 | BS25: -0.2870090603 | BT25: -1.65 | BX25: 10 | BY25: 18.60769231 | BZ25: 18.0074855
A26: 18680125 | B26: 1868.068408 | C26: 25 | D26: 24.8 | G26: 1868.007883 | H26: 1868.012249 | I26: =AVERAGEIFS(GeoAA,DecDate,">"&G26,DecDate,"<="&G27) -> 7.3 | M26: -0.02597520582 | N26: 0.0005 | O26: 0.5877332354 | P26: -0.0406 | Q26: 4 | R26: -0.031 | S26: =CORREL(K29:K3689,O25:O3685) -> -0.02694948136 | V26: 1868.418255 | W26: 1868.431352 | X26: 17.63 | Y26: -17.63 | Z26: 18.90333333 | AA26: -1.273333333 | AC26: 0.7696800001 | AD26: 1.741 | AE26: 0 | AI26: -0.8538439482 | AJ26: -0.01875 | AO26: 1868.942133 | AP26: 1868.981424 | AQ26: 15.225 | AR26: 21.27905036 | AS26: -6.054050356 | AU26: 0.666171433 | AV26: -0.141 | BA26: 1872.635476 | BB26: 1872.753349 | BC26: 28.7872093 | BD26: 22.5401586 | BE26: 6.247050699 | BG26: 0.4095339151 | BH26: -0.1522 | BM26: 1876.878892 | BN26: 1877.23251 | BO26: 9.711627907 | BP26: 9.667010033 | BQ26: 0.04461787369 | BS26: -0.83560586 | BT26: -1.65 | BX26: 11 | BY26: 16.4986014 | BZ26: 18.0768774
A27: 18680126 | B27: 1868.071146 | C27: 26 | D27: 11.6 | G27: 1868.016615 | H27: 1868.02098 | I27: 7.733333333 | M27: -0.6928105192 | N27: 0.0005 | O27: -0.06982061191 | P27: -0.0406 | V27: 1868.444449 | W27: 1868.457546 | X27: 18.24444444 | Y27: -18.24444444 | Z27: 19.06666667 | AA27: -0.8222222222 | AC27: 0.9347313523 | AD27: 1.741 | AE27: 0 | AI27: -0.3194927756 | AJ27: -0.01875 | AO27: 1869.020715 | AP27: 1869.060006 | AQ27: 23.12068966 | AR27: 21.80433771 | AS27: 1.316351943 | AU27: 0.03092679487 | AV27: -0.141 | BA27: 1872.871222 | BB27: 1872.989094 | BC27: 23.24302326 | BD27: 21.68227747 | BE27: =BC27-BD27 -> 1.56074579 | BG27: 0.9001330337 | BH27: -0.1522 | BM27: 1877.586128 | BN27: 1877.939746 | BO27: 7.673643411 | BP27: 9.554764066 | BQ27: =BO27-BP27 -> -1.881120656 | BS27: -0.993213391 | BT27: -1.65 | BX27: 12 | BY27: 17.26503497 | BZ27: 18.2344137
A28: 18680127 | B28: 1868.073884 | C28: 27 | D28: 16 | G28: 1868.025346 | H28: 1868.029712 | I28: 7.8 | M28: -0.9978217356 | N28: 0.0005 | O28: -0.6947046189 | P28: -0.0406 | S28: 407 cycles | V28: 1868.470643 | W28: 1868.48374 | X28: 16.48 | Y28: -16.48 | Z28: 18.98518519 | AA28: -2.505185185 | AC28: 0.9994175779 | AD28: 1.741 | AE28: 0 | AI28: 0.3643526176 | AJ28: -0.01875 | AO28: 1869.099297 | AP28: 1869.138588 | AQ28: 21.26206897 | AR28: 20.98099343 | AS28: 0.2810755337 | AU28: -0.6187888343 | AV28: -0.141 | BA28: 1873.106967 | BB28: 1873.22484 | BC28: 21.45 | BD28: 21.26625679 | BE28: 0.1837432059 | BG28: 0.969549902 | BH28: -0.1522 | BM28: 1878.293364 | BN28: 1878.646982 | BO28: 7.275968992 | BP28: 9.460301165 | BQ28: -2.184332173 | BS28: -0.6860853381 | BT28: -1.65 | BX28: 13 | BY28: 17.26083916 | BZ28: 18.2946014
A29: 18680128 | B29: 1868.076622 | C29: 28 | D29: 12 | G29: 1868.034077 | H29: 1868.038443 | I29: 8.6 | J29: =AVERAGE(I25:I33) -> 11.01296296 | K29: =I29-J29 -> -2.412962963 | M29: -0.7817150729 | N29: 0.0005 | O29: -0.994528614 | P29: -0.0406 | S29: 80% | V29: 1868.496836 | W29: 1868.509933 | X29: 19.44 | Y29: -19.44 | Z29: 19.86074074 | AA29: -0.4207407407 | AC29: 0.9567931077 | AD29: 1.741 | AE29: =AE28 -> 0 | AI29: 0.8777133716 | AJ29: -0.01875 | AO29: 1869.177878 | AP29: 1869.217169 | AQ29: 22.51428571 | AR29: 20.67480843 | AS29: 1.839477285 | AU29: -0.9789662909 | AV29: -0.141 | BA29: 1873.342712 | BB29: 1873.460585 | BC29: 22.76860465 | BD29: 20.16834625 | BE29: 2.600258398 | BG29: 0.5853035958 | BH29: -0.1522 | BM29: 1879.0006 | BN29: 1879.354218 | BO29: 6.740540541 | BP29: 10.54238557 | BQ29: -3.801845034 | BS29: -0.05793033048 | BT29: -1.65 | BX29: 14 | BY29: 16.64615385 | BZ29: 18.37029371
A30: 18680129 | B30: 1868.07936 | C30: 29 | D30: 7.8 | G30: 1868.042808 | H30: 1868.047174 | I30: 13.5 | J30: 11.02037037 | K30: 2.47962963 | M30: -0.1573534221 | N30: 0.0005 | O30: -0.8290016176 | P30: -0.0406 | S30: Lag = -0.041 | V30: 1868.52303 | W30: 1868.536127 | X30: 27.92222222 | Y30: -27.92222222 | Z30: 18.62740741 | AA30: 9.294814815 | AC30: 0.8114346689 | AD30: 1.741 | AE30: 0 | AI30: 0.9803822844 | AJ30: -0.01875 | AO30: 1869.25646 | AP30: 1869.295751 | AQ30: 28.20344828 | AR30: 21.26982759 | AS30: 6.93362069 | AU30: -0.8810745399 | AV30: -0.141 | BA30: 1873.578458 | BB30: 1873.69633 | BC30: 19.34767442 | BD30: 19.2367326 | BE30: 0.1109418159 | BG30: -0.07281276779 | BH30: -0.1522 | BM30: 1879.707836 | BN30: 1880.061454 | BO30: 8.334883721 | BP30: 12.24384867 | BQ30: -3.908964945 | BS30: 0.5973309226 | BT30: -1.65 | BX30: 15 | BY30: 18.73846154 | BZ30: 18.35711238
A31: 18680130 | B31: 1868.082098 | C31: 30 | D31: 5.3 | G31: 1868.05154 | H31: 1868.055905 | I31: 9.15 | J31: 11.63148148 | K31: -2.481481481 | M31: 0.5491869173 | N31: 0.0005 | O31: 0.3750559463 | P31: -0.0323 | V31: 1868.549224 | W31: 1868.562321 | X31: 20.24 | Y31: -20.24 | Z31: 19.57296296 | AA31: 0.667037037 | AC31: 0.5789498669 | AD31: 1.741 | AE31: 0 | AI31: 0.6243194306 | AJ31: -0.01875 | AO31: 1869.335042 | AP31: 1869.374333 | AQ31: 23.28965517 | AR31: 22.27279693 | AS31: 1.016858238 | AU31: -0.3709182197 | AV31: -0.141 | BA31: 1873.814203 | BB31: 1873.932075 | BC31: 13.53604651 | BD31: 17.63440702 | BE31: -4.09836051 | BG31: -0.6968592281 | BH31: -0.1522 | BM31: 1880.415072 | BN31: 1880.76869 | BO31: 13.65465116 | BP31: 13.00853694 | BQ31: 0.6461142205 | BS31: 0.9730943984 | BT31: -1.65 | BX31: 16 | BY31: 18.82797203 | BZ31: 18.29941732
A32: 18680131 | B32: 1868.084836 | C32: 31 | D32: 5.1 | G32: 1868.060271 | H32: 1868.064637 | I32: 25.83333333 | J32: 13.23148148 | K32: 12.60185185 | M32: 0.9689113742 | N32: 0.0005 | O32: 0.8831750374 | P32: -0.0323 | S32: 1900 to 1928 | V32: 1868.575418 | W32: 1868.588515 | X32: 12.97777778 | Y32: -12.97777778 | Z32: 19.37024691 | AA32: -6.392469136 | AC32: 0.2843013464 | AD32: 1.741 | AE32: 0 | AI32: -0.02386942335 | AJ32: -0.01875 | AO32: 1869.413624 | AP32: 1869.452915 | AQ32: 18.38275862 | AR32: 21.98200602 | AS32: -3.5992474 | AU32: 0.3127948578 | AV32: -0.141 | BA32: 1874.049948 | BB32: 1874.167821 | BC32: 16.89302326 | BD32: 16.3864742 | BE32: 0.5065490511 | BG32: -0.9948375109 | BH32: -0.1522 | BM32: 1881.122308 | BN32: 1881.475926 | BO32: 11.94285714 | BP32: 13.6848074 | BQ32: -1.741950256 | BS32: 0.8935361904 | BT32: -1.65 | BX32: 17 | BY32: 19.91678322 | BZ32: 18.28009672
A33: 18680201 | B33: 1868.087573 | C33: 32 | D33: 6.6 | G33: 1868.069002 | H33: 1868.073368 | I33: 13.2 | J33: 14.71203704 | K33: -1.512037037 | M33: 0.882616547 | N33: 0.0005 | O33: 0.9780467131 | P33: -0.0323 | Q33: Cycles | R33: Actual | S33: 28.7 Correl | V33: 1868.601612 | W33: 1868.614709 | X33: 22.19 | Y33: -22.19 | Z33: 20.77246914 | AA33: 1.417530864 | AC33: -0.04087352871 | AD33: 1.741 | AE33: 0 | AI33: -0.6608895088 | AJ33: -0.01875 | AO33: 1869.492206 | AP33: 1869.531496 | AQ33: 19.98571429 | AR33: 21.74445813 | AS33: -1.758743842 | AU33: 0.8501477451 | AV33: -0.141 | BA33: 1874.285693 | BB33: 1874.403566 | BC33: 12.73604651 | BD33: 15.3366034 | BE33: -2.600556892 | BG33: -0.8273202659 | BH33: -0.1522 | BM33: 1881.829544 | BN33: 1882.183161 | BO33: 20.35 | BP33: 14.45939827 | BQ33: 5.890601731 | BS33: 0.3958824684 | BT33: -1.65 | BX33: 18 | BY33: 17.68321678 | BZ33: 18.29839929
A34: 18680202 | B34: 1868.090311 | C34: 33 | D34: 10.7 | G34: 1868.077734 | H34: 1868.082099 | I34: 6.066666667 | J34: 14.49722222 | K34: -8.430555556 | M34: 0.3353703829 | N34: 0.0005 | O34: 0.6152794619 | P34: -0.0323 | Q34: -4 | R34: -0.033 | S34: =CORREL(K3690:K7010,O3694:O7014) -> -0.01424029451 | V34: 1868.627806 | W34: 1868.640903 | X34: 12.52222222 | Y34: -12.52222222 | Z34: 22.3191358 | AA34: -9.79691358 | AC34: -0.3616596809 | AD34: 1.741 | AE34: 0 | AI34: -0.9886720481 | AJ34: -0.01875 | AO34: 1869.570787 | AP34: 1869.610078 | AQ34: 19.44482759 | AR34: 21.2371237 | AS34: -1.792296114 | AU34: 0.989707054 | AV34: -0.141 | BA34: 1874.521439 | BB34: 1874.639311 | BC34: 14.36896552 | BD34: 13.98789539 | BE34: 0.3810701239 | BG34: -0.2726906739 | BH34: -0.1522 | BM34: 1882.536779 | BN34: 1882.890397 | BO34: 24.51046512 | BP34: 15.53026914 | BQ34: 8.980195977 | BS34: -0.2870090603 | BT34: -1.65 | BX34: 19 | BY34: 17.96713287 | BZ34: 18.36373781
A35: 18680203 | B35: 1868.093049 | C35: 34 | D35: 21.1 | G35: 1868.086465 | H35: 1868.090831 | I35: 12.8 | J35: 13.68981481 | K35: -0.8898148148 | M35: -0.3870248048 | N35: 0.0005 | O35: -0.03538388752 | P35: -0.0323 | Q35: -3 | R35: -0.017 | S35: =CORREL(K3690:K7010,O3693:O7013) -> 0.009571318965 | V35: 1868.654 | W35: 1868.667097 | X35: 26.14 | Y35: -26.14 | Z35: 20.7808642 | AA35: 5.359135802 | AC35: -0.6436132641 | AD35: 1.741 | AE35: 0 | AI35: -0.8538439482 | AJ35: -0.01875 | AO35: 1869.649369 | AP35: 1869.68866 | AQ35: 24.25172414 | AR35: 20.08356596 | AS35: 4.168158183 | AU35: 0.666171433 | AV35: -0.141 | BA35: 1874.757184 | BB35: 1874.875057 | BC35: 14.36627907 | BD35: 13.05701684 | BE35: 1.309262229 | BG35: 0.4095339151 | BH35: -0.1522 | BM35: 1883.244015 | BN35: 1883.597633 | BO35: 16.59382239 | BP35: 16.98117353 | BQ35: -0.3873511385 | BS35: -0.83560586 | BT35: -1.65 | BX35: 20 | BY35: 17.66083916 | BZ35: 18.48658052
A36: 18680204 | B36: 1868.095787 | C36: 35 | D36: 9.7 | G36: 1868.095196 | H36: 1868.099562 | I36: 22.13333333 | J36: 13.79907407 | K36: 8.334259259 | M36: -0.9072941635 | N36: 0.0005 | O36: -0.6694907228 | P36: -0.0323 | Q36: -2 | R36: 0.006 | S36: =CORREL(K3690:K7010,O3692:O7012) -> 0.02890440592 | V36: 1868.680194 | W36: 1868.693291 | X36: 16.42 | Y36: -16.42 | Z36: 20.88197531 | AA36: -4.461975309 | AC36: -0.8564600109 | AD36: 1.741 | AE36: 0 | AI36: -0.3194927756 | AJ36: -0.01875 | AO36: 1869.727951 | AP36: 1869.767242 | AQ36: 20.50357143 | AR36: 20.07245484 | AS36: 0.4311165846 | AU36: 0.03092679487 | AV36: -0.141 | BA36: 1874.992929 | BB36: 1875.110802 | BC36: 12.01162791 | BD36: 12.69009178 | BE36: -0.6784638688 | BG36: 0.9001330337 | BH36: -0.1522 | BM36: 1883.951251 | BN36: 1884.304869 | BO36: 13.76007752 | BP36: 17.48410204 | BQ36: -3.724024523 | BS36: -0.993213391 | BT36: -1.65 | BX36: 21 | BY36: 20.64755245 | BZ36: 18.5845557
A37: 18680205 | B37: 1868.098525 | C37: 36 | D37: 23.1 | G37: 1868.103928 | H37: 1868.108293 | I37: 21.125 | J37: 13.97685185 | K37: 7.148148148 | M37: -0.9537241646 | N37: 0.0005 | O37: -0.9903354083 | P37: -0.0323 | Q37: -1 | R37: 0.027 | S37: =CORREL(K3690:K7010,O3691:O7011) -> 0.03471280011 | V37: 1868.706388 | W37: 1868.719485 | X37: 29.1 | Y37: -29.1 | Z37: 23.88074074 | AA37: 5.219259259 | AC37: -0.9773458779 | AD37: 1.741 | AE37: 0 | AI37: 0.3643526175 | AJ37: -0.01875 | AO37: 1869.806533 | AP37: 1869.845824 | AQ37: 19.12413793 | AR37: 19.86594143 | AS37: -0.741803503 | AU37: -0.6187888343 | AV37: -0.141 | BA37: 1875.228675 | BB37: 1875.346547 | BC37: 12.00116279 | BD37: 11.77342511 | BE37: 0.2277376815 | BG37: 0.969549902 | BH37: -0.1522 | BM37: 1884.658487 | BN37: 1885.012105 | BO37: 14.24728682 | BP37: 17.88191414 | BQ37: -3.634627318 | BS37: -0.6860853381 | BT37: -1.65 | BX37: 22 | BY37: 18.63776224 | BZ37: 18.63482734
A38: 18680206 | B38: 1868.101263 | C38: 37 | D38: 33.6 | G38: 1868.112659 | H38: 1868.117025 | I38: 6.666666667 | J38: 14.98240741 | K38: -8.315740741 | M38: -0.5020664851 | N38: 0.0005 | O38: -0.8477911499 | P38: -0.0323 | Q38: 0 | R38: 0.035 | S38: =CORREL(K3690:K7010,O3690:O7010) -> 0.02427868934 | V38: 1868.732582 | W38: 1868.745679 | X38: 33.36 | Y38: -33.36 | Z38: 22.3962963 | AA38: 10.9637037 | AC38: -0.9932909589 | AD38: 1.741 | AE38: 0 | AI38: 0.8777133716 | AJ38: -0.01875 | AO38: 1869.885114 | AP38: 1869.924405 | AQ38: 17.94827586 | AR38: 20.41810345 | AS38: -2.469827586 | AU38: -0.9789662909 | AV38: -0.141 | BA38: 1875.46442 | BB38: 1875.582293 | BC38: 10.63023256 | BD38: 11.29241736 | BE38: -0.6621847991 | BG38: 0.5853035958 | BH38: -0.1522 | BM38: 1885.365723 | BN38: 1885.719341 | BO38: 16.37837838 | BP38: 17.32691845 | BQ38: -0.9485400683 | BS38: -0.05793033048 | BT38: -1.65 | BX38: 23 | BY38: 18.85874126 | BZ38: 18.768745
A39: 18680207 | B39: 1868.104 | C39: 38 | D39: 15.1 | G39: 1868.12139 | H39: 1868.125756 | I39: 6.233333333 | J39: 15.50462963 | K39: -9.271296296 | M39: 0.2117981724 | N39: 0.0005 | O39: -0.3085559903 | P39: -0.0323 | Q39: 1 | R39: 0.027 | S39: =CORREL(K3690:K7010,O3689:O7009) -> 0.002484309997 | V39: 1868.758776 | W39: 1868.771873 | X39: 14.07777778 | Y39: -14.07777778 | Z39: 22.52469136 | AA39: -8.44691358 | AC39: -0.9025831791 | AD39: 1.741 | AE39: 0 | AI39: 0.9803822844 | AJ39: -0.01875 | AO39: 1869.963696 | AP39: 1870.002987 | AQ39: 17.82142857 | AR39: 20.66947181 | AS39: -2.84804324 | AU39: -0.8810745399 | AV39: -0.141 | BA39: 1875.700165 | BB39: 1875.818038 | BC39: 10.96976744 | BD39: 10.86546972 | BE39: 0.1042977219 | BG39: -0.07281276779 | BH39: -0.1522 | BM39: 1886.072959 | BN39: 1886.426577 | BO39: 21.39302326 | BP39: 15.90353343 | BQ39: 5.489489822 | BS39: 0.5973309226 | BT39: -1.65 | BX39: 24 | BY39: 20.84615385 | BZ39: 18.95736433
A40: 18680208 | B40: 1868.106738 | C40: 39 | D40: 33.6 | G40: 1868.130122 | H40: 1868.134487 | I40: 10.13333333 | J40: 15.28240741 | K40: -5.149074074 | M40: 0.8150500717 | N40: 0.0005 | O40: 0.3750559463 | P40: -0.0323 | Q40: 2 | R40: 0.006 | S40: =CORREL(K3690:K7010,O3688:O7008) -> -0.0204725056 | V40: 1868.78497 | W40: 1868.798067 | X40: 21.15 | Y40: -21.15 | Z40: 21.61246914 | AA40: -0.4624691358 | AC40: -0.7149621259 | AD40: 1.741 | AE40: 0 | AI40: 0.6243194306 | AJ40: -0.01875 | AO40: 1870.042278 | AP40: 1870.081569 | AQ40: 23.18965517 | AR40: 20.19667488 | AS40: 2.992980296 | AU40: -0.3709182197 | AV40: -0.141 | BA40: 1875.935911 | BB40: 1876.053783 | BC40: 10.23372093 | BD40: 10.32503044 | BE40: -0.0913095132 | BG40: -0.6968592281 | BH40: -0.1522 | BM40: 1886.780195 | BN40: 1887.133813 | BO40: 18.18100775 | BP40: 15.47697831 | BQ40: 2.704029445 | BS40: 0.9730943984 | BT40: -1.65 | BX40: 25 | BY40: 19.39160839 | BZ40: 19.18076293
A41: 18680209 | B41: 1868.109476 | C41: 40 | D41: 22.6 | G41: 1868.138853 | H41: 1868.143219 | I41: 27.43333333 | J41: 15.66759259 | K41: 11.76574074 | M41: 0.9926375967 | N41: 0.0005 | O41: 0.8831750374 | P41: -0.0323 | Q41: 3 | R41: -0.018 | S41: =CORREL(K3690:K7010,O3687:O7007) -> -0.0338500083 | V41: 1868.811164 | W41: 1868.824261 | X41: 39.96666667 | Y41: -39.96666667 | Z41: 20.96802469 | AA41: 18.99864198 | AC41: -0.4505732783 | AD41: 1.741 | AE41: 0 | AI41: -0.02386942333 | AJ41: -0.01875 | AO41: 1870.12086 | AP41: 1870.160151 | AQ41: 16.52413793 | AR41: 19.85681445 | AS41: -3.332676519 | AU41: 0.3127948578 | AV41: -0.141 | BA41: 1876.171656 | BB41: 1876.289529 | BC41: 8.643023256 | BD41: 10.12205887 | BE41: -1.479035611 | BG41: -0.9948375109 | BH41: -0.1522 | BM41: 1887.487431 | BN41: 1887.841049 | BO41: 15.52316602 | BP41: 15.1274951 | BQ41: 0.3956709201 | BS41: 0.8935361904 | BT41: -1.65 | BX41: 26 | BY41: 19.60839161 | BZ41: 19.34692091
A42: 18680210 | B42: 1868.112214 | C42: 41 | D42: 13.2 | G42: 1868.147584 | H42: 1868.15195 | I42: 22.25 | J42: 14.59074074 | K42: 7.659259259 | M42: 0.6518146876 | N42: 0.0005 | O42: 0.9780467131 | P42: -0.0323 | Q42: 4 | R42: -0.033 | S42: =CORREL(K3690:K7010,O3686:O7006) -> -0.03138871592 | V42: 1868.837357 | W42: 1868.850454 | X42: 8.83 | Y42: -8.83 | Z42: 19.89024691 | AA42: -11.06024691 | AC42: -0.1378049214 | AD42: 1.741 | AE42: 0 | AI42: -0.6608895088 | AJ42: -0.01875 | AO42: 1870.199441 | AP42: 1870.238732 | AQ42: 24.95517241 | AR42: 19.32595785 | AS42: 5.629214559 | AU42: 0.8501477451 | AV42: -0.141 | BA42: 1876.407401 | BB42: 1876.525274 | BC42: 8.406976744 | BD42: 9.838337937 | BE42: -1.431361193 | BG42: -0.8273202659 | BH42: -0.1522 | BM42: 1888.194667 | BN42: 1888.548285 | BO42: 15.35503876 | BP42: 15.42137969 | BQ42: -0.06634092564 | BS42: 0.3958824684 | BT42: -1.65 | BX42: 27 | BY42: 17.67676056 | BZ42: 19.48428602
A43: 18680211 | B43: 1868.114952 | C43: 42 | D43: 6.6 | G43: 1868.156315 | H43: 1868.160681 | I43: 10.76666667 | J43: 14.76111111 | K43: -3.994444444 | M43: -0.02942202031 | N43: 0.0005 | O43: 0.615279462 | P43: -0.0323 | V43: 1868.863551 | W43: 1868.876648 | X43: 13.67777778 | Y43: -13.67777778 | Z43: 17.48691358 | AA43: -3.809135802 | AC43: 0.1897599954 | AD43: 1.741 | AE43: 0 | AI43: -0.9886720481 | AJ43: -0.01875 | AO43: 1870.278023 | AP43: 1870.317314 | AQ43: 21.70714286 | AR43: 19.68342912 | AS43: 2.023713738 | AU43: 0.989707054 | AV43: -0.141 | BA43: 1876.643147 | BB43: 1876.761019 | BC43: 10.52643678 | BD43: 9.481490392 | BE43: 1.04494639 | BG43: -0.2726906739 | BH43: -0.1522 | BM43: 1888.901903 | BN43: 1889.255521 | BO43: 11.7 | BP43: 16.24214331 | BQ43: -4.542143306 | BS43: -0.2870090603 | BT43: -1.65 | BX43: 28 | BY43: 19.34014085 | BZ43: 19.52660672
A44: 18680212 | B44: 1868.11769 | C44: 43 | D44: 6.7 | G44: 1868.165047 | H44: 1868.169412 | I44: 10.8 | J44: 14.73518519 | K44: -3.935185185 | M44: -0.6952929166 | N44: 0.0005 | O44: -0.0353838875 | P44: -0.0323 | S44: 369 cycles | V44: 1868.889745 | W44: 1868.902842 | X44: 17.93 | Y44: -17.93 | Z44: 17.58197531 | AA44: 0.3480246914 | AC44: 0.496949768 | AD44: 1.741 | AE44: 0 | AI44: -0.8538439483 | AJ44: -0.01875 | AO44: 1870.356605 | AP44: 1870.395896 | AQ44: 19.99655172 | AR44: 21.70365353 | AS44: -1.707101806 | AU44: 0.6661714331 | AV44: -0.141 | BA44: 1876.878892 | BB44: 1876.996764 | BC44: 9.502325581 | BD44: 9.15797618 | BE44: 0.3443494015 | BG44: 0.4095339151 | BH44: -0.1522 | BM44: 1889.609139 | BN44: 1889.962757 | BO44: 12.75482625 | BP44: 16.27129921 | BQ44: -3.516472951 | BS44: -0.83560586 | BT44: -1.65 | BX44: 29 | BY44: 19.42887324 | BZ44: 19.6386146
A45: 18680213 | B45: 1868.120428 | C45: 44 | D45: 6.7 | G45: 1868.173778 | H45: 1868.178144 | I45: 25.6 | J45: 15.22407407 | K45: 10.37592593 | M45: -0.9980432703 | N45: 0.0005 | O45: -0.6694907227 | P45: -0.0323 | S45: 80% | V45: 1868.915939 | W45: 1868.929036 | X45: 10.62 | Y45: -10.62 | Z45: 17.07530864 | AA45: -6.455308642 | AC45: 0.7507804378 | AD45: 1.741 | AE45: 0 | AI45: -0.3194927756 | AJ45: -0.01875 | AO45: 1870.435187 | AP45: 1870.474478 | AQ45: 17.44482759 | AR45: 22.23773946 | AS45: -4.792911877 | AU45: 0.03092679488 | AV45: -0.141 | BA45: 1877.114637 | BB45: 1877.23251 | BC45: 10.18488372 | BD45: 8.859138971 | BE45: 1.32574475 | BG45: 0.9001330337 | BH45: -0.1522 | BM45: 1890.316375 | BN45: 1890.669992 | BO45: 10.61472868 | BP45: 16.13129059 | BQ45: -5.516561911 | BS45: -0.993213391 | BT45: -1.65 | BX45: 30 | BY45: 18.63169014 | BZ45: 19.70405594
A46: 18680214 | B46: 1868.123165 | C46: 45 | D46: 7.6 | G46: 1868.182509 | H46: 1868.186875 | I46: 11.43333333 | J46: 17.29074074 | K46: -5.857407407 | M46: -0.7795600472 | N46: 0.0005 | O46: -0.9903354083 | P46: -0.0323 | S46: Lag = -0.0323 | V46: 1868.942133 | W46: 1868.95523 | X46: 19.4 | Y46: -19.4 | Z46: 15.25802469 | AA46: 4.141975309 | AC46: 0.9239973852 | AD46: 1.741 | AE46: 0 | AI46: 0.3643526175 | AJ46: -0.01875 | AO46: 1870.513769 | AP46: 1870.553059 | AQ46: 14.34642857 | AR46: 22.7756705 | AS46: -8.429241927 | AU46: -0.6187888343 | AV46: -0.141 | BA46: 1877.350382 | BB46: 1877.468255 | BC46: 9.447674419 | BD46: 8.753971012 | BE46: 0.6937034067 | BG46: 0.969549902 | BH46: -0.1522 | BM46: 1891.02361 | BN46: 1891.377228 | BO46: 16.89224806 | BP46: 16.69701978 | BQ46: 0.1952282848 | BS46: -0.6860853381 | BT46: -1.65 | BX46: 31 | BY46: 18.08521127 | BZ46: 19.84393854
A47: 18680215 | B47: 1868.125903 | C47: 46 | D47: 2.3 | G47: 1868.191241 | H47: 1868.195606 | I47: 8.2 | J47: 20.15555556 | K47: -11.95555556 | M47: -0.1539473099 | N47: 0.0005 | O47: 0.6545870813 | P47: 0.01072 | V47: 1868.968327 | W47: 1868.981424 | X47: 11.73 | Y47: -11.73 | Z47: 17.52246914 | AA47: -5.792469136 | AC47: 0.9980017468 | AD47: 1.741 | AE47: 0 | AI47: 0.8777133716 | AJ47: -0.01875 | AO47: 1870.59235 | AP47: 1870.631641 | AQ47: 21.16551724 | AR47: 22.35153257 | AS47: -1.186015326 | AU47: -0.9789662909 | AV47: -0.141 | BA47: 1877.586128 | BB47: 1877.704 | BC47: 7.418604651 | BD47: 8.534461968 | BE47: -1.115857317 | BG47: 0.5853035958 | BH47: -0.1522 | BM47: 1891.730846 | BN47: 1892.084464 | BO47: 23.76525097 | BP47: 17.10767828 | BQ47: 6.657572689 | BS47: -0.05793033048 | BT47: -1.65 | BX47: 32 | BY47: 18.96267606 | BZ47: 20.00071801
A48: 18680216 | B48: 1868.128641 | C48: 47 | D48: 8.8 | G48: 1868.199972 | H48: 1868.204338 | I48: 6 | J48: 20.31111111 | K48: -14.31111111 | M48: 0.5520652551 | N48: 0.0005 | O48: 0.0155039708 | P48: 0.01072 | S48: 1929 to 1957 | V48: 1868.994521 | W48: 1869.007618 | X48: 14.93333333 | Y48: -14.93333333 | Z48: 18.67716049 | AA48: -3.74382716 | AC48: 0.9648474349 | AD48: 1.741 | AE48: 0 | AI48: 0.9803822844 | AJ48: -0.01875 | AO48: 1870.670932 | AP48: 1870.710223 | AQ48: 36.00344828 | AR48: 21.99135194 | AS48: 14.01209633 | AU48: -0.8810745399 | AV48: -0.141 | BA48: 1877.821873 | BB48: 1877.939746 | BC48: 8.058139535 | BD48: 8.220413437 | BE48: -0.1622739018 | BG48: -0.07281276779 | BH48: -0.1522 | BM48: 1892.438082 | BN48: 1892.7917 | BO48: 21.65542636 | BP48: 17.7792545 | BQ48: 3.876171853 | BS48: 0.5973309226 | BT48: -1.65 | BX48: 33 | BY48: 18.46126761 | BZ48: 20.12439712
A49: 18680217 | B49: 1868.131379 | C49: 48 | D49: 10.2 | G49: 1868.208703 | H49: 1868.213069 | I49: 14.53333333 | J49: 21.525 | K49: -6.991666667 | M49: 0.96975871 | N49: 0.0005 | O49: -0.6308336199 | P49: 0.01072 | Q49: Cycles | R49: Actual | S49: 28.7 Correl | V49: 1869.020715 | W49: 1869.033812 | X49: 16.59 | Y49: -16.59 | Z49: 18.62938272 | AA49: -2.039382716 | AC49: 0.8280943353 | AD49: 1.741 | AE49: 0 | AI49: 0.6243194306 | AJ49: -0.01875 | AO49: 1870.749514 | AP49: 1870.788805 | AQ49: 27.99642857 | AR49: 22.39570334 | AS49: 5.600725233 | AU49: -0.3709182197 | AV49: -0.141 | BA49: 1878.057618 | BB49: 1878.175491 | BC49: 7.544186047 | BD49: 7.922326175 | BE49: -0.3781401289 | BG49: -0.6968592281 | BH49: -0.1522 | BM49: 1893.145318 | BN49: 1893.498936 | BO49: 16.92093023 | BP49: 18.46571222 | BQ49: -1.544781991 | BS49: 0.9730943984 | BT49: -1.65 | BX49: 34 | BY49: 20.22112676 | BZ49: 20.13018517
A50: 18680218 | B50: 1868.134117 | C50: 49 | D50: 5.7 | G50: 1868.217435 | H50: 1868.2218 | I50: 46.03333333 | J50: 22.55092593 | K50: 23.48240741 | M50: 0.8809903549 | N50: 0.0005 | O50: -0.981997149 | P50: 0.01072 | Q50: -4 | R50: -0.029 | S50: =CORREL(K7011:K10332,O7015:O10336) -> 0.003807417419 | V50: 1869.046909 | W50: 1869.060006 | X50: 23.61111111 | Y50: -23.61111111 | Z50: 19.87604938 | AA50: 3.735061728 | AC50: 0.6024260702 | AD50: 1.741 | AE50: 0 | AI50: -0.0238694233 | AJ50: -0.01875 | AO50: 1870.828096 | AP50: 1870.867387 | AQ50: 21.36551724 | AR50: 22.51332786 | AS50: -1.147810619 | AU50: 0.3127948578 | AV50: -0.141 | BA50: 1878.293364 | BB50: 1878.411236 | BC50: 7.696511628 | BD50: 7.476202144 | BE50: 0.2203094835 | BG50: -0.9948375109 | BH50: -0.1522 | BM50: 1893.852554 | BN50: 1894.206172 | BO50: 20.61472868 | BP50: 19.00508814 | BQ50: 1.609640538 | BS50: 0.8935361904 | BT50: -1.65 | BX50: 35 | BY50: 21.9556338 | BZ50: 20.11842116
A51: 18680219 | B51: 1868.136855 | C51: 50 | D51: 14.5 | G51: 1868.226166 | H51: 1868.230532 | I51: 48.03333333 | J51: 21.81018519 | K51: 26.22314815 | M51: 0.3321199507 | N51: 0.0005 | O51: -0.8736732983 | P51: 0.01072 | Q51: -3 | R51: -0.015 | S51: =CORREL(K7011:K10332,O7014:O10335) -> -0.01666226409 | V51: 1869.073103 | W51: 1869.0862 | X51: 29.21 | Y51: -29.21 | Z51: 20.85753086 | AA51: 8.352469136 | AC51: 0.3120733708 | AD51: 1.741 | AE51: 0 | AI51: -0.6608895088 | AJ51: -0.01875 | AO51: 1870.906677 | AP51: 1870.945968 | AQ51: 21.13793103 | AR51: 24.43958675 | AS51: -3.30165572 | AU51: 0.8501477451 | AV51: -0.141 | BA51: 1878.529109 | BB51: 1878.646982 | BC51: 6.431395349 | BD51: 7.229948914 | BE51: -0.7985535656 | BG51: -0.8273202659 | BH51: -0.1522 | BM51: 1894.55979 | BN51: 1894.913408 | BO51: 19.05096525 | BP51: 18.50982544 | BQ51: 0.5411398109 | BS51: 0.3958824684 | BT51: -1.65 | BX51: 36 | BY51: 21.21408451 | BZ51: 20.10469122
A52: 18680220 | B52: 1868.139593 | C52: 51 | D52: 36.2 | G52: 1868.234897 | H52: 1868.239263 | I52: 12.16666667 | J52: 21.89907407 | K52: -9.732407407 | M52: -0.390201921 | N52: 0.0005 | O52: -0.3565480016 | P52: 0.01072 | Q52: -2 | R52: 0.005 | S52: =CORREL(K7011:K10332,O7013:O10334) -> -0.02933353007 | V52: 1869.099297 | W52: 1869.112394 | X52: 24.07 | Y52: -24.07 | Z52: 21.25975309 | AA52: 2.810246914 | AC52: -0.0117876552 | AD52: 1.741 | AE52: 0 | AI52: -0.9886720481 | AJ52: -0.01875 | AO52: 1870.985259 | AP52: 1871.02455 | AQ52: 18.46551724 | AR52: 24.34421182 | AS52: -5.878694581 | AU52: 0.989707054 | AV52: -0.141 | BA52: 1878.764854 | BB52: 1878.882727 | BC52: 7.7 | BD52: 7.22426416 | BE52: 0.4757358401 | BG52: -0.2726906739 | BH52: -0.1522 | BM52: 1895.267026 | BN52: 1895.620644 | BO52: 17.74418605 | BP52: 17.58905251 | BQ52: 0.1551335389 | BS52: -0.2870090603 | BT52: -1.65 | BX52: 37 | BY52: 22.85 | BZ52: 19.9483662
A53: 18680221 | B53: 1868.14233 | C53: 52 | D53: 23.6 | G53: 1868.243629 | H53: 1868.247994 | I53: 21.725 | J53: 22.36574074 | K53: -0.6407407407 | M53: -0.9087386974 | N53: 0.0005 | O53: 0.3274100677 | P53: 0.01072 | Q53: -1 | R53: 0.024 | S53: =CORREL(K7011:K10332,O7012:O10333) -> -0.02828506146 | V53: 1869.125491 | W53: 1869.138588 | X53: 17.5 | Y53: -17.5 | Z53: 22.35111111 | AA53: -4.851111111 | AC53: -0.3343830025 | AD53: 1.741 | AE53: 0 | AI53: -0.8538439483 | AJ53: -0.01875 | AO53: 1871.063841 | AP53: 1871.103132 | AQ53: 23.63571429 | AR53: 22.18061029 | AS53: 1.455103996 | AU53: 0.6661714331 | AV53: -0.141 | BA53: 1879.0006 | BB53: 1879.118472 | BC53: 6.81954023 | BD53: 7.098941162 | BE53: -0.2794009326 | BG53: 0.4095339151 | BH53: -0.1522 | BM53: 1895.974262 | BN53: 1896.32788 | BO53: 18.93294574 | BP53: 16.88092062 | BQ53: 2.052025115 | BS53: -0.83560586 | BT53: -1.65 | BX53: 38 | BY53: 21.41478873 | BZ53: 19.93582862
A54: 18680222 | B54: 1868.145068 | C54: 53 | D54: 22.5 | G54: 1868.25236 | H54: 1868.256726 | I54: 34.83333333 | J54: 23.59259259 | K54: 11.24074074 | M54: -0.9526817004 | N54: 0.0005 | O54: 0.8581693275 | P54: 0.01072 | Q54: 0 | R54: 0.031 | S54: =CORREL(K7011:K10332,O7011:O10332) -> -0.0139979057 | V54: 1869.151685 | W54: 1869.164782 | X54: 21.84 | Y54: -21.84 | Z54: 24.29888889 | AA54: -2.458888889 | AC54: -0.6210745661 | AD54: 1.741 | AE54: 0 | AI54: -0.3194927756 | AJ54: -0.01875 | AO54: 1871.142423 | AP54: 1871.181714 | AQ54: 18.50344828 | AR54: 21.15227148 | AS54: -2.648823207 | AU54: 0.03092679488 | AV54: -0.141 | BA54: 1879.236345 | BB54: 1879.354218 | BC54: 6.169767442 | BD54: 7.450362351 | BE54: -1.280594909 | BG54: 0.9001330337 | BH54: -0.1522 | BM54: 1896.681498 | BN54: 1897.035116 | BO54: 15.46911197 | BP54: 16.25172166 | BQ54: -0.7826096861 | BS54: -0.993213391 | BT54: -1.65 | BX54: 39 | BY54: 20.08028169 | BZ54: 20.01290141
A55: 18680223 | B55: 1868.147806 | C55: 54 | D55: 21.5 | G55: 1868.261091 | H55: 1868.265457 | I55: 4.766666667 | J55: 22.43703704 | K55: -17.67037037 | M55: -0.4990814555 | N55: 0.0005 | O55: 0.9873816215 | P55: 0.01072 | Q55: 1 | R55: 0.024 | S55: =CORREL(K7011:K10332,O7010:O10331) -> 0.006840983716 | V55: 1869.177878 | W55: 1869.190975 | X55: 28.23333333 | Y55: -28.23333333 | Z55: 25.64765432 | AA55: 2.585679012 | AC55: -0.8410793459 | AD55: 1.741 | AE55: 0 | AI55: 0.3643526175 | AJ55: -0.01875 | AO55: 1871.221004 | AP55: 1871.260295 | AQ55: 31.68275862 | AR55: 21.34856322 | AS55: 10.3341954 | AU55: -0.6187888343 | AV55: -0.141 | BA55: 1879.47209 | BB55: 1879.589963 | BC55: 7.231395349 | BD55: 8.075039354 | BE55: -0.8436440049 | BG55: 0.969549902 | BH55: -0.1522 | BM55: 1897.388734 | BN55: 1897.742352 | BO55: 12.43488372 | BP55: 14.66214371 | BQ55: -2.227259984 | BS55: -0.6860853381 | BT55: -1.65 | BX55: 40 | BY55: 19.79647887 | BZ55: 20.14501408
A56: 18680224 | B56: 1868.150544 | C56: 55 | D56: 14.5 | G56: 1868.269822 | H56: 1868.274188 | I56: 9 | J56: 18.94074074 | K56: -9.940740741 | M56: 0.2151668193 | N56: 0.0005 | O56: 0.6545870813 | P56: 0.01072 | Q56: 2 | R56: 0.005 | S56: =CORREL(K7011:K10332,O7009:O10330) -> 0.02447315011 | V56: 1869.204072 | W56: 1869.217169 | X56: 15.35 | Y56: -15.35 | Z56: 23.8737037 | AA56: -8.523703704 | AC56: -0.9707747178 | AD56: 1.741 | AE56: 0 | AI56: 0.8777133716 | AJ56: -0.01875 | AO56: 1871.299586 | AP56: 1871.338877 | AQ56: 20.30714286 | AR56: 21.67691571 | AS56: -1.369772852 | AU56: -0.9789662909 | AV56: -0.141 | BA56: 1879.707835 | BB56: 1879.825708 | BC56: 7.36744186 | BD56: 8.828269328 | BE56: -1.460827467 | BG56: 0.5853035958 | BH56: -0.1522 | BM56: 1898.09597 | BN56: 1898.449588 | BO56: 15.47829457 | BP56: 13.23310038 | BQ56: 2.245194198 | BS56: -0.05793033048 | BT56: -1.65 | BX56: 41 | BY56: 21.62816901 | BZ56: 20.2411831
A57: 18680225 | B57: 1868.153282 | C57: 56 | D57: 36.3 | G57: 1868.278554 | H57: 1868.282919 | I57: 10.2 | J57: 18.65925926 | K57: -8.459259259 | M57: 0.8170430416 | N57: 0.0005 | O57: 0.01550397082 | P57: 0.01072 | Q57: 3 | R57: -0.015 | S57: =CORREL(K7011:K10332,O7008:O10329) -> 0.03065785018 | V57: 1869.230266 | W57: 1869.243363 | X57: 24.75555556 | Y57: -24.75555556 | Z57: 24.35703704 | AA57: 0.3985185185 | AC57: -0.9962348704 | AD57: 1.741 | AE57: 0 | AI57: 0.9803822844 | AJ57: -0.01875 | AO57: 1871.378168 | AP57: 1871.417459 | AQ57: 16.53103448 | AR57: 21.52978927 | AS57: -4.998754789 | AU57: -0.8810745399 | AV57: -0.141 | BA57: 1879.943581 | BB57: 1880.061453 | BC57: 6.930232558 | BD57: 9.576589741 | BE57: -2.646357183 | BG57: -0.07281276778 | BH57: -0.1522 | BM57: 1898.803206 | BN57: 1899.156824 | BO57: 15.28223938 | BP57: 11.94808746 | BQ57: 3.334151926 | BS57: 0.5973309226 | BT57: -1.65 | BX57: 42 | BY57: 21.5528169 | BZ57: 20.35256338
A58: 18680226 | B58: 1868.15602 | C58: 57 | D58: 16.7 | G58: 1868.287285 | H58: 1868.291651 | I58: 25.575 | J58: 19.82314815 | K58: 5.751851852 | M58: 0.9922140501 | N58: 0.0005 | O58: -0.6308336199 | P58: 0.01072 | Q58: 4 | R58: -0.029 | S58: =CORREL(K7011:K10332,O7007:O10328) -> 0.0224993599 | V58: 1869.25646 | W58: 1869.269557 | X58: 34.12 | Y58: -34.12 | Z58: 26.03604938 | AA58: 8.083950617 | AC58: -0.9147260648 | AD58: 1.741 | AE58: 0 | AI58: 0.6243194306 | AJ58: -0.01875 | AO58: 1871.45675 | AP58: 1871.496041 | AQ58: 18.74137931 | AR58: 21.50244937 | AS58: -2.76107006 | AU58: -0.3709182197 | AV58: -0.141 | BA58: 1880.179326 | BB58: 1880.297199 | BC58: 10.70697674 | BD58: 10.18438029 | BE58: 0.5225964537 | BG58: -0.6968592281 | BH58: -0.1522 | BM58: 1899.510441 | BN58: 1899.864059 | BO58: 11.25813953 | BP58: 10.5591555 | BQ58: 0.6989840339 | BS58: 0.9730943984 | BT58: -1.65 | BX58: 43 | BY58: 21.18028169 | BZ58: 20.54042254
A59: 18680227 | B59: 1868.158757 | C59: 58 | D59: 8.8 | G59: 1868.296016 | H59: 1868.300382 | I59: 35.63333333 | J59: 17.68055556 | K59: 17.95277778 | M59: 0.649195824 | N59: 0.0005 | O59: -0.981997149 | P59: 0.01072 | V59: 1869.282654 | W59: 1869.295751 | X59: 35.75 | Y59: -35.75 | Z59: 24.69493827 | AA59: 11.05506173 | AC59: -0.735000165 | AD59: 1.741 | AE59: 0 | AI59: -0.02386942328 | AJ59: -0.01875 | AO59: 1871.535332 | AP59: 1871.574622 | AQ59: 23.13214286 | AR59: 22.03659004 | AS59: 1.095552819 | AU59: 0.3127948578 | AV59: -0.141 | BA59: 1880.415071 | BB59: 1880.532944 | BC59: 13.31860465 | BD59: 10.64277822 | BE59: 2.675826428 | BG59: -0.9948375109 | BH59: -0.1522 | BM59: 1900.217677 | BN59: 1900.571295 | BO59: 6.308527132 | BP59: 9.951004493 | BQ59: -3.642477361 | BS59: 0.8935361904 | BT59: -1.65 | BX59: 44 | BY59: 21.88661972 | BZ59: 20.64523944
A60: 18680228 | B60: 1868.161495 | C60: 59 | D60: 13.5 | G60: 1868.304748 | H60: 1868.309113 | I60: 16.56666667 | J60: 17.73240741 | K60: -1.165740741 | M60: -0.03286848498 | N60: 0.0005 | O60: -0.8736732983 | P60: 0.01072 | S60: 369 cycles | V60: 1869.308848 | W60: 1869.321945 | X60: 13.24444444 | Y60: -13.24444444 | Z60: 24.15666667 | AA60: -10.91222222 | AC60: -0.4763549217 | AD60: 1.741 | AE60: 0 | AI60: -0.6608895087 | AJ60: -0.01875 | AO60: 1871.613913 | AP60: 1871.653204 | AQ60: 24.09310345 | AR60: 20.29904215 | AS60: 3.794061303 | AU60: 0.8501477451 | AV60: -0.141 | BA60: 1880.650817 | BB60: 1880.768689 | BC60: 13.21046512 | BD60: 11.31034928 | BE60: 1.900115834 | BG60: -0.8273202659 | BH60: -0.1522 | BM60: 1900.924913 | BN60: 1901.278531 | BO60: 6.18957529 | BP60: 10.1956212 | BQ60: -4.006045913 | BS60: 0.3958824684 | BT60: -1.65 | BX60: 45 | BY60: 20.7528169 | BZ60: 20.6624507
A61: 18680229 | B61: 1868.164233 | C61: 60 | D61: 10 | G61: 1868.313479 | H61: 1868.317845 | I61: 9.633333333 | J61: 17.39907407 | K61: -7.765740741 | M61: -0.6977670473 | N61: 0.0005 | O61: -0.3565480016 | P61: 0.01072 | S61: 75% | V61: 1869.335042 | W61: 1869.348139 | X61: 28.42 | Y61: -28.42 | Z61: 24.32555556 | AA61: 4.094444444 | AC61: -0.1665619107 | AD61: 1.741 | AE61: 0 | AI61: -0.9886720481 | AJ61: -0.01875 | AO61: 1871.692495 | AP61: 1871.731786 | AQ61: 17.14137931 | AR61: 19.99824849 | AS61: -2.856869184 | AU61: 0.989707054 | AV61: -0.141 | BA61: 1880.886562 | BB61: 1881.004435 | BC61: 14.43488372 | BD61: 12.65531052 | BE61: 1.779573198 | BG61: -0.2726906739 | BH61: -0.1522 | BM61: 1901.632149 | BN61: 1901.985767 | BO61: 6.179069767 | BP61: 9.905526457 | BQ61: -3.726456689 | BS61: -0.2870090603 | BT61: -1.65 | BX61: 46 | BY61: 20.79225352 | BZ61: 20.79673239
A62: 18680301 | B62: 1868.166971 | C62: 61 | D62: 16.3 | G62: 1868.32221 | H62: 1868.326576 | I62: 32.2 | J62: 19.58796296 | K62: 12.61203704 | M62: -0.9982529386 | N62: 0.0005 | O62: 0.3274100676 | P62: 0.01072 | S62: Lag = +0.01072 | V62: 1869.361236 | W62: 1869.374333 | X62: 32.61111111 | Y62: -32.61111111 | Z62: 23.28493827 | AA62: 9.32617284 | AC62: 0.1611153909 | AD62: 1.741 | AE62: 0 | AI62: -0.8538439483 | AJ62: -0.01875 | AO62: 1871.771077 | AP62: 1871.810368 | AQ62: 23.38965517 | AR62: 21.33249863 | AS62: 2.057156541 | AU62: 0.6661714331 | AV62: -0.141 | BA62: 1881.122307 | BB62: 1881.24018 | BC62: 12.28965517 | BD62: 14.26034928 | BE62: -1.97069411 | BG62: 0.4095339151 | BH62: -0.1522 | BM62: 1902.339385 | BN62: 1902.693003 | BO62: 6.43255814 | BP62: 9.837143788 | BQ62: -3.404585649 | BS62: -0.83560586 | BT62: -1.65 | BX62: 47 | BY62: 18.34366197 | BZ62: 20.9024507
A63: 18680302 | B63: 1868.169709 | C63: 62 | D63: 5 | G63: 1868.330942 | H63: 1868.335307 | I63: 15.55 | J63: 18.16481481 | K63: -2.614814815 | M63: -0.7773957527 | N63: 0.0005 | O63: 0.3837694081 | P63: -0.0464 | V63: 1869.38743 | W63: 1869.400527 | X63: 9.77 | Y63: -9.77 | Z63: 22.07407407 | AA63: -12.30407407 | AC63: 0.4714932123 | AD63: 1.741 | AE63: 0 | AI63: -0.3194927757 | AJ63: -0.01875 | AO63: 1871.849659 | AP63: 1871.88895 | AQ63: 23.31071429 | AR63: 21.77502737 | AS63: 1.535686918 | AU63: 0.03092679489 | AV63: -0.141 | BA63: 1881.358053 | BB63: 1881.475925 | BC63: 10.29534884 | BD63: 15.31538804 | BE63: -5.020039205 | BG63: 0.9001330337 | BH63: -0.1522 | BM63: 1903.046621 | BN63: 1903.400239 | BO63: 9.995752896 | BP63: 9.91862527 | BQ63: 0.07712762596 | BS63: -0.993213391 | BT63: -1.65 | BX63: 48 | BY63: 18.51549296 | BZ63: 20.92952113
A64: 18680303 | B64: 1868.172447 | C64: 63 | D64: 11.1 | G64: 1868.339673 | H64: 1868.344039 | I64: 5.233333333 | J64: 14.825 | K64: -9.591666667 | M64: -0.1505393673 | N64: 0.0005 | O64: -0.2995842704 | P64: -0.0464 | S64: 1958 to 1986 | V64: 1869.413624 | W64: 1869.426721 | X64: 23.38888889 | Y64: -23.38888889 | Z64: 19.76740741 | AA64: 3.621481481 | AC64: 0.7312452835 | AD64: 1.741 | AE64: 0 | AI64: 0.3643526175 | AJ64: -0.01875 | AO64: 1871.92824 | AP64: 1871.967531 | AQ64: 16.04482759 | AR64: 21.92739464 | AS64: -5.88256705 | AU64: -0.6187888343 | AV64: -0.141 | BA64: 1881.593798 | BB64: 1881.711671 | BC64: 13.23953488 | BD64: 15.98644747 | BE64: -2.74691259 | BG64: 0.969549902 | BH64: -0.1522 | BM64: 1903.753857 | BN64: 1904.107475 | BO64: 14.63643411 | BP64: 10.8643617 | BQ64: 3.772072405 | BS64: -0.6860853381 | BT64: -1.65 | BX64: 49 | BY64: 16.93802817 | BZ64: 20.96752113
A65: 18680304 | B65: 1868.175185 | C65: 64 | D65: 10.2 | G65: 1868.348404 | H65: 1868.35277 | I65: 6 | J65: 16.03981481 | K65: -10.03981481 | M65: 0.5549370291 | N65: 0.0005 | O65: -0.8427591393 | P65: -0.0464 | Q65: Cycles | R65: Actual | S65: 28.7 Correl | V65: 1869.439818 | W65: 1869.452915 | X65: 16.87 | Y65: -16.87 | Z65: 20.77358025 | AA65: -3.903580247 | AC65: 0.912481185 | AD65: 1.741 | AE65: 0 | AI65: 0.8777133716 | AJ65: -0.01875 | AO65: 1872.006822 | AP65: 1872.046113 | AQ65: 17.6 | AR65: 21.54195402 | AS65: -3.941954023 | AU65: -0.9789662909 | AV65: -0.141 | BA65: 1881.829543 | BB65: 1881.947416 | BC65: 19.47209302 | BD65: 18.10246815 | BE65: 1.369624877 | BG65: 0.5853035958 | BH65: -0.1522 | BM65: 1904.461093 | BN65: 1904.814711 | BO65: 12.86744186 | BP65: 11.89301893 | BQ65: 0.9744229279 | BS65: -0.05793033048 | BT65: -1.65 | BX65: 50 | BY65: 19.07816901 | BZ65: 20.89140845
A66: 18680305 | B66: 1868.177922 | C66: 65 | D66: 41 | G66: 1868.357136 | H66: 1868.361501 | I66: 29.9 | J66: 17.76574074 | K66: 12.13425926 | M66: 0.9705945156 | N66: 0.0005 | O66: -0.9915976407 | P66: -0.0464 | Q66: -4 | R66: -0.053 | S66: =CORREL(K10333:K13653,O10337:O13657) -> -0.05645125889 | V66: 1869.466012 | W66: 1869.479109 | X66: 15.39 | Y66: -15.39 | Z66: 19.03024691 | AA66: -3.640246914 | AC66: 0.9957410322 | AD66: 1.741 | AE66: 0 | AI66: 0.9803822844 | AJ66: -0.01875 | AO66: 1872.085404 | AP66: 1872.124695 | AQ66: 28.53928571 | AR66: 21.65441981 | AS66: 6.8848659 | AU66: -0.8810745399 | AV66: -0.141 | BA66: 1882.065289 | BB66: 1882.183161 | BC66: 21.3755814 | BD66: 18.93399269 | BE66: 2.441588702 | BG66: -0.07281276778 | BH66: -0.1522 | BM66: 1905.168329 | BN66: 1905.521947 | BO66: 14.66679537 | BP66: 13.10977173 | BQ66: 1.557023635 | BS66: 0.5973309226 | BT66: -1.65 | BX66: 51 | BY66: 21.53521127 | BZ66: 20.86290141
A67: 18680306 | B67: 1868.18066 | C67: 66 | D67: 25.6 | G67: 1868.365867 | H67: 1868.370233 | I67: 12.76666667 | J67: 17.35092593 | K67: -4.584259259 | M67: 0.8793536882 | N67: 0.0005 | O67: -0.6764565856 | P67: -0.0464 | Q67: -3 | R67: -0.028 | S67: =CORREL(K10333:K13653,O10336:O13656) -> -0.04229095368 | V67: 1869.492206 | W67: 1869.505303 | X67: 23.22222222 | Y67: -23.22222222 | Z67: 17.86234568 | AA67: 5.359876543 | AC67: 0.9720849463 | AD67: 1.741 | AE67: 0 | AI67: 0.6243194306 | AJ67: -0.01875 | AO67: 1872.163986 | AP67: 1872.203277 | AQ67: 22.72413793 | AR67: 21.88660372 | AS67: 0.8375342091 | AU67: -0.3709182197 | AV67: -0.141 | BA67: 1882.301034 | BB67: 1882.418907 | BC67: 20.20232558 | BD67: 19.34586563 | BE67: 0.8564599483 | BG67: -0.6968592281 | BH67: -0.1522 | BM67: 1905.875565 | BN67: 1906.229183 | BO67: 11.99147287 | BP67: 14.37971144 | BQ67: -2.388238571 | BS67: 0.9730943984 | BT67: -1.65 | BX67: 52 | BY67: 20.97957746 | BZ67: 20.89332394
A68: 18680307 | B68: =B67 + (1/365.25) -> 1868.183398 | C68: 67 | D68: 16.6 | G68: =G67+0.00873130763355885 -> 1868.374598 | H68: =H67+0.00873130763355885 -> 1868.378964 | I68: 5.575 | J68: 17.53796296 | K68: -11.96296296 | M68: 0.3288655697 | N68: 0.0005 | O68: -0.04479397614 | P68: -0.0464 | Q68: -2 | R68: 0.01 | S68: =CORREL(K10333:K13653,O10335:O13655) -> -0.008342241238 | V68: =V67+0.0261939229006765 -> 1869.518399 | W68: 1869.531496 | X68: 14.99 | Y68: -14.99 | Z68: 19.41790123 | AA68: -4.427901235 | AC68: 0.8440529576 | AD68: 1.741 | AE68: 0 | AI68: -0.02386942325 | AJ68: -0.01875 | AO68: =AO67+0.0785817687020297 -> 1872.242567 | AP68: =AP67+0.0785817687020297 -> 1872.281858 | AQ68: 24.50344828 | AR68: 22.0152983 | AS68: 2.488149973 | AU68: 0.3127948578 | AV68: -0.141 | BA68: =BA67+0.235745306106089 -> 1882.536779 | BB68: =BB67+0.235745306106089 -> 1882.654652 | BC68: 19.35813953 | BD68: 20.28035433 | BE68: -0.922214797 | BG68: -0.9948375109 | BH68: -0.1522 | BM68: =BM67+0.707235918318267 -> 1906.582801 | BN68: =BN67+0.707235918318267 -> 1906.936419 | BO68: 14.82015504 | BP68: 14.99185431 | BQ68: -0.171699274 | BS68: 0.8935361904 | BT68: -1.65 | BX68: 53 | BY68: 21.7443662 | BZ68: 20.89208451
A69: 18680308 | B69: 1868.186136 | C69: 68 | D69: 9.6 | G69: 1868.383329 | H69: 1868.387695 | I69: 27.5 | J69: 18.71574074 | K69: 8.784259259 | M69: -0.3933743978 | N69: 0.0005 | O69: 0.6078282326 | P69: -0.0464 | Q69: -1 | R69: 0.043 | S69: =CORREL(K10333:K13653,O10334:O13654) -> 0.0295098986 | V69: 1869.544593 | W69: 1869.55769 | X69: 22.3 | Y69: -22.3 | Z69: 19.35135802 | AA69: 2.948641975 | AC69: 0.6253922746 | AD69: 1.741 | AE69: 0 | AI69: -0.6608895087 | AJ69: -0.01875 | AO69: 1872.321149 | AP69: 1872.36044 | AQ69: 20.62413793 | AR69: 22.51904762 | AS69: -1.894909688 | AU69: 0.8501477451 | AV69: -0.141 | BA69: 1882.772524 | BB69: 1882.890397 | BC69: 32.25465116 | BD69: 20.48203392 | BE69: 11.77261724 | BG69: -0.8273202659 | BH69: -0.1522 | BM69: 1907.290037 | BN69: 1907.643655 | BO69: 15.44749035 | BP69: 15.39818789 | BQ69: 0.0493024586 | BS69: 0.3958824684 | BT69: -1.65 | BX69: 54 | BY69: 22.21338028 | BZ69: 20.85016901
A70: 18680309 | B70: 1868.188874 | C70: =ROUND(365.25*(B70-INT(B70)),0) -> 69 | D70: 8.1 | G70: 1868.392061 | H70: 1868.396426 | I70: 25.16666667 | J70: 19.60462963 | K70: 5.562037037 | M70: -0.9101724267 | N70: 0.0005 | O70: 0.9760408561 | P70: -0.0464 | Q70: 0 | R70: 0.056 | S70: =CORREL(K10333:K13653,O10333:O13653) -> 0.05355402891 | V70: 1869.570787 | W70: 1869.583884 | X70: 12.73 | Y70: -12.73 | Z70: 20.50160494 | AA70: -7.771604938 | AC70: 0.3395812017 | AD70: 1.741 | AE70: 0 | AI70: -0.9886720481 | AJ70: -0.01875 | AO70: 1872.399731 | AP70: 1872.439022 | AQ70: 18.15357143 | AR70: 23.80218938 | AS70: -5.648617953 | AU70: 0.989707054 | AV70: -0.141 | BA70: 1883.00827 | BB70: 1883.126142 | BC70: =AVERAGEIFS(GeoAA,DecDate,">"&BA70,DecDate,"<="&BA71) -> 21.91860465 | BD70: 19.74288663 | BE70: 2.17571802 | BG70: -0.2726906739 | BH70: -0.1522 | BM70: 1907.997272 | BN70: 1908.35089 | BO70: 17.12984496 | BP70: 16.09370899 | BQ70: 1.03613597 | BS70: -0.2870090603 | BT70: -1.65 | BX70: 55 | BY70: 23.32816901 | BZ70: 20.87171831
A71: 18680310 | B71: 1868.191612 | C71: 70 | D71: 8.5 | G71: 1868.400792 | H71: 1868.405158 | I71: 28.46666667 | J71: 18.9787037 | K71: 9.487962963 | M71: -0.9516279091 | N71: 0.0005 | O71: 0.8875531155 | P71: -0.0464 | Q71: 1 | R71: 0.043 | S71: =CORREL(K10333:K13653,O10332:O13652) -> 0.05253963391 | V71: 1869.596981 | W71: 1869.610078 | X71: 22.1 | Y71: -22.1 | Z71: 21.35160494 | AA71: 0.7483950617 | AC71: 0.01730819745 | AD71: 1.741 | AE71: 0 | AI71: -0.8538439483 | AJ71: -0.01875 | AO71: 1872.478313 | AP71: 1872.517604 | AQ71: 25.47931034 | AR71: 24.6702381 | AS71: 0.8090722496 | AU71: 0.6661714331 | AV71: -0.141 | BA71: 1883.244015 | BB71: 1883.361888 | BC71: 15.99651163 | BD71: 18.97996673 | BE71: -2.983455107 | BG71: 0.4095339151 | BH71: -0.1522 | BM71: 1908.704508 | BN71: 1909.058126 | BO71: 17.8620155 | BP71: 15.62422871 | BQ71: 2.23778679 | BS71: -0.83560586 | BT71: -1.65 | BX71: 56 | BY71: 20.7056338 | BZ71: 20.96709859
A72: 18680311 | B72: 1868.19435 | C72: 71 | D72: 12.5 | G72: 1868.409523 | H72: 1868.413889 | I72: 17.23333333 | J72: 19.20462963 | K72: -1.971296296 | M72: -0.496090492 | N72: 0.0005 | O72: 0.3837694081 | P72: -0.0464 | Q72: 2 | R72: 0.01 | S72: =CORREL(K10333:K13653,O10331:O13651) -> 0.02694136029 | V72: 1869.623175 | W72: 1869.636272 | X72: 23.77 | Y72: -23.77 | Z72: 22.59728395 | AA72: 1.172716049 | AC72: -0.3068232439 | AD72: 1.741 | AE72: 0 | AI72: -0.3194927757 | AJ72: -0.01875 | AO72: 1872.556895 | AP72: 1872.596185 | AQ72: 24.46896552 | AR72: 24.06715928 | AS72: 0.4018062397 | AU72: 0.0309267949 | AV72: -0.141 | BA72: 1883.47976 | BB72: 1883.597633 | BC72: 18.70574713 | BD72: 18.28539309 | BE72: 0.4203540349 | BG72: 0.9001330337 | BH72: -0.1522 | BM72: 1909.411744 | BN72: 1909.765362 | BO72: 15.50503876 | BP72: 15.32710667 | BQ72: 0.1779320849 | BS72: -0.993213391 | BT72: -1.65 | BX72: 57 | BY72: 19.39295775 | BZ72: 20.94752113
A73: 18680312 | B73: 1868.197087 | C73: 72 | D73: 7.2 | G73: 1868.418255 | H73: 1868.42262 | I73: 15.83333333 | J73: 20.84074074 | K73: -5.007407407 | M73: 0.218532908 | N73: 0.0005 | O73: -0.2995842704 | P73: -0.0464 | Q73: 3 | R73: -0.028 | S73: =CORREL(K10333:K13653,O10330:O13650) -> -0.01126307523 | V73: 1869.649369 | W73: 1869.662466 | X73: =AVERAGEIFS(GeoAA,DecDate,">"&V73,DecDate,"<="&V74) -> 22.79 | Y73: -22.79 | Z73: 23.04061728 | AA73: -0.250617284 | AC73: -0.5980100817 | AD73: 1.741 | AE73: 0 | AI73: 0.3643526174 | AJ73: -0.01875 | AO73: 1872.635476 | AP73: 1872.674767 | AQ73: 20.57857143 | AR73: 24.66064587 | AS73: -4.082074439 | AU73: -0.6187888343 | AV73: -0.141 | BA73: 1883.715506 | BB73: 1883.833378 | BC73: 15.05465116 | BD73: 17.80671092 | BE73: -2.752059758 | BG73: 0.969549902 | BH73: -0.1522 | BM73: 1910.11898 | BN73: 1910.472598 | BO73: 18.29343629 | BP73: 14.64321348 | BQ73: 3.650222814 | BS73: -0.6860853381 | BT73: -1.65 | BX73: 58 | BY73: 21.81830986 | BZ73: 20.9623662
A74: 18680313 | B74: 1868.199825 | C74: 73 | D74: 4.6 | G74: 1868.426986 | H74: 1868.431352 | I74: 14 | J74: 19.96666667 | K74: -5.966666667 | M74: =SIN((2*PI()*(H74-2000+N74)/0.074195756) + 2.57488197) -> 0.8190262971 | N74: =N73 -> 0.0005 | O74: =SIN((2*PI()*(H74-2000+P74)/0.0785817687020297) + 3.39124283) -> -0.8427591393 | P74: =P73 -> -0.0464 | Q74: 4 | R74: -0.053 | S74: =CORREL(K10333:K13653,O10329:O13649) -> -0.04419739267 | V74: 1869.675563 | W74: 1869.68866 | X74: 27.22222222 | Y74: -27.22222222 | Z74: 21.48135802 | AA74: 5.740864198 | AC74: -0.8249866442 | AD74: 1.741 | AE74: 0 | AI74: 0.8777133715 | AJ74: -0.01875 | AO74: 1872.714058 | AP74: 1872.753349 | AQ74: 29.14827586 | AR74: 24.85604817 | AS74: 4.292227696 | AU74: -0.9789662909 | AV74: -0.141 | BA74: 1883.951251 | BB74: 1884.069124 | BC74: 12.81976744 | BD74: 15.77053521 | BE74: -2.950767769 | BG74: 0.5853035958 | BH74: -0.1522 | BM74: 1910.826216 | BN74: 1911.179834 | BO74: 19.12713178 | BP74: =AVERAGE(BO70:BO78) -> 13.91071886 | BQ74: 5.216412925 | BS74: -0.05793033048 | BT74: -1.65 | BX74: 59 | BY74: 22.86408451 | BZ74: 20.96332394
A75: 18680314 | B75: 1868.202563 | C75: 74 | D75: 3 | G75: 1868.435717 | H75: 1868.440083 | I75: 24.26666667 | J75: 18.98148148 | K75: 5.285185185 | M75: 0.9917787064 | N75: 0.0005 | O75: -0.9915976407 | P75: -0.0464 | V75: 1869.701757 | W75: 1869.714854 | X75: 23.04 | Y75: =-X75 -> -23.04 | Z75: 22.77469136 | AA75: 0.265308642 | AC75: -0.9633817241 | AD75: 1.741 | AE75: 0 | AI75: 0.9803822844 | AJ75: -0.01875 | AO75: 1872.79264 | AP75: 1872.831931 | AQ75: 36.35172414 | AR75: 25.08611111 | AS75: 11.26561303 | AU75: =SIN((2*PI()*(AP75-2000+AV75)/0.707235918318267) + 5.263726692) -> -0.8810745399 | AV75: =AV74 -> -0.141 | BA75: 1884.186996 | BB75: 1884.304869 | BC75: 14.50930233 | BD75: 14.86433366 | BE75: -0.3550313345 | BG75: =SIN((2*PI()*(BB75-2000+BH75)/2.1217077549548) + 0.707378034) -> -0.07281276778 | BH75: =BH74 -> -0.1522 | BM75: 1911.533452 | BN75: 1911.88707 | BO75: 10.44147287 | BP75: 13.32696517 | BQ75: -2.885492303 | BS75: =SIN((2*PI()*(BN75-2000+BT75)/6.3651232648644) + 1.28299025) -> 0.5973309226 | BT75: =BT74 -> -1.65 | BX75: 60 | BY75: 22.63239437 | BZ75: 21.18473239
A76: 18680315 | B76: 1868.205301 | C76: 75 | D76: 7.7 | G76: 1868.444449 | H76: 1868.448814 | I76: 14.8 | J76: 17.87777778 | K76: -3.077777778 | M76: 0.6465692417 | N76: 0.0005 | O76: -0.6764565856 | P76: -0.0464 | S76: 369 cycles | V76: 1869.727951 | W76: 1869.741048 | X76: 34.43333333 | Y76: -34.43333333 | Z76: 22.03518519 | AA76: 12.39814815 | AC76: -0.9983353943 | AD76: 1.741 | AE76: 0 | AI76: 0.6243194307 | AJ76: -0.01875 | AO76: 1872.871222 | AP76: 1872.910512 | AQ76: 17.29642857 | AR76: 25.14952107 | AS76: -7.853092501 | AU76: -0.3709182197 | AV76: -0.141 | BA76: 1884.422742 | BB76: 1884.540614 | BC76: 13.95116279 | BD76: 14.94288663 | BE76: -0.9917238409 | BG76: -0.6968592281 | BH76: -0.1522 | BM76: 1912.240688 | BN76: 1912.594306 | BO76: =AVERAGEIFS(GeoAA,DecDate,">"&BM76,DecDate,"<="&BM77) -> 9.317374517 | BP76: 12.95030712 | BQ76: -3.6329326 | BS76: 0.9730943984 | BT76: -1.65 | BX76: 61 | BY76: 22.16408451 | BZ76: 21.29574648
A77: 18680316 | B77: 1868.208039 | C77: 76 | D77: 7.3 | G77: 1868.45318 | H77: 1868.457546 | I77: 20.3 | J77: 17.59259259 | K77: 2.707407407 | M77: -0.03631455886 | N77: 0.0005 | O77: -0.04479397617 | P77: -0.0464 | S77: 95% | V77: 1869.754145 | W77: 1869.767242 | X77: 18.98 | Y77: -18.98 | Z77: =AVERAGE(X73:X81) -> 21.30407407 | AA77: -2.324074074 | AC77: -0.9260945663 | AD77: 1.741 | AE77: 0 | AI77: =SIN((2*PI()*(W77-2000+AJ77)/0.235745306106089) + 0.083216746) -> -0.02386942323 | AJ77: =AJ76 -> -0.01875 | AO77: 1872.949803 | AP77: 1872.989094 | AQ77: =AVERAGEIFS(GeoAA,DecDate,">"&AO77,DecDate,"<="&AO78) -> 29.84482759 | AR77: =AVERAGE(AQ73:AQ81) -> 24.45680077 | AS77: 5.38802682 | AU77: 0.3127948578 | AV77: -0.141 | BA77: 1884.658487 | BB77: 1884.77636 | BC77: 15.05 | BD77: 14.89512163 | BE77: 0.1548783748 | BG77: -0.9948375109 | BH77: -0.1522 | BM77: 1912.947924 | BN77: 1913.301542 | BO77: 8.665116279 | BP77: 13.32494105 | BQ77: -4.659824775 | BS77: 0.8935361904 | BT77: -1.65 | BX77: 62 | BY77: 20.9471831 | BZ77: 21.46067606
A78: 18680317 | B78: 1868.210777 | C78: 77 | D78: 16 | G78: 1868.461911 | H78: 1868.466277 | I78: 19.63333333 | J78: 17.93333333 | K78: 1.7 | M78: -0.7002328817 | N78: 0.0005 | O78: 0.6078282326 | P78: -0.0464 | S78: Lag = -0.0464 | V78: 1869.780339 | W78: 1869.793436 | X78: 8.266666667 | Y78: -8.266666667 | Z78: 20.23185185 | AA78: -11.96518519 | AC78: -0.7544159713 | AD78: 1.741 | AE78: 0 | AI78: -0.6608895087 | AJ78: -0.01875 | AO78: 1873.028385 | AP78: 1873.067676 | AQ78: 22.38275862 | AR78: 24.77297482 | AS78: -2.390216201 | AU78: 0.850147745 | AV78: -0.141 | BA78: 1884.894232 | BB78: 1885.012105 | BC78: 13.92906977 | BD78: 14.79279604 | BE78: -0.8637262764 | BG78: -0.8273202659 | BH78: -0.1522 | BM78: 1913.65516 | BN78: 1914.008778 | BO78: 8.85503876 | BP78: 13.70361973 | BQ78: -4.848580973 | BS78: 0.3958824684 | BT78: -1.65 | BX78: 63 | BY78: 20.70211268 | BZ78: 21.50464789
A79: 18680318 | B79: 1868.213515 | C79: 78 | D79: 8 | G79: 1868.470643 | H79: 1868.475008 | I79: 16.3 | J79: 18.39259259 | K79: -2.092592593 | M79: -0.9984507381 | N79: 0.0005 | O79: 0.976040856 | P79: -0.0464 | V79: 1869.806533 | W79: 1869.81963 | X79: 24.37 | Y79: -24.37 | Z79: 19.27382716 | AA79: 5.09617284 | AC79: -0.5017332949 | AD79: 1.741 | AE79: 0 | AI79: -0.9886720481 | AJ79: -0.01875 | AO79: 1873.106967 | AP79: 1873.146258 | AQ79: 20.22413793 | AR79: 24.29419814 | AS79: -4.070060208 | AU79: 0.989707054 | AV79: -0.141 | BA79: 1885.129978 | BB79: 1885.24785 | BC79: 13.7627907 | BD79: 15.91333868 | BE79: -2.150547982 | BG79: -0.2726906739 | BH79: -0.1522 | BM79: 1914.362396 | BN79: 1914.716014 | BO79: 11.87606178 | BP79: 13.46529071 | BQ79: -1.58922893 | BS79: -0.2870090603 | BT79: -1.65 | BX79: 64 | BY79: 20.84084507 | BZ79: =AVERAGE(BY67:BY91) -> 21.36467606
A80: 18680319 | B80: 1868.216252 | C80: 79 | D80: 19.6 | G80: 1868.479374 | H80: 1868.48374 | I80: 18.53333333 | J80: =AVERAGE(I76:I84) -> 18.01018519 | K80: =I80-J80 -> 0.5231481481 | M80: -0.7752222153 | N80: 0.0005 | O80: -0.2175396513 | P80: -0.03 | V80: 1869.832727 | W80: 1869.845824 | X80: 15.44444444 | Y80: -15.44444444 | Z80: 19.17716049 | AA80: -3.732716049 | AC80: -0.195177893 | AD80: 1.741 | AE80: 0 | AI80: -0.8538439483 | AJ80: -0.01875 | AO80: 1873.185549 | AP80: 1873.22484 | AQ80: 26.05 | AR80: 22.48998358 | AS80: 3.56001642 | AU80: 0.6661714331 | AV80: -0.141 | BA80: 1885.365723 | BB80: 1885.483595 | BC80: 16.70348837 | BD80: 16.54421723 | BE80: 0.1592711396 | BG80: 0.4095339151 | BH80: -0.1522 | BM80: 1915.069632 | BN80: 1915.42325 | BO80: 14.47209302 | BP80: 14.43070845 | BQ80: 0.04138457394 | BS80: -0.83560586 | BT80: -1.65 | BX80: 65 | BY80: 19.76549296 | BZ80: 21.2351831
A81: 18680320 | B81: 1868.21899 | C81: 80 | D81: 58.7 | G81: 1868.488105 | H81: 1868.492471 | I81: 14.66666667 | J81: 19.65833333 | K81: -4.991666667 | M81: -0.1471296349 | N81: 0.0005 | O81: 0.06600191462 | P81: -0.0423 | S81: 1987 to 2009 | V81: 1869.85892 | W81: 1869.872017 | X81: 17.19 | Y81: -17.19 | Z81: 15.93148148 | AA81: 1.258518519 | AC81: 0.1323343902 | AD81: 1.741 | AE81: 0 | AI81: -0.3194927757 | AJ81: -0.01875 | AO81: 1873.26413 | AP81: 1873.303421 | AQ81: 18.23448276 | AR81: 22.7719896 | AS81: -4.537506842 | AU81: 0.0309267949 | AV81: -0.141 | BA81: 1885.601468 | BB81: 1885.719341 | BC81: 18.27586207 | BD81: =AVERAGE(BC77:BC85) -> 17.33711129 | BE81: 0.9387507796 | BG81: 0.9001330337 | BH81: -0.1522 | BM81: 1915.776868 | BN81: 1916.130486 | BO81: 18.87674419 | BP81: 16.32079854 | BQ81: 2.555945647 | BS81: -0.993213391 | BT81: -1.65 | BX81: 66 | BY81: =AVERAGEIFS(GeoAA,Day,">"&BX80,Day,"<="&BX81) -> 20.58028169 | BZ81: 21.13884507
A82: 18680321 | B82: 1868.221728 | C82: 81 | D82: 48.1 | G82: 1868.496836 | H82: 1868.501202 | I82: 18.9 | J82: 21.15833333 | K82: -2.258333333 | M82: 0.557802205 | N82: 0.0005 | O82: -0.590825609 | P82: -0.0423 | Q82: Cycles | R82: Actual | S82: 28.7 Correl | V82: 1869.885114 | W82: 1869.898211 | X82: 13.14 | Y82: -13.14 | Z82: 17.29259259 | AA82: -4.152592593 | AC82: 0.4456375022 | AD82: 1.741 | AE82: 0 | AI82: 0.3643526174 | AJ82: -0.01875 | AO82: 1873.342712 | AP82: 1873.382003 | AQ82: 23.42413793 | AR82: 21.56819923 | AS82: =AQ82-AR82 -> 1.855938697 | AU82: -0.6187888343 | AV82: -0.141 | BA82: 1885.837213 | BB82: 1885.955086 | BC82: 14.13372093 | BD82: 17.73956607 | BE82: -3.605845139 | BG82: 0.969549902 | BH82: -0.1522 | BM82: 1916.484104 | BN82: 1916.837721 | BO82: 21.7015444 | BP82: 17.59228863 | BQ82: 4.109255767 | BS82: -0.6860853381 | BT82: -1.65 | BX82: =BX81+1 -> 67 | BY82: 22.0915493 | BZ82: 21.08008451
A83: 18680322 | B83: 1868.224466 | C83: 82 | D83: 31.3 | G83: 1868.505568 | H83: 1868.509933 | I83: 18.13333333 | J83: 21.23611111 | K83: -3.102777778 | M83: 0.9714187812 | N83: 0.0005 | O83: -0.9711992639 | P83: -0.0423 | Q83: -4 | R83: -0.038 | S83: =CORREL(K13654:K16236,O13658:O16240) -> -0.03776650134 | V83: 1869.911308 | W83: 1869.924405 | X83: 18.6 | Y83: -18.6 | Z83: 18.09876543 | AA83: 0.5012345679 | AC83: 0.7110910751 | AD83: 1.741 | AE83: 0 | AI83: 0.8777133715 | AJ83: -0.01875 | AO83: 1873.421294 | AP83: 1873.460585 | AQ83: 24.83928571 | AR83: 21.21302682 | AS83: 3.626258894 | AU83: -0.9789662909 | AV83: -0.141 | BA83: 1886.072959 | BB83: 1886.190831 | BC83: 22.90465116 | BD83: 18.25532834 | BE83: 4.649322819 | BG83: 0.5853035958 | BH83: -0.1522 | BM83: 1917.191339 | BN83: 1917.544957 | BO83: 16.98217054 | BP83: 18.57816288 | BQ83: -1.595992338 | BS83: -0.05793033048 | BT83: -1.65 | BX83: 68 | BY83: 23.56478873 | BZ83: 21.04515493
A84: 18680323 | B84: 1868.227204 | C84: 83 | D84: 49.7 | G84: 1868.514299 | H84: 1868.518665 | I84: 20.825 | J84: 22.2212963 | K84: -1.396296296 | M84: 0.8777065662 | N84: 0.0005 | O84: -0.8971379895 | P84: -0.0423 | Q84: -3 | R84: -0.02 | S84: =CORREL(K13654:K16236,O13657:O16239) -> -0.02002732063 | V84: 1869.937502 | W84: 1869.950599 | X84: 22.17 | Y84: -22.17 | Z84: 16.49654321 | AA84: 5.67345679 | AC84: =SIN((2*PI()*(W84-2000+AE84)/0.5) + AD84) -> 0.9001925009 | AD84: =AD83 -> 1.741 | AE84: 0 | AI84: 0.9803822844 | AJ84: -0.01875 | AO84: 1873.499876 | AP84: 1873.539167 | AQ84: 20.1137931 | AR84: 20.36091954 | AS84: -0.2471264368 | AU84: -0.88107454 | AV84: -0.141 | BA84: 1886.308704 | BB84: 1886.426577 | BC84: 20.1872093 | BD84: 18.6483516 | BE84: 1.538857703 | BG84: -0.07281276778 | BH84: -0.1522 | BM84: 1917.898575 | BN84: 1918.252193 | BO84: 19.13023256 | BP84: 19.30544731 | BQ84: -0.1752147496 | BS84: 0.5973309226 | BT84: -1.65 | BX84: 69 | BY84: 21.3971831 | BZ84: 21.14025352
A85: 18680324 | B85: 1868.229942 | C85: 84 | D85: 48.2 | G85: 1868.52303 | H85: 1868.527396 | I85: =AVERAGEIFS(GeoAA,DecDate,">"&G85,DecDate,"<="&G86) -> 29.63333333 | J85: 21.88796296 | K85: 7.74537037 | M85: 0.3256072787 | N85: 0.0005 | O85: -0.4032958793 | P85: -0.0423 | Q85: -2 | R85: 0.007 | S85: =CORREL(K13654:K16236,O13656:O16238) -> 0.007082865987 | V85: 1869.963696 | W85: 1869.976793 | X85: 5.222222222 | Y85: -5.222222222 | Z85: 18.0382716 | AA85: -12.81604938 | AC85: 0.9926373481 | AD85: 1.741 | AE85: 0 | AI85: 0.6243194307 | AJ85: -0.01875 | AO85: 1873.578458 | AP85: 1873.617748 | AQ85: 19.83448276 | AR85: 18.9894636 | AS85: 0.8450191571 | AU85: -0.3709182197 | AV85: -0.141 | BA85: 1886.544449 | BB85: 1886.662322 | BC85: 21.0872093 | BD85: 18.36527666 | BE85: 2.721932638 | BG85: -0.6968592281 | BH85: -0.1522 | BM85: 1918.605811 | BN85: 1918.959429 | BO85: 26.32818533 | BP85: 19.42960751 | BQ85: 6.898577814 | BS85: 0.9730943984 | BT85: -1.65 | BX85: 70 | BY85: 21.12394366 | BZ85: 21.30411268
A86: 18680325 | B86: 1868.232679 | C86: 85 | D86: 46.2 | G86: 1868.531762 | H86: 1868.536127 | I86: 33.8 | J86: 22.48888889 | K86: 11.31111111 | M86: -0.3965421976 | N86: 0.0005 | O86: 0.279252855 | P86: -0.0423 | Q86: -1 | R86: 0.031 | S86: =CORREL(K13654:K16236,O13655:O16237) -> 0.03087890089 | V86: 1869.98989 | W86: 1870.002987 | X86: 31.23 | Y86: -31.23 | Z86: 19.58259259 | AA86: =X86-Z86 -> 11.64740741 | AC86: 0.9784995147 | AD86: 1.741 | AE86: 0 | AI86: -0.0238694232 | AJ86: -0.01875 | AO86: 1873.657039 | AP86: 1873.69633 | AQ86: 19.01071429 | AR86: 18.56063218 | AS86: 0.4500821018 | AU86: 0.3127948578 | AV86: -0.141 | BA86: 1886.780195 | BB86: 1886.898067 | BC86: 18.67209302 | BD86: 18.02785649 | BE86: 0.6442365381 | BG86: -0.9948375109 | BH86: -0.1522 | BM86: 1919.313047 | BN86: 1919.666665 | BO86: 20.10852713 | BP86: 19.5940778 | BQ86: 0.5144493331 | BS86: 0.8935361904 | BT86: -1.65 | BX86: 71 | BY86: 20.81619718 | BZ86: 21.39616901
A87: 18680326 | B87: 1868.235417 | C87: 86 | D87: 17.1 | G87: 1868.540493 | H87: 1868.544859 | I87: 20.33333333 | J87: 22.16296296 | K87: -1.82962963 | M87: -0.9115953343 | N87: 0.0005 | O87: 0.8311360749 | P87: -0.0423 | Q87: 0 | R87: 0.04 | S87: =CORREL(K13654:K16236,O13654:O16236) -> 0.04022635488 | V87: 1870.016084 | W87: 1870.029181 | X87: 15.52222222 | Y87: -15.52222222 | Z87: 19.68259259 | AA87: -4.16037037 | AC87: 0.8592970257 | AD87: 1.741 | AE87: 0 | AI87: -0.6608895087 | AJ87: -0.01875 | AO87: 1873.735621 | AP87: 1873.774912 | AQ87: 19.1862069 | AR87: 18.08783525 | AS87: 1.098371648 | AU87: 0.850147745 | AV87: -0.141 | BA87: 1887.01594 | BB87: 1887.133813 | BC87: 18.57093023 | BD87: 18.36609938 | BE87: 0.2048308533 | BG87: -0.8273202659 | BH87: -0.1522 | BM87: 1920.020283 | BN87: 1920.373901 | BO87: 17.72790698 | BP87: 18.3911606 | BQ87: -0.6632536191 | BS87: 0.3958824684 | BT87: -1.65 | BX87: 72 | BY87: 23.87887324 | BZ87: 21.39228169
A88: 18680327 | B88: 1868.238155 | C88: 87 | D88: 12.6 | G88: 1868.549224 | H88: 1868.55359 | I88: 25.16666667 | J88: 20.75925926 | K88: 4.407407407 | M88: -0.9505628033 | N88: 0.0005 | O88: 0.9941214883 | P88: -0.0423 | Q88: 1 | R88: 0.031 | S88: =CORREL(K13654:K16236,O13653:O16235) -> 0.03075145036 | V88: 1870.042278 | W88: 1870.055375 | X88: 9.95 | Y88: -9.95 | Z88: 19.2245679 | AA88: -9.274567901 | AC88: 0.6478290375 | AD88: 1.741 | AE88: 0 | AI88: -0.9886720481 | AJ88: -0.01875 | AO88: 1873.814203 | AP88: 1873.853494 | AQ88: 12.55517241 | AR88: 16.79649699 | AS88: -4.241324576 | AU88: 0.989707054 | AV88: -0.141 | BA88: 1887.251685 | BB88: 1887.369558 | BC88: 17.3 | BD88: 17.83767561 | BE88: -0.5376756066 | BG88: -0.2726906739 | BH88: -0.1522 | BM88: 1920.727519 | BN88: 1921.081137 | BO88: 18.42162162 | BP88: 17.66144483 | BQ88: 0.7601767881 | BS88: -0.2870090603 | BT88: -1.65 | BX88: 73 | BY88: 21.29084507 | BZ88: 21.45684507
A89: 18680328 | B89: 1868.240893 | C89: 88 | D89: 6.8 | G89: 1868.557956 | H89: 1868.562321 | I89: 15.53333333 | J89: 20.38611111 | K89: -4.852777778 | M89: -0.4930936301 | N89: 0.0005 | O89: 0.6919464089 | P89: -0.0423 | Q89: 2 | R89: 0.007 | S89: =CORREL(K13654:K16236,O13652:O16234) -> 0.006887600454 | V89: 1870.068472 | W89: 1870.081569 | X89: 29.32 | Y89: -29.32 | Z89: 19.07790123 | AA89: 10.24209877 | AC89: 0.3668015515 | AD89: 1.741 | AE89: 0 | AI89: -0.8538439483 | AJ89: -0.01875 | AO89: 1873.892785 | AP89: 1873.932075 | AQ89: 13.70689655 | AR89: 16.59972633 | AS89: -2.892829776 | AU89: 0.6661714331 | AV89: -0.141 | BA89: 1887.487431 | BB89: 1887.605303 | BC89: 14.15581395 | BD89: 17.02100894 | BE89: -2.865194986 | BG89: 0.4095339151 | BH89: -0.1522 | BM89: 1921.434755 | BN89: 1921.788373 | BO89: 15.58953488 | BP89: 16.59258178 | BQ89: -1.003046901 | BS89: -0.83560586 | BT89: -1.65 | BX89: 74 | BY89: 21.06126761 | BZ89: 21.59830986
A90: 18680329 | B90: 1868.243631 | C90: 89 | D90: 4.7 | G90: 1868.566687 | H90: 1868.571053 | I90: 20.075 | J90: 18.66018519 | K90: 1.414814815 | M90: 0.2218963984 | N90: 0.0005 | O90: 0.06600191464 | P90: -0.0423 | Q90: 3 | R90: -0.02 | S90: =CORREL(K13654:K16236,O13651:O16233) -> -0.02019903426 | V90: 1870.094666 | W90: 1870.107763 | X90: 31.08888889 | Y90: -31.08888889 | Z90: 21.09395062 | AA90: 9.994938272 | AC90: 0.04638939741 | AD90: 1.741 | AE90: 0 | AI90: -0.3194927757 | AJ90: -0.01875 | AO90: 1873.971366 | AP90: 1874.010657 | AQ90: 14.375 | AR90: 15.78171866 | AS90: -1.406718664 | AU90: 0.03092679491 | AV90: -0.141 | BA90: 1887.723176 | BB90: 1887.841049 | BC90: 15.23908046 | BD90: 16.35343788 | BE90: -1.114357421 | BG90: 0.9001330337 | BH90: -0.1522 | BM90: 1922.141991 | BN90: 1922.495609 | BO90: 20.35697674 | BP90: 14.94289539 | BQ90: 5.414081357 | BS90: -0.993213391 | BT90: -1.65 | BX90: 75 | BY90: 20.17746479 | BZ90: 21.67171831
A91: 18680330 | B91: 1868.246369 | C91: 90 | D91: 27.1 | G91: 1868.575418 | H91: 1868.579784 | I91: 15.96666667 | J91: 18.29907407 | K91: -2.332407407 | M91: 0.8209998147 | N91: 0.0005 | O91: -0.590825609 | P91: -0.0423 | Q91: 4 | R91: -0.038 | S91: =CORREL(K13654:K16236,O13650:O16232) -> -0.03783431635 | V91: 1870.12086 | W91: 1870.133957 | X91: 14.04 | Y91: -14.04 | Z91: 20.01506173 | AA91: -5.975061728 | AC91: -0.2790037363 | AD91: 1.741 | AE91: 0 | AI91: 0.3643526174 | AJ91: -0.01875 | AO91: 1874.049948 | AP91: 1874.089239 | AQ91: 19.16896552 | AR91: 15.45179256 | AS91: 3.717172961 | AU91: -0.6187888343 | AV91: -0.141 | BA91: 1887.958921 | BB91: 1888.076794 | BC91: 17.17790698 | BD91: 15.61067302 | BE91: =BC91-BD91 -> 1.567233954 | BG91: 0.969549902 | BH91: -0.1522 | BM91: 1922.849227 | BN91: 1923.202845 | BO91: 10.87528958 | BP91: 15.13791532 | BQ91: =BO91-BP91 -> -4.262625749 | BS91: -0.6860853381 | BT91: -1.65 | BX91: 76 | BY91: 18.03591549 | BZ91: 21.77597183
A92: 18680331 | B92: 1868.249107 | C92: 91 | D92: 22 | G92: 1868.58415 | H92: 1868.588515 | I92: 5.5 | J92: 18.16574074 | K92: -12.66574074 | M92: 0.9913315707 | N92: 0.0005 | O92: -0.9711992639 | P92: -0.0423 | S92: 287 cycles | V92: 1870.147054 | W92: 1870.160151 | X92: 14.47777778 | Y92: -14.47777778 | Z92: 21.6037037 | AA92: -7.125925926 | AC92: -0.574439337 | AD92: 1.741 | AE92: 0 | AI92: 0.8777133715 | AJ92: -0.01875 | AO92: 1874.12853 | AP92: 1874.167821 | AQ92: 13.21724138 | AR92: 14.38507115 | AS92: -1.167829776 | AU92: -0.9789662909 | AV92: -0.141 | BA92: 1888.194667 | BB92: 1888.312539 | BC92: 18.14883721 | BD92: 14.88121566 | BE92: 3.267621551 | BG92: 0.5853035958 | BH92: -0.1522 | BM92: 1923.556463 | BN92: 1923.910081 | BO92: 10.41472868 | BP92: 14.8915329 | BQ92: -4.476804213 | BS92: -0.05793033048 | BT92: -1.65 | BX92: 77 | BY92: 17.74225352 | BZ92: 21.87478873
A93: 18680401 | B93: 1868.251844 | C93: 92 | D93: 33.1 | G93: 1868.592881 | H93: 1868.597247 | I93: 17.46666667 | J93: 16.25462963 | K93: 1.212037037 | M93: 0.6439349719 | N93: 0.0005 | O93: -0.8971379895 | P93: -0.0423 | S93: 85% | V93: 1870.173248 | W93: 1870.186345 | X93: 20.85 | Y93: -20.85 | Z93: 23.63024691 | AA93: -2.780246914 | AC93: -0.8081955293 | AD93: 1.741 | AE93: =AE92 -> 0 | AI93: 0.9803822844 | AJ93: -0.01875 | AO93: 1874.207112 | AP93: 1874.246403 | AQ93: 18.34285714 | AR93: 14.65825123 | AS93: 3.684605911 | AU93: -0.88107454 | AV93: -0.141 | BA93: 1888.430412 | BB93: 1888.548284 | BC93: 12.8372093 | BD93: 14.19310196 | BE93: -1.355892661 | BG93: -0.07281276778 | BH93: -0.1522 | BM93: 1924.263699 | BN93: 1924.617317 | BO93: 9.510465116 | BP93: 14.7929634 | BQ93: -5.282498279 | BS93: 0.5973309226 | BT93: -1.65 | BX93: 78 | BY93: 19.33591549 | BZ93: 22.04067606
A94: 18680402 | B94: 1868.254582 | C94: 93 | D94: 73.3 | G94: 1868.601612 | H94: 1868.605978 | I94: 14.1 | J94: 16.80277778 | K94: -2.702777778 | M94: -0.03976020098 | N94: 0.0005 | O94: -0.4032958793 | P94: -0.0423 | S94: Lag = -0.0423 | V94: 1870.199441 | W94: 1870.212538 | X94: 23.36666667 | Y94: -23.36666667 | Z94: 22.66135802 | AA94: 0.705308642 | AC94: -0.9551731553 | AD94: 1.741 | AE94: 0 | AI94: 0.6243194307 | AJ94: -0.01875 | AO94: 1874.285693 | AP94: 1874.324984 | AQ94: 12.47241379 | AR94: 14.47204433 | AS94: -1.999630542 | AU94: -0.3709182197 | AV94: -0.141 | BA94: 1888.666157 | BB94: 1888.78403 | BC94: 15.07906977 | BD94: 14.29387716 | BE94: 0.7851926104 | BG94: -0.6968592281 | BH94: -0.1522 | BM94: 1924.970935 | BN94: 1925.324552 | BO94: 11.48100775 | BP94: 14.72801722 | BQ94: -3.247009468 | BS94: 0.9730943984 | BT94: -1.65 | BX94: 79 | BY94: 20.7443662 | BZ94: 22.23194366
A95: 18680403 | B95: 1868.25732 | C95: 94 | D95: 19.1 | G95: 1868.610343 | H95: 1868.614709 | I95: 30.55 | J95: 15.58703704 | K95: 14.96296296 | M95: -0.7026903906 | N95: 0.0005 | O95: 0.279252855 | P95: -0.0423 | V95: 1870.225635 | W95: 1870.238732 | X95: 21.52 | Y95: -21.52 | Z95: 21.0354321 | AA95: 0.4845679012 | AC95: -0.9995907522 | AD95: 1.741 | AE95: 0 | AI95: -0.02386942318 | AJ95: -0.01875 | AO95: 1874.364275 | AP95: 1874.403566 | AQ95: 16.04137931 | AR95: 14.65949644 | AS95: 1.381882868 | AU95: 0.3127948578 | AV95: -0.141 | BA95: 1888.901902 | BB95: 1889.019775 | BC95: 11.9872093 | BD95: 14.06434109 | BE95: -2.077131783 | BG95: -0.9948375109 | BH95: -0.1522 | BM95: 1925.67817 | BN95: 1926.031788 | BO95: 21.86370656 | BP95: 14.72082514 | BQ95: 7.14288142 | BS95: 0.8935361904 | BT95: -1.65 | BX95: 80 | BY95: 22.45492958 | BZ95: 22.23107042
A96: 18680404 | B96: 1868.260058 | C96: 95 | D96: 12.1 | G96: 1868.619075 | H96: 1868.62344 | I96: 19.13333333 | J96: 15.46296296 | K96: 3.67037037 | M96: -0.9986366663 | N96: 0.0005 | O96: 0.8311360749 | P96: -0.0423 | V96: 1870.251829 | W96: 1870.264926 | X96: 29.82 | Y96: -29.82 | Z96: 21.28876543 | AA96: 8.531234568 | AC96: -0.9366790591 | AD96: 1.741 | AE96: 0 | AI96: -0.6608895087 | AJ96: -0.01875 | AO96: 1874.442857 | AP96: 1874.482148 | AQ96: 9.585714286 | AR96: 14.5688971 | AS96: -4.983182813 | AU96: 0.850147745 | AV96: -0.141 | BA96: 1889.137648 | BB96: 1889.25552 | BC96: 12.00581395 | BD96: 13.27343699 | BE96: -1.267623036 | BG96: -0.8273202659 | BH96: -0.1522 | BM96: 1926.385406 | BN96: 1926.739024 | BO96: 15.51046512 | BP96: 15.58446653 | BQ96: -0.07400141005 | BS96: 0.3958824684 | BT96: -1.65 | BX96: 81 | BY96: 23.08309859 | BZ96: 22.24859155
A97: 18680405 | B97: 1868.262796 | C97: 96 | D97: 6.2 | G97: 1868.627806 | H97: 1868.632172 | I97: 7.966666667 | J97: 20.97407407 | K97: -13.00740741 | M97: -0.7730394608 | N97: 0.0005 | O97: 0.9941214883 | P97: -0.0423 | V97: 1870.278023 | W97: 1870.29112 | X97: 28.18888889 | Y97: -28.18888889 | Z97: 23.16901235 | AA97: 5.019876543 | AC97: -0.7731931078 | AD97: 1.741 | AE97: 0 | AI97: -0.9886720481 | AJ97: -0.01875 | AO97: 1874.521439 | AP97: 1874.56073 | AQ97: 15.0137931 | AR97: 14.67502737 | AS97: 0.3387657362 | AU97: 0.989707054 | AV97: -0.141 | BA97: 1889.373393 | BB97: 1889.491266 | BC97: 11.10697674 | BD97: 12.21529745 | BE97: -1.10832071 | BG97: -0.2726906739 | BH97: -0.1522 | BM97: 1927.092642 | BN97: 1927.44626 | BO97: 17.53449612 | BP97: 17.79986132 | BQ97: -0.2653651991 | BS97: -0.2870090603 | BT97: -1.65 | BX97: 82 | BY97: 23.48943662 | BZ97: 22.23904225
A98: 18680406 | B98: 1868.265534 | C98: 97 | D98: 4.3 | G98: 1868.636537 | H98: 1868.640903 | I98: 20.46666667 | J98: 20.39259259 | K98: 0.07407407407 | M98: -0.1437181532 | N98: 0.0005 | O98: 0.6919464089 | P98: -0.0423 | V98: 1870.304217 | W98: 1870.317314 | X98: 20.6 | Y98: -20.6 | Z98: 22.34234568 | AA98: -1.742345679 | AC98: -0.5266869133 | AD98: 1.741 | AE98: 0 | AI98: -0.8538439483 | AJ98: -0.01875 | AO98: 1874.600021 | AP98: 1874.639311 | AQ98: 12.03103448 | AR98: 13.82697044 | AS98: -1.795935961 | AU98: 0.6661714331 | AV98: -0.141 | BA98: 1889.609138 | BB98: 1889.727011 | BC98: 15.0627907 | BD98: 12.10625353 | BE98: 2.956537171 | BG98: 0.4095339151 | BH98: -0.1522 | BM98: 1927.799878 | BN98: 1928.153496 | BO98: 15.00501931 | BP98: 18.78801808 | BQ98: -3.78299878 | BS98: -0.83560586 | BT98: -1.65 | BX98: 83 | BY98: 24.11971831 | BZ98: 22.27343662
A99: 18680407 | B99: 1868.268272 | C99: 98 | D99: 3.8 | G99: 1868.645269 | H99: 1868.649634 | I99: 9.133333333 | J99: 22.1037037 | K99: -12.97037037 | M99: 0.5606607489 | N99: 0.0005 | O99: 0.06600191467 | P99: -0.0423 | V99: 1870.330411 | W99: 1870.343508 | X99: 16.45555556 | Y99: -16.45555556 | Z99: 22.35049383 | AA99: -5.894938272 | AC99: -0.2236286425 | AD99: 1.741 | AE99: 0 | AI99: -0.3194927758 | AJ99: -0.01875 | AO99: 1874.678602 | AP99: 1874.717893 | AQ99: 16.06206897 | AR99: 13.48360701 | AS99: 2.578461959 | AU99: 0.03092679492 | AV99: -0.141 | BA99: 1889.844884 | BB99: 1889.962756 | BC99: 13.17325581 | BD99: 11.69333363 | BE99: 1.479922184 | BG99: 0.9001330337 | BH99: -0.1522 | BM99: 1928.507114 | BN99: 1928.860732 | BO99: 20.29224806 | BP99: 19.64512403 | BQ99: 0.6471240343 | BS99: -0.993213391 | BT99: -1.65 | BX99: 84 | BY99: 22.76690141 | BZ99: 22.27608451
A100: 18680408 | B100: 1868.271009 | C100: 99 | D100: 9.7 | G100: 1868.654 | H100: 1868.658366 | I100: 14.85 | J100: 20.19814815 | K100: -5.348148148 | M100: 0.972231497 | N100: 0.0005 | O100: -0.590825609 | P100: -0.0423 | V100: 1870.356605 | W100: 1870.369702 | X100: 16.32 | Y100: -16.32 | Z100: 21.50506173 | AA100: -5.185061728 | AC100: 0.1034413585 | AD100: 1.741 | AE100: 0 | AI100: 0.3643526174 | AJ100: -0.01875 | AO100: 1874.757184 | AP100: 1874.796475 | AQ100: 18.35357143 | AR100: 12.75410509 | AS100: 5.599466338 | AU100: -0.6187888343 | AV100: -0.141 | BA100: 1890.080629 | BB100: 1890.198502 | BC100: 10.05977011 | BD100: 12.20147317 | BE100: -2.14170305 | BG100: 0.969549902 | BH100: -0.1522 | BM100: 1929.21435 | BN100: 1929.567968 | BO100: 18.64806202 | BP100: 19.43834582 | BQ100: -0.7902838054 | BS100: -0.6860853381 | BT100: -1.65 | BX100: 85 | BY100: 24.24647887 | BZ100: 22.16394366
A101: 18680409 | B101: 1868.273747 | C101: 100 | D101: 4.5 | G101: 1868.662731 | H101: 1868.667097 | I101: 55.1 | J101: 19.05833333 | K101: 36.04166667 | M101: 0.8760490086 | N101: 0.0005 | O101: -0.9711992639 | P101: -0.0423 | V101: 1870.382799 | W101: 1870.395896 | X101: 31.4 | Y101: -31.4 | Z101: 19.81728395 | AA101: 11.58271605 | AC101: 0.4194045265 | AD101: 1.741 | AE101: 0 | AI101: 0.8777133715 | AJ101: -0.01875 | AO101: 1874.835766 | AP101: 1874.875057 | AQ101: 14.17241379 | AR101: 13.58749316 | AS101: 0.5849206349 | AU101: -0.9789662909 | AV101: -0.141 | BA101: 1890.316374 | BB101: 1890.434247 | BC101: 8.625581395 | BD101: 12.98131813 | BE101: -4.355736731 | BG101: 0.5853035958 | BH101: -0.1522 | BM101: 1929.921586 | BN101: 1930.275204 | BO101: 30.35328185 | BP101: 19.61246296 | BQ101: 10.74081889 | BS101: -0.05793033048 | BT101: -1.65 | BX101: 86 | BY101: 25.70070423 | BZ101: 22.17126761
A102: 18680410 | B102: 1868.276485 | C102: 101 | D102: 12.8 | G102: 1868.671463 | H102: 1868.675828 | I102: 12.23333333 | J102: 22.16944444 | K102: -9.936111111 | M102: 0.3223451163 | N102: 0.0005 | O102: -0.8971379896 | P102: -0.0423 | V102: 1870.408993 | W102: 1870.42209 | X102: 13.41 | Y102: -13.41 | Z102: 18.40740741 | AA102: -4.997407407 | AC102: 0.6903348748 | AD102: 1.741 | AE102: 0 | AI102: 0.9803822844 | AJ102: -0.01875 | AO102: 1874.914348 | AP102: 1874.953638 | AQ102: 10.71034483 | AR102: 13.16413519 | AS102: -2.453790367 | AU102: -0.88107454 | AV102: -0.141 | BA102: 1890.55212 | BB102: 1890.669992 | BC102: 11.85581395 | BD102: 13.42408298 | BE102: -1.568269031 | BG102: -0.07281276778 | BH102: -0.1522 | BM102: 1930.628822 | BN102: 1930.98244 | BO102: 18.40387597 | BP102: 19.26793238 | BQ102: -0.8640564152 | BS102: 0.5973309226 | BT102: -1.65 | BX102: 87 | BY102: 22.78239437 | BZ102: 22.21138028
A103: 18680411 | B103: 1868.279223 | C103: 102 | D103: 8.5 | G103: 1868.680194 | H103: 1868.68456 | I103: 29.5 | J103: 22.37685185 | K103: 7.123148148 | M103: -0.3997052826 | N103: 0.0005 | O103: -0.4032958793 | P103: -0.0423 | V103: 1870.435187 | W103: 1870.448284 | X103: 23.44 | Y103: -23.44 | Z103: 17.21962963 | AA103: 6.22037037 | AC103: 0.8871417362 | AD103: 1.741 | AE103: 0 | AI103: 0.6243194307 | AJ103: -0.01875 | AO103: 1874.992929 | AP103: 1875.03222 | AQ103: 9.382142857 | AR103: 13.42735359 | AS103: -4.045210728 | AU103: -0.3709182197 | AV103: -0.141 | BA103: 1890.787865 | BB103: 1890.905738 | BC103: 11.3627907 | BD103: 13.85018118 | BE103: -2.487390478 | BG103: -0.6968592281 | BH103: -0.1522 | BM103: 1931.336058 | BN103: 1931.689676 | BO103: 19.19496124 | BP103: 19.10988863 | BQ103: 0.08507261414 | BS103: 0.9730943984 | BT103: -1.65 | BX103: 88 | BY103: 23.3084507 | BZ103: 22.20419718
A104: 18680412 | B104: 1868.281961 | C104: 103 | D104: 6.8 | G104: 1868.688925 | H104: 1868.693291 | I104: 13.4 | J104: 24.58425926 | K104: -11.18425926 | M104: -0.9130074034 | N104: 0.0005 | O104: 0.279252855 | P104: -0.0423 | V104: 1870.461381 | W104: 1870.474478 | X104: 13.91111111 | Y104: -13.91111111 | Z104: 17.40481481 | AA104: -3.493703704 | AC104: 0.9886933219 | AD104: 1.741 | AE104: 0 | AI104: -0.02386942315 | AJ104: -0.01875 | AO104: 1875.071511 | AP104: 1875.110802 | AQ104: 9.475862069 | AR104: 12.79516968 | AS104: -3.319307608 | AU104: 0.3127948578 | AV104: -0.141 | BA104: 1891.02361 | BB104: 1891.141483 | BC104: 16.56046512 | BD104: 15.67602097 | BE104: 0.8844441474 | BG104: -0.9948375109 | BH104: -0.1522 | BM104: 1932.043294 | BN104: 1932.396912 | BO104: 20.0027027 | BP104: 18.4595441 | BQ104: 1.543158607 | BS104: 0.8935361904 | BT104: -1.65 | BX104: 89 | BY104: 23.31126761 | BZ104: 22.26521127
A105: 18680413 | B105: 1868.284699 | C105: 104 | D105: 15.3 | G105: 1868.697657 | H105: 1868.702022 | I105: 8.875 | J105: 25.15277778 | K105: -16.27777778 | M105: -0.9494863957 | N105: 0.0005 | O105: 0.8311360749 | P105: -0.0423 | V105: 1870.487575 | W105: 1870.500672 | X105: 14.63 | Y105: -14.63 | Z105: 16.88814815 | AA105: -2.258148148 | AC105: 0.9840857099 | AD105: 1.741 | AE105: 0 | AI105: -0.6608895086 | AJ105: -0.01875 | AO105: 1875.150093 | AP105: 1875.189384 | AQ105: 17.0862069 | AR105: 12.08117132 | AS105: 5.005035577 | AU105: 0.850147745 | AV105: -0.141 | BA105: 1891.259355 | BB105: 1891.377228 | BC105: 19.0244186 | BD105: 17.09198521 | BE105: 1.932433396 | BG105: -0.8273202659 | BH105: -0.1522 | BM105: 1932.75053 | BN105: 1933.104148 | BO105: 17.07751938 | BP105: 18.26596098 | BQ105: -1.188441598 | BS105: 0.3958824684 | BT105: -1.65 | BX105: 90 | BY105: 23.91267606 | BZ105: 22.31188732
A106: 18680414 | B106: 1868.287436 | C106: 105 | D106: 27.7 | G106: 1868.706388 | H106: 1868.710754 | I106: 35.96666667 | J106: 23.92314815 | K106: 12.04351852 | M106: -0.4900909055 | N106: 0.0005 | O106: 0.9941214883 | P106: -0.0423 | V106: 1870.513769 | W106: 1870.526866 | X106: 15.5 | Y106: -15.5 | Z106: 16.65481481 | AA106: -1.154814815 | AC106: 0.8738136343 | AD106: 1.741 | AE106: 0 | AI106: -0.9886720481 | AJ106: -0.01875 | AO106: 1875.228675 | AP106: 1875.267966 | AQ106: 11.20357143 | AR106: 11.5350301 | AS106: -0.3314586754 | AU106: 0.989707054 | AV106: -0.141 | BA106: 1891.495101 | BB106: 1891.612973 | BC106: 15.09186047 | BD106: 18.85878107 | BE106: -3.766920609 | BG106: -0.2726906739 | BH106: -0.1522 | BM106: 1933.457766 | BN106: 1933.811384 | BO106: 14.43372093 | BP106: 16.66441658 | BQ106: -2.230695646 | BS106: -0.2870090603 | BT106: -1.65 | BX106: 91 | BY106: 25.36197183 | BZ106: 22.38256338
A107: 18680415 | B107: 1868.290174 | C107: 106 | D107: 31.5 | G107: 1868.715119 | H107: 1868.719485 | I107: 22.33333333 | J107: 26.49722222 | K107: -4.163888889 | M107: 0.2252572506 | N107: 0.0005 | O107: 0.6919464089 | P107: -0.0423 | V107: 1870.539962 | W107: 1870.553059 | X107: 9.91 | Y107: -9.91 | Z107: 17.6845679 | AA107: -7.774567901 | AC107: 0.6697173644 | AD107: 1.741 | AE107: 0 | AI107: -0.8538439484 | AJ107: -0.01875 | AO107: 1875.307256 | AP107: 1875.346547 | AQ107: 14.4 | AR107: 11.52928298 | AS107: 2.870717022 | AU107: 0.6661714331 | AV107: -0.141 | BA107: 1891.730846 | BB107: 1891.848719 | BC107: 18.89767442 | BD107: 19.73785084 | BE107: -0.8401764234 | BG107: 0.4095339151 | BH107: -0.1522 | BM107: 1934.165001 | BN107: 1934.518619 | BO107: 13.58262548 | BP107: 16.66058367 | BQ107: -3.077958191 | BS107: -0.83560586 | BT107: -1.65 | BX107: 92 | BY107: 22.06971831 | BZ107: 22.29766197
A108: 18680416 | B108: 1868.292912 | C108: 107 | D108: 30.3 | G108: 1868.72385 | H108: 1868.728216 | I108: 29 | J108: 24.58240741 | K108: 4.417592593 | M108: 0.8229635709 | N108: 0.0005 | O108: 0.06600191469 | P108: -0.0423 | V108: 1870.566156 | W108: 1870.579253 | X108: 18.12222222 | Y108: -18.12222222 | Z108: 18.41790123 | AA108: -0.2956790123 | AC108: 0.3937113764 | AD108: 1.741 | AE108: 0 | AI108: -0.3194927758 | AJ108: -0.01875 | AO108: 1875.385838 | AP108: 1875.425129 | AQ108: 10.37241379 | AR108: 12.13778051 | AS108: -1.765366721 | AU108: 0.03092679492 | AV108: -0.141 | BA108: 1891.966591 | BB108: 1892.084464 | BC108: 29.60581395 | BD108: 20.77221777 | BE108: 8.833596186 | BG108: 0.9001330337 | BH108: -0.1522 | BM108: 1934.872237 | BN108: 1935.225855 | BO108: 14.43914729 | BP108: 17.32892993 | BQ108: -2.88978264 | BS108: -0.993213391 | BT108: -1.65 | BX108: 93 | BY108: 24.0028169 | BZ108: 22.18323944
A109: 18680417 | B109: 1868.29565 | C109: 108 | D109: 12.8 | G109: 1868.732582 | H109: 1868.736947 | I109: 19.96666667 | J109: 25.50833333 | K109: -5.541666667 | M109: 0.9908726485 | N109: 0.0005 | O109: -0.590825609 | P109: -0.0423 | V109: 1870.59235 | W109: 1870.605447 | X109: 11.67 | Y109: -11.67 | Z109: 19.27345679 | AA109: -7.60345679 | AC109: 0.07543132526 | AD109: 1.741 | AE109: 0 | AI109: 0.3643526174 | AJ109: -0.01875 | AO109: 1875.46442 | AP109: 1875.503711 | AQ109: 11.92758621 | AR109: 12.0293514 | AS109: -0.1017651888 | AU109: -0.6187888343 | AV109: -0.141 | BA109: 1892.202337 | BB109: 1892.320209 | BC109: 22.80344828 | BD109: 20.58953043 | BE109: 2.213917847 | BG109: 0.969549902 | BH109: -0.1522 | BM109: 1935.579473 | BN109: 1935.933091 | BO109: 16.90581395 | BP109: 17.25098055 | BQ109: -0.3451665952 | BS109: -0.6860853381 | BT109: -1.65 | BX109: 94 | BY109: 21.1584507 | BZ109: 22.21591549
A110: 18680418 | B110: 1868.298388 | C110: 109 | D110: 21.6 | G110: 1868.741313 | H110: 1868.745679 | I110: 44.03333333 | J110: 25.43703704 | K110: 18.5962963 | M110: 0.6412930459 | N110: 0.0005 | O110: -0.9711992639 | P110: -0.0423 | V110: 1870.618544 | W110: 1870.631641 | X110: 29.3 | Y110: -29.3 | Z110: 23.75012346 | AA110: 5.549876543 | AC110: -0.2509480311 | AD110: 1.741 | AE110: 0 | AI110: 0.8777133715 | AJ110: -0.01875 | AO110: 1875.543002 | AP110: 1875.582293 | AQ110: 9.257142857 | AR110: 11.1826081 | AS110: -1.925465244 | AU110: -0.9789662909 | AV110: -0.141 | BA110: 1892.438082 | BB110: 1892.555955 | BC110: 24.52674419 | BD110: 20.24030562 | BE110: 4.286438564 | BG110: 0.5853035958 | BH110: -0.1522 | BM110: 1936.286709 | BN110: 1936.640327 | BO110: 15.93938224 | BP110: 18.25377986 | BQ110: -2.31439762 | BS110: -0.05793033048 | BT110: -1.65 | BX110: 95 | BY110: 21.98380282 | BZ110: 22.20769014
A111: 18680419 | B111: 1868.301126 | C111: 110 | D111: 54.6 | G111: 1868.750044 | H111: 1868.75441 | I111: 35.4 | J111: 22.23703704 | K111: 13.16296296 | M111: -0.04320537035 | N111: 0.0005 | O111: -0.8971379896 | P111: -0.0423 | V111: 1870.644738 | W111: 1870.657835 | X111: 22.67777778 | Y111: -22.67777778 | Z111: 23.90197531 | AA111: -1.224197531 | AC111: -0.5503822862 | AD111: 1.741 | AE111: 0 | AI111: 0.9803822844 | AJ111: -0.01875 | AO111: 1875.621584 | AP111: 1875.660874 | AQ111: 10.65862069 | AR111: 10.88565955 | AS111: -0.2270388615 | AU111: -0.88107454 | AV111: -0.141 | BA111: 1892.673827 | BB111: 1892.7917 | BC111: 19.76744186 | BD111: 20.78177849 | BE111: -1.01433663 | BG111: -0.07281276778 | BH111: -0.1522 | BM111: 1936.993945 | BN111: 1937.347563 | BO111: 18.36937984 | BP111: 19.23181604 | BQ111: -0.8624361903 | BS111: 0.5973309226 | BT111: -1.65 | BX111: 96 | BY111: 20.88239437 | BZ111: 22.08904225
A112: 18680420 | B112: 1868.303864 | C112: 111 | D112: 30.7 | G112: 1868.758776 | H112: 1868.763141 | I112: 12.26666667 | J112: 22.08888889 | K112: -9.822222222 | M112: -0.7051395448 | N112: 0.0005 | O112: -0.4032958794 | P112: -0.0423 | V112: 1870.670932 | W112: 1870.684029 | X112: 30.04 | Y112: -30.04 | Z112: 24.56753086 | AA112: 5.472469136 | AC112: -0.7907202162 | AD112: 1.741 | AE112: 0 | AI112: 0.6243194307 | AJ112: -0.01875 | AO112: 1875.700165 | AP112: 1875.739456 | AQ112: 14.85862069 | AR112: 10.32933771 | AS112: 4.529282978 | AU112: -0.3709182197 | AV112: -0.141 | BA112: 1892.909573 | BB112: 1893.027445 | BC112: 20.67209302 | BD112: 20.46911699 | BE112: 0.2029760314 | BG112: -0.6968592281 | BH112: -0.1522 | BM112: 1937.701181 | BN112: 1938.054799 | BO112: 25.21007752 | BP112: 20.36544335 | BQ112: 4.844634169 | BS112: 0.9730943984 | BT112: -1.65 | BX112: 97 | BY112: 21.07535211 | BZ112: 21.96507042
A113: 18680421 | B113: 1868.306601 | C113: 112 | D113: 22 | G113: 1868.767507 | H113: 1868.771873 | I113: 21.73333333 | J113: 22.79259259 | K113: -1.059259259 | M113: -0.998810721 | N113: 0.0005 | O113: 0.2792528549 | P113: -0.0423 | V113: 1870.697126 | W113: 1870.710223 | X113: 21.61111111 | Y113: -21.61111111 | Z113: 28.39469136 | AA113: -6.783580247 | AC113: -0.9461559608 | AD113: 1.741 | AE113: 0 | AI113: -0.02386942313 | AJ113: -0.01875 | AO113: 1875.778747 | AP113: 1875.818038 | AQ113: 8.5 | AR113: 10.6066092 | AS113: -2.106609195 | AU113: 0.3127948578 | AV113: -0.141 | BA113: 1893.145318 | BB113: 1893.263191 | BC113: 14.91627907 | BD113: 19.79547358 | BE113: -4.879194511 | BG113: -0.9948375109 | BH113: -0.1522 | BM113: 1938.408417 | BN113: 1938.762035 | BO113: 19.3011583 | BP113: 21.45525925 | BQ113: -2.154100945 | BS113: 0.8935361904 | BT113: -1.65 | BX113: 98 | BY113: 21.47394366 | BZ113: 21.8088169
A114: 18680422 | B114: 1868.309339 | C114: 113 | D114: 13.5 | G114: 1868.776238 | H114: 1868.780604 | I114: 8.233333333 | J114: 28.25555556 | K114: -20.02222222 | M114: -0.7708475151 | N114: 0.0005 | O114: 0.8311360749 | P114: -0.0423 | V114: 1870.72332 | W114: 1870.736417 | X114: 54.92 | Y114: -54.92 | Z114: 28.28135802 | AA114: 26.63864198 | AC114: -0.9999998816 | AD114: 1.741 | AE114: 0 | AI114: -0.6608895086 | AJ114: -0.01875 | AO114: 1875.857329 | AP114: 1875.89662 | AQ114: 9.465517241 | AR114: 10.5460728 | AS114: -1.080555556 | AU114: 0.850147745 | AV114: -0.141 | BA114: 1893.381063 | BB114: 1893.498936 | BC114: 15.88139535 | BD114: 19.73036176 | BE114: -3.848966408 | BG114: -0.8273202659 | BH114: -0.1522 | BM114: 1939.115653 | BN114: 1939.469271 | BO114: 26.10271318 | BP114: 21.83669766 | BQ114: 4.266015517 | BS114: 0.3958824684 | BT114: -1.65 | BX114: 99 | BY114: 22.06408451 | BZ114: 21.58901408
A115: 18680423 | B115: 1868.312077 | C115: 114 | D115: 14.2 | G115: 1868.78497 | H115: 1868.789335 | I115: 7.166666667 | J115: 27.06296296 | K115: -19.8962963 | M115: -0.1403049627 | N115: 0.0005 | O115: 0.9941214883 | P115: -0.0423 | V115: 1870.749514 | W115: 1870.762611 | X115: 16.86666667 | Y115: -16.86666667 | Z115: 28.35802469 | AA115: -11.49135802 | AC115: -0.9464705828 | AD115: 1.741 | AE115: 0 | AI115: -0.9886720481 | AJ115: -0.01875 | AO115: 1875.935911 | AP115: 1875.975201 | AQ115: 8.531034483 | AR115: 10.23550903 | AS115: -1.704474548 | AU115: 0.989707054 | AV115: -0.141 | BA115: 1893.616809 | BB115: 1893.734681 | BC115: 19.96511628 | BD115: 19.24348213 | BE115: 0.7216341442 | BG115: -0.2726906739 | BH115: -0.1522 | BM115: 1939.822889 | BN115: 1940.176507 | BO115: 23.23604651 | BP115: 22.48326932 | BQ115: 0.7527771958 | BS115: -0.2870090603 | BT115: -1.65 | BX115: 100 | BY115: 19.99788732 | BZ115: 21.49087324
A116: 18680424 | B116: 1868.314815 | C116: 115 | D116: 9 | G116: 1868.793701 | H116: 1868.798067 | I116: 21 | J116: 25.07037037 | K116: -4.07037037 | M116: 0.5635126267 | N116: 0.0005 | O116: 0.6919464089 | P116: -0.0423 | V116: 1870.775708 | W116: 1870.788805 | X116: 15.9 | Y116: -15.9 | Z116: 28.47037037 | AA116: -12.57037037 | AC116: -0.7913156783 | AD116: 1.741 | AE116: 0 | AI116: -0.8538439484 | AJ116: -0.01875 | AO116: 1876.014492 | AP116: 1876.053783 | AQ116: 9.393103448 | AR116: 9.947249589 | AS116: -0.5541461412 | AU116: 0.6661714331 | AV116: -0.141 | BA116: 1893.852554 | BB116: 1893.970427 | BC116: 16.08372093 | BD116: 18.92836586 | BE116: -2.844644926 | BG116: 0.4095339151 | BH116: -0.1522 | BM116: 1940.530125 | BN116: 1940.883743 | BO116: 23.78527132 | BP116: 23.6303009 | BQ116: 0.1549704189 | BS116: -0.83560586 | BT116: -1.65 | BX116: 101 | BY116: 19.56126761 | BZ116: 21.33884507
A117: 18680425 | B117: 1868.317553 | C117: 116 | D117: 10.6 | G117: 1868.802432 | H117: 1868.806798 | I117: 35.33333333 | J117: 24.58518519 | K117: 10.74814815 | M117: 0.9730326533 | N117: 0.0005 | O117: 0.06600191472 | P117: -0.0423 | V117: 1870.801902 | W117: 1870.814999 | X117: 52.56666667 | Y117: -52.56666667 | Z117: 26.64037037 | AA117: 25.9262963 | AC117: -0.5511946516 | AD117: 1.741 | AE117: 0 | AI117: -0.3194927758 | AJ117: -0.01875 | AO117: 1876.093074 | AP117: 1876.132365 | AQ117: 12.86785714 | AR117: 9.013533114 | AS117: 3.854324028 | AU117: 0.03092679493 | AV117: -0.141 | BA117: 1894.088299 | BB117: 1894.206172 | BC117: 23.54302326 | BD117: 18.8607948 | BE117: 4.682228459 | BG117: 0.9001330337 | BH117: -0.1522 | BM117: 1941.237361 | BN117: 1941.590979 | BO117: 24.24749035 | BP117: 22.77823372 | BQ117: 1.469256632 | BS117: -0.993213391 | BT117: -1.65 | BX117: 102 | BY117: 18.90915493 | BZ117: 21.16650704
A118: 18680426 | B118: 1868.320291 | C118: 117 | D118: 9.3 | G118: 1868.811164 | H118: 1868.815529 | I118: 69.13333333 | J118: 22.95925926 | K118: 46.17407407 | M118: 0.8743810351 | N118: 0.0005 | O118: -0.5908256089 | P118: -0.0423 | V118: 1870.828096 | W118: 1870.841193 | X118: 10.65 | Y118: -10.65 | Z118: 26.64901235 | AA118: -15.99901235 | AC118: -0.2518900735 | AD118: 1.741 | AE118: 0 | AI118: 0.3643526173 | AJ118: -0.01875 | AO118: 1876.171656 | AP118: 1876.210947 | AQ118: 11.38275862 | AR118: 9.093226601 | AS118: 2.28953202 | AU118: -0.6187888343 | AV118: -0.141 | BA118: 1894.324044 | BB118: 1894.441917 | BC118: 22.21744186 | BD118: 19.25045888 | BE118: 2.966982981 | BG118: 0.969549902 | BH118: -0.1522 | BM118: 1941.944597 | BN118: 1942.298215 | BO118: 20.33875969 | BP118: 22.55467694 | BQ118: -2.215917246 | BS118: -0.6860853381 | BT118: -1.65 | BX118: 103 | BY118: 21.1028169 | BZ118: 20.94766197
A119: 18680427 | B119: 1868.323029 | C119: 118 | D119: 45 | G119: 1868.819895 | H119: 1868.824261 | I119: 33.3 | J119: 23.35555556 | K119: 9.944444444 | M119: 0.3190791213 | N119: 0.0005 | O119: -0.9711992639 | P119: -0.0423 | V119: 1870.85429 | W119: 1870.867387 | X119: 29.99 | Y119: -29.99 | Z119: 23.68123457 | AA119: 6.308765432 | AC119: 0.07446075592 | AD119: 1.741 | AE119: 0 | AI119: 0.8777133715 | AJ119: -0.01875 | AO119: 1876.250238 | AP119: 1876.289529 | AQ119: 6.462068966 | AR119: 9.106978654 | AS119: -2.644909688 | AU119: -0.9789662909 | AV119: -0.141 | BA119: 1894.55979 | BB119: 1894.677662 | BC119: 20.14482759 | BD119: 19.06260358 | BE119: 1.082224004 | BG119: 0.5853035958 | BH119: -0.1522 | BM119: 1942.651832 | BN119: 1943.00545 | BO119: 21.75852713 | BP119: 21.65055737 | BQ119: 0.1079697638 | BS119: -0.05793033048 | BT119: -1.65 | BX119: 104 | BY119: 18.62183099 | BZ119: 20.70571831
A120: 18680428 | B120: 1868.325766 | C120: 119 | D120: 23 | G120: 1868.828626 | H120: 1868.832992 | I120: 17.46666667 | J120: 22.96296296 | K120: -5.496296296 | M120: -0.4028636152 | N120: 0.0005 | O120: -0.8971379896 | P120: -0.0423 | V120: 1870.880483 | W120: 1870.89358 | X120: 23.68888889 | Y120: -23.68888889 | Z120: 23.28 | AA120: 0.4088888889 | AC120: 0.3928164933 | AD120: 1.741 | AE120: 0 | AI120: 0.9803822844 | AJ120: -0.01875 | AO120: 1876.328819 | AP120: 1876.36811 | AQ120: 8.064285714 | AR120: 9.243377121 | AS120: -1.179091407 | AU120: -0.88107454 | AV120: -0.141 | BA120: 1894.795535 | BB120: 1894.913408 | BC120: 16.93139535 | BD120: 19.1352134 | BE120: -2.203818052 | BG120: -0.07281276778 | BH120: -0.1522 | BM120: 1943.359068 | BN120: 1943.712686 | BO120: 28.69266409 | BP120: 22.05598372 | BQ120: 6.636680368 | BS120: 0.5973309226 | BT120: -1.65 | BX120: 105 | BY120: 19.5943662 | BZ120: 20.58087324
A121: 18680429 | B121: 1868.328504 | C121: 120 | D121: 28.6 | G121: 1868.837357 | H121: 1868.841723 | I121: 7.9 | J121: 22.08888889 | K121: -14.18888889 | M121: -0.9144086171 | N121: 0.0005 | O121: -0.4032958794 | P121: -0.0423 | V121: 1870.906677 | W121: 1870.919774 | X121: 13.57 | Y121: -13.57 | Z121: 24.68888889 | AA121: -11.11888889 | AC121: 0.6689942541 | AD121: 1.741 | AE121: 0 | AI121: 0.6243194307 | AJ121: -0.01875 | AO121: 1876.407401 | AP121: 1876.446692 | AQ121: 6.455172414 | AR121: 9.382457581 | AS121: -2.927285167 | AU121: -0.3709182197 | AV121: -0.141 | BA121: 1895.03128 | BB121: 1895.149153 | BC121: 20.06395349 | BD121: 19.90678963 | BE121: 0.1571638599 | BG121: -0.6968592281 | BH121: -0.1522 | BM121: 1944.066304 | BN121: 1944.419922 | BO121: 17.54147287 | BP121: 21.80942903 | BQ121: -4.267956162 | BS121: 0.9730943984 | BT121: -1.65 | BX121: 106 | BY121: 23.9 | BZ121: 20.42656338
A122: 18680430 | B122: 1868.331242 | C122: 121 | D122: 34.3 | G122: 1868.846089 | H122: 1868.850454 | I122: 7.1 | J122: 20.85925926 | K122: -13.75925926 | M122: -0.9483986989 | N122: 0.0005 | O122: 0.2792528549 | P122: -0.0423 | V122: 1870.932871 | W122: 1870.945968 | X122: 21.68888889 | Y122: -21.68888889 | Z122: 20.29703704 | AA122: 1.391851852 | AC122: 0.8733399395 | AD122: 1.741 | AE122: 0 | AI122: -0.0238694231 | AJ122: -0.01875 | AO122: 1876.485983 | AP122: 1876.525274 | AQ122: 9.217241379 | AR122: 9.194458128 | AS122: 0.02278325123 | AU122: 0.3127948578 | AV122: -0.141 | BA122: 1895.267026 | BB122: 1895.384898 | BC122: 18.42325581 | BD122: 19.29903769 | BE122: -0.8757818765 | BG122: -0.9948375109 | BH122: -0.1522 | BM122: 1944.77354 | BN122: 1945.127158 | BO122: 17.28914729 | BP122: 21.94739557 | BQ122: -4.658248282 | BS122: 0.8935361904 | BT122: -1.65 | BX122: 107 | BY122: 23.28380282 | BZ122: 20.42067606
A123: 18680501 | B123: 1868.33398 | C123: 122 | D123: 16.6 | G123: 1868.85482 | H123: 1868.859186 | I123: 11.8 | J123: 16.11388889 | K123: -4.313888889 | M123: -0.4870823538 | N123: 0.0005 | O123: 0.8311360748 | P123: -0.0423 | V123: 1870.959065 | W123: 1870.972162 | X123: 28.21 | Y123: -28.21 | Z123: 20.75197531 | AA123: 7.458024691 | AC123: 0.9839122926 | AD123: 1.741 | AE123: 0 | AI123: -0.6608895086 | AJ123: -0.01875 | AO123: 1876.564565 | AP123: 1876.603856 | AQ123: 9.589285714 | AR123: 8.918992885 | AS123: 0.6702928298 | AU123: 0.850147745 | AV123: -0.141 | BA123: 1895.502771 | BB123: 1895.620644 | BC123: 14.19069767 | BD123: 18.57461909 | BE123: -4.383921411 | BG123: -0.8273202659 | BH123: -0.1522 | BM123: 1945.480776 | BN123: 1945.834394 | BO123: 17.96563707 | BP123: 22.26539729 | BQ123: -4.299760225 | BS123: 0.3958824684 | BT123: -1.65 | BX123: 108 | BY123: 21.15352113 | BZ123: 20.35430986
A124: 18680502 | B124: 1868.336718 | C124: 123 | D124: 6.1 | G124: 1868.863551 | H124: 1868.867917 | I124: 3.633333333 | J124: 14.43981481 | K124: -10.80648148 | M124: 0.2286154245 | N124: 0.0005 | O124: 0.9941214883 | P124: -0.0423 | V124: 1870.985259 | W124: 1870.998356 | X124: 13.25555556 | Y124: -13.25555556 | Z124: 20.04641975 | AA124: -6.790864198 | AC124: 0.9888388026 | AD124: 1.741 | AE124: 0 | AI124: -0.9886720481 | AJ124: -0.01875 | AO124: 1876.643147 | AP124: 1876.682437 | AQ124: 9.75862069 | AR124: 9.394471812 | AS124: 0.3641488779 | AU124: 0.989707054 | AV124: -0.141 | BA124: 1895.738516 | BB124: 1895.856389 | BC124: 20.61860465 | BD124: 18.1188081 | BE124: 2.499796549 | BG124: -0.2726906739 | BH124: -0.1522 | BM124: 1946.188012 | BN124: 1946.54163 | BO124: 26.88488372 | BP124: 22.08714578 | BQ124: 4.797737937 | BS124: -0.2870090603 | BT124: -1.65 | BX124: 109 | BY124: 19.66760563 | BZ124: 20.37752113
A125: 18680503 | B125: 1868.339456 | C125: 124 | D125: 5.2 | G125: 1868.872283 | H125: 1868.876648 | I125: 13.13333333 | J125: 13.19907407 | K125: -0.06574074074 | M125: 0.8249175423 | N125: 0.0005 | O125: 0.691946409 | P125: -0.0423 | V125: 1871.011453 | W125: 1871.02455 | X125: 28.58 | Y125: -28.58 | Z125: 21.02790123 | AA125: 7.552098765 | AC125: 0.8875904941 | AD125: 1.741 | AE125: 0 | AI125: -0.8538439484 | AJ125: -0.01875 | AO125: 1876.721728 | AP125: 1876.761019 | AQ125: 10.64482759 | AR125: 9.480815545 | AS125: 1.164012042 | AU125: 0.6661714331 | AV125: -0.141 | BA125: 1895.974262 | BB125: 1896.092134 | BC125: 23.02790698 | BD125: 17.64154712 | BE125: 5.386359856 | BG125: 0.4095339151 | BH125: -0.1522 | BM125: 1946.895248 | BN125: 1947.248866 | BO125: 21.56627907 | BP125: 21.4070943 | BQ125: 0.1591847662 | BS125: -0.83560586 | BT125: -1.65 | BX125: 110 | BY125: 20.34014085 | BZ125: 20.39126761
A126: 18680504 | B126: 1868.342193 | C126: 125 | D126: 6.3 | G126: 1868.881014 | H126: 1868.88538 | I126: 24.26666667 | J126: 13.21759259 | K126: 11.04907407 | M126: 0.9904019452 | N126: 0.0005 | O126: 0.06600191474 | P126: -0.0423 | V126: 1871.037647 | W126: 1871.050744 | X126: 13.04 | Y126: -13.04 | Z126: 21.9545679 | AA126: -8.914567901 | AC126: 0.6910387253 | AD126: 1.741 | AE126: 0 | AI126: -0.3194927758 | AJ126: -0.01875 | AO126: 1876.80031 | AP126: 1876.839601 | AQ126: 11.17586207 | AR126: 10.02111385 | AS126: 1.154748221 | AU126: 0.03092679493 | AV126: -0.141 | BA126: 1896.210007 | BB126: 1896.32788 | BC126: 18.07325581 | BD126: 17.3813404 | BE126: 0.6919154118 | BG126: 0.9001330337 | BH126: -0.1522 | BM126: 1947.602484 | BN126: 1947.956102 | BO126: 25.48918919 | BP126: 22.30864469 | BQ126: 3.180544498 | BS126: -0.993213391 | BT126: -1.65 | BX126: 111 | BY126: 20.2056338 | BZ126: 20.32180282
A127: 18680505 | B127: 1868.344931 | C127: 126 | D127: 4.6 | G127: 1868.889745 | H127: 1868.894111 | I127: 26.425 | J127: 13.45833333 | K127: 12.96666667 | M127: 0.6386434952 | N127: 0.0005 | O127: -0.5908256089 | P127: -0.0423 | V127: 1871.063841 | W127: 1871.076938 | X127: 14.74444444 | Y127: -14.74444444 | Z127: 21.20518519 | AA127: -6.460740741 | AC127: 0.420287895 | AD127: 1.741 | AE127: 0 | AI127: 0.3643526173 | AJ127: -0.01875 | AO127: 1876.878892 | AP127: 1876.918183 | AQ127: 8.903571429 | AR127: 10.01689929 | AS127: -1.11332786 | AU127: -0.6187888343 | AV127: -0.141 | BA127: 1896.445752 | BB127: 1896.563625 | BC127: 15.69767442 | BD127: 16.54865306 | BE127: -0.850978645 | BG127: 0.969549902 | BH127: -0.1522 | BM127: 1948.30972 | BN127: 1948.663338 | BO127: 23.20077519 | BP127: 23.75171101 | BQ127: -0.5509358195 | BS127: -0.6860853381 | BT127: -1.65 | BX127: 112 | BY127: 20.32887324 | BZ127: 20.23856338
A128: 18680506 | B128: 1868.347669 | C128: 127 | D128: 4.8 | G128: 1868.898477 | H128: 1868.902842 | I128: 18.23333333 | J128: 13.65277778 | K128: 4.580555556 | M128: -0.04665002604 | N128: 0.0005 | O128: -0.9711992639 | P128: -0.0423 | V128: 1871.090035 | W128: 1871.103132 | X128: 23.64 | Y128: -23.64 | Z128: 20.10407407 | AA128: 3.535925926 | AC128: 0.1044093948 | AD128: 1.741 | AE128: 0 | AI128: 0.8777133715 | AJ128: -0.01875 | AO128: 1876.957474 | AP128: 1876.996764 | AQ128: 10.74137931 | AR128: 10.07326218 | AS128: 0.6681171319 | AU128: -0.9789662909 | AV128: -0.141 | BA128: 1896.681498 | BB128: 1896.79937 | BC128: 16.04252874 | BD128: 16.31053937 | BE128: -0.2680106329 | BG128: 0.5853035958 | BH128: -0.1522 | BM128: 1949.016956 | BN128: 1949.370574 | BO128: 20.15426357 | BP128: 25.18770415 | BQ128: -5.033440583 | BS128: -0.05793033048 | BT128: -1.65 | BX128: 113 | BY128: 19.50774648 | BZ128: 20.22261972
A129: 18680507 | B129: 1868.350407 | C129: 128 | D129: 5.8 | G129: 1868.907208 | H129: 1868.911574 | I129: 6.3 | J129: 14.38611111 | K129: -8.086111111 | M129: -0.7075803151 | N129: 0.0005 | O129: -0.8971379896 | P129: -0.0423 | V129: 1871.116229 | W129: 1871.129326 | X129: 32.52222222 | Y129: -32.52222222 | Z129: 21.79790123 | AA129: 10.72432099 | AC129: -0.2226798795 | AD129: 1.741 | AE129: 0 | AI129: 0.9803822844 | AJ129: -0.01875 | AO129: 1877.036055 | AP129: 1877.075346 | AQ129: 8.84137931 | AR129: 10.23262178 | AS129: -1.391242474 | AU129: -0.88107454 | AV129: -0.141 | BA129: 1896.917243 | BB129: 1897.035115 | BC129: 12.63604651 | BD129: 15.61157296 | BE129: -2.975526449 | BG129: -0.07281276778 | BH129: -0.1522 | BM129: 1949.724192 | BN129: 1950.07781 | BO129: 22.57220077 | BP129: 24.76005557 | BQ129: -2.187854798 | BS129: 0.5973309226 | BT129: -1.65 | BX129: 114 | BY129: 19.0028169 | BZ129: 20.17188732
A130: 18680508 | B130: 1868.353145 | C130: 129 | D130: 8.1 | G130: 1868.915939 | H130: 1868.920305 | I130: 8.066666667 | J130: 16.50462963 | K130: -8.437962963 | M130: -0.9989729003 | N130: 0.0005 | O130: -0.4032958794 | P130: -0.0423 | V130: 1871.142423 | W130: 1871.15552 | X130: 21.91 | Y130: -21.91 | Z130: 21.78407407 | AA130: 0.1259259259 | AC130: -0.5258592955 | AD130: 1.741 | AE130: 0 | AI130: 0.6243194308 | AJ130: -0.01875 | AO130: 1877.114637 | AP130: 1877.153928 | AQ130: 11.31785714 | AR130: 10.04028462 | AS130: 1.277572523 | AU130: -0.3709182198 | AV130: -0.141 | BA130: 1897.152988 | BB130: 1897.270861 | BC130: 17.72209302 | BD130: 14.91725771 | BE130: 2.804835308 | BG130: -0.6968592281 | BH130: -0.1522 | BM130: 1950.431428 | BN130: 1950.785046 | BO130: 25.65542636 | BP130: 24.8150082 | BQ130: 0.840418159 | BS130: 0.9730943984 | BT130: -1.65 | BX130: 115 | BY130: 18.4415493 | BZ130: 20.09543662
A131: 18680509 | B131: 1868.355883 | C131: 130 | D131: 4.1 | G131: 1868.924671 | H131: 1868.929036 | I131: 9.266666667 | J131: 15.56018519 | K131: -6.293518519 | M131: -0.7686464042 | N131: 0.0005 | O131: 0.2792528549 | P131: -0.0423 | V131: 1871.168617 | W131: 1871.181714 | X131: 14.94444444 | Y131: -14.94444444 | Z131: 24.53185185 | AA131: -9.587407407 | AC131: -0.7725754991 | AD131: 1.741 | AE131: 0 | AI131: -0.02386942308 | AJ131: -0.01875 | AO131: 1877.193219 | AP131: 1877.23251 | AQ131: 9.179310345 | AR131: 9.720361248 | AS131: -0.5410509031 | AU131: 0.3127948578 | AV131: -0.141 | BA131: 1897.388733 | BB131: 1897.506606 | BC131: 10.92906977 | BD131: 14.50537141 | BE131: =BC131-BD131 -> -3.576301642 | BG131: -0.9948375109 | BH131: -0.1522 | BM131: 1951.138664 | BN131: 1951.492281 | BO131: 30.27674419 | BP131: 23.86331365 | BQ131: 6.41343054 | BS131: 0.8935361904 | BT131: -1.65 | BX131: 116 | BY131: 19.31338028 | BZ131: 19.9704507
A132: 18680510 | B132: =B131 + (1/365.25) -> 1868.358621 | C132: 131 | D132: 26.7 | G132: =G131+0.00873130763355885 -> 1868.933402 | H132: =H131+0.00873130763355885 -> 1868.937768 | I132: 13.55 | J132: 14.32407407 | K132: -0.7740740741 | M132: -0.136890104 | N132: 0.0005 | O132: 0.8311360748 | P132: -0.0423 | V132: =V131+0.0261939229006765 -> 1871.194811 | W132: 1871.207908 | X132: 18.3 | Y132: -18.3 | Z132: 25.58987654 | AA132: -7.289876543 | AC132: -0.9363377742 | AD132: 1.741 | AE132: 0 | AI132: -0.6608895086 | AJ132: -0.01875 | AO132: =AO131+0.0785817687020297 -> 1877.271801 | AP132: =AP131+0.0785817687020297 -> 1877.311092 | AQ132: 10.09655172 | AR132: 9.571305419 | AS132: 0.5252463054 | AU132: 0.850147745 | AV132: -0.141 | BA132: =BA131+0.235745306106089 -> 1897.624479 | BB132: =BB131+0.235745306106089 -> 1897.742351 | BC132: 12.04767442 | BD132: 14.46002257 | BE132: -2.412348154 | BG132: -0.8273202659 | BH132: -0.1522 | BM132: =BM131+0.707235918318267 -> 1951.845899 | BN132: =BN131+0.707235918318267 -> 1952.199517 | BO132: 30.88957529 | BP132: 23.37020426 | BQ132: 7.519371032 | BS132: 0.3958824684 | BT132: -1.65 | BX132: 117 | BY132: 18.94859155 | BZ132: 19.90225352
A133: 18680511 | B133: 1868.361358 | C133: 132 | D133: 35.7 | G133: 1868.942133 | H133: 1868.946499 | I133: 10.23333333 | J133: 13.23425926 | K133: -3.000925926 | M133: 0.5663578045 | N133: 0.0005 | O133: 0.9941214883 | P133: -0.0423 | V133: 1871.221004 | W133: 1871.234101 | X133: 28.5 | Y133: -28.5 | Z133: 24.95765432 | AA133: 3.542345679 | AC133: -0.9995624359 | AD133: 1.741 | AE133: 0 | AI133: -0.9886720481 | AJ133: -0.01875 | AO133: 1877.350382 | AP133: 1877.389673 | AQ133: 11.19285714 | AR133: 9.182183908 | AS133: 2.010673235 | AU133: 0.989707054 | AV133: -0.141 | BA133: 1897.860224 | BB133: 1897.978097 | BC133: 14.32790698 | BD133: 14.26563307 | BE133: 0.06227390181 | BG133: -0.2726906739 | BH133: -0.1522 | BM133: 1952.553135 | BN133: 1952.906753 | BO133: 23.03604651 | BP133: 23.09643165 | BQ133: -0.06038513597 | BS133: -0.2870090603 | BT133: -1.65 | BX133: 118 | BY133: 20.14507042 | BZ133: 19.97456338
A134: 18680512 | B134: 1868.364096 | C134: =ROUND(365.25*(B134-INT(B134)),0) -> 133 | D134: 27.3 | G134: 1868.950864 | H134: 1868.95523 | I134: 32.2 | J134: 13.93055556 | K134: 18.26944444 | M134: 0.9738222405 | N134: 0.0005 | O134: 0.691946409 | P134: -0.0423 | V134: 1871.247198 | W134: 1871.260295 | X134: 28.45555556 | Y134: -28.45555556 | Z134: 23.45148148 | AA134: 5.004074074 | AC134: -0.9554608481 | AD134: 1.741 | AE134: 0 | AI134: -0.8538439484 | AJ134: -0.01875 | AO134: 1877.428964 | AP134: 1877.468255 | AQ134: 8.913793103 | AR134: 9.027394636 | AS134: -0.1136015326 | AU134: 0.6661714331 | AV134: -0.141 | BA134: 1898.095969 | BB134: 1898.213842 | BC134: =AVERAGEIFS(GeoAA,DecDate,">"&BA134,DecDate,"<="&BA135) -> 16.77906977 | BD134: 14.6973878 | BE134: 2.081681963 | BG134: 0.4095339151 | BH134: -0.1522 | BM134: 1953.260371 | BN134: 1953.613989 | BO134: 22.06085271 | BP134: 23.27518798 | BQ134: -1.214335265 | BS134: -0.83560586 | BT134: -1.65 | BX134: 119 | BY134: 21.01126761 | BZ134: 19.75580282
A135: 18680513 | B135: 1868.366834 | C135: 134 | D135: 18.6 | G135: 1868.959596 | H135: 1868.963961 | I135: 15.76666667 | J135: 14.25648148 | K135: 1.510185185 | M135: 0.8727026655 | N135: 0.0005 | O135: 0.06600191476 | P135: -0.0423 | V135: 1871.273392 | W135: 1871.286489 | X135: 37.77 | Y135: -37.77 | Z135: 23.46259259 | AA135: 14.30740741 | AC135: -0.8087683406 | AD135: 1.741 | AE135: 0 | AI135: -0.3194927758 | AJ135: -0.01875 | AO135: 1877.507546 | AP135: 1877.546837 | AQ135: 8.296551724 | AR135: 9.074069513 | AS135: -0.7775177887 | AU135: 0.03092679494 | AV135: -0.141 | BA135: 1898.331715 | BB135: 1898.449587 | BC135: 14.36627907 | BD135: 14.39687101 | BE135: -0.03059193917 | BG135: 0.9001330337 | BH135: -0.1522 | BM135: 1953.967607 | BN135: 1954.321225 | BO135: 16.92393822 | BP135: 23.46280899 | BQ135: -6.538870764 | BS135: -0.993213391 | BT135: -1.65 | BX135: 120 | BY135: 20.32464789 | BZ135: 19.60411268
A136: 18680514 | B136: 1868.369572 | C136: 135 | D136: 8.5 | G136: 1868.968327 | H136: 1868.972693 | I136: 15.3 | J136: 15.20092593 | K136: 0.09907407407 | M136: 0.3158093325 | N136: 0.0005 | O136: -0.5908256089 | P136: -0.0423 | V136: 1871.299586 | W136: 1871.312683 | X136: 24.26666667 | Y136: -24.26666667 | Z136: 22.89765432 | AA136: 1.369012346 | AC136: -0.5752357622 | AD136: 1.741 | AE136: 0 | AI136: 0.3643526173 | AJ136: -0.01875 | AO136: 1877.586128 | AP136: 1877.625419 | AQ136: 7.562068966 | AR136: 8.843828681 | AS136: -1.281759715 | AU136: -0.6187888343 | AV136: -0.141 | BA136: 1898.56746 | BB136: 1898.685333 | BC136: 15.28953488 | BD136: 14.46650925 | BE136: 0.8230256319 | BG136: 0.969549902 | BH136: -0.1522 | BM136: 1954.674843 | BN136: 1955.028461 | BO136: 18.7627907 | BP136: 23.58597867 | BQ136: -4.823187972 | BS136: -0.6860853381 | BT136: -1.65 | BX136: 121 | BY136: 21.46267606 | BZ136: 19.53160563
A137: 18680515 | B137: 1868.37231 | C137: 136 | D137: 11.2 | G137: 1868.977058 | H137: 1868.981424 | I137: 8.425 | J137: 15.47685185 | K137: -7.051851852 | M137: -0.406017158 | N137: 0.0005 | O137: -0.9711992639 | P137: -0.0423 | V137: 1871.32578 | W137: 1871.338877 | X137: =AVERAGEIFS(GeoAA,DecDate,">"&V137,DecDate,"<="&V138) -> 17.95 | Y137: -17.95 | Z137: 22.8482716 | AA137: -4.898271605 | AC137: -0.2799382607 | AD137: 1.741 | AE137: 0 | AI137: 0.8777133715 | AJ137: -0.01875 | AO137: 1877.66471 | AP137: 1877.704 | AQ137: 7.239285714 | AR137: 8.310495348 | AS137: -1.071209633 | AU137: -0.9789662909 | AV137: -0.141 | BA137: 1898.803205 | BB137: 1898.921078 | BC137: 14.29302326 | BD137: 14.17697437 | BE137: 0.1160488877 | BG137: 0.5853035958 | BH137: -0.1522 | BM137: 1955.382079 | BN137: 1955.735697 | BO137: 17.69031008 | BP137: 23.1162498 | BQ137: -5.425939727 | BS137: -0.05793033049 | BT137: -1.65 | BX137: 122 | BY137: 21.41901408 | BZ137: 19.65264789
A138: 18680516 | B138: 1868.375048 | C138: 137 | D138: 6.5 | G138: 1868.98579 | H138: 1868.990155 | I138: 12.56666667 | J138: 16.75925926 | K138: -4.192592593 | M138: =SIN((2*PI()*(H138-2000+N138)/0.074195756) + 2.57488197) -> -0.9157989589 | N138: =N137 -> 0.0005 | O138: =SIN((2*PI()*(H138-2000+P138)/0.0785817687020297) + 3.39124283) -> -0.8971379896 | P138: =P137 -> -0.0423 | V138: 1871.351974 | W138: 1871.365071 | X138: 18.96666667 | Y138: -18.96666667 | Z138: 22.18493827 | AA138: -3.218271605 | AC138: 0.0454171167 | AD138: 1.741 | AE138: 0 | AI138: 0.9803822844 | AJ138: -0.01875 | AO138: 1877.743291 | AP138: 1877.782582 | AQ138: 7.448275862 | AR138: 8.062629995 | AS138: -0.6143541325 | AU138: -0.88107454 | AV138: -0.141 | BA138: 1899.038951 | BB138: 1899.156823 | BC138: 16.52183908 | BD138: 14.00462295 | BE138: 2.517216134 | BG138: -0.07281276778 | BH138: -0.1522 | BM138: 1956.089315 | BN138: 1956.442933 | BO138: 24.18100775 | BP138: =AVERAGE(BO134:BO142) -> 23.81434674 | BQ138: 0.3666610132 | BS138: 0.5973309226 | BT138: -1.65 | BX138: 123 | BY138: 19.73732394 | BZ138: 19.78557746
A139: 18680517 | B139: 1868.377786 | C139: 138 | D139: 5.1 | G139: 1868.994521 | H139: 1868.998887 | I139: 11 | J139: 15.19259259 | K139: -4.192592593 | M139: -0.9472997261 | N139: 0.0005 | O139: -0.4032958794 | P139: -0.0423 | V139: 1871.378168 | W139: 1871.391265 | X139: 22.01 | Y139: =-X139 -> -22.01 | Z139: 21.23802469 | AA139: 0.7719753086 | AC139: 0.3658959115 | AD139: 1.741 | AE139: 0 | AI139: 0.6243194308 | AJ139: -0.01875 | AO139: 1877.821873 | AP139: 1877.861164 | AQ139: 11.73793103 | AR139: 7.749986316 | AS139: 3.987944718 | AU139: =SIN((2*PI()*(AP139-2000+AV139)/0.707235918318267) + 5.263726692) -> -0.3709182198 | AV139: =AV138 -> -0.141 | BA139: 1899.274696 | BB139: 1899.392569 | BC139: 15.01744186 | BD139: 12.99105706 | BE139: 2.026384805 | BG139: =SIN((2*PI()*(BB139-2000+BH139)/2.1217077549548) + 0.707378034) -> -0.6968592281 | BH139: =BH138 -> -0.1522 | BM139: 1956.796551 | BN139: 1957.150169 | BO139: 27.34401544 | BP139: 24.88618136 | BQ139: 2.45783408 | BS139: =SIN((2*PI()*(BN139-2000+BT139)/6.3651232648644) + 1.28299025) -> 0.9730943984 | BT139: =BT138 -> -1.65 | BX139: 124 | BY139: 19.98309859 | BZ139: 19.89746479
A140: 18680518 | B140: 1868.380523 | C140: 139 | D140: 2 | G140: 1869.003252 | H140: 1869.007618 | I140: 17.76666667 | J140: 14.34814815 | K140: 3.418518519 | M140: -0.484068011 | N140: 0.0005 | O140: 0.2792528549 | P140: -0.0423 | V140: 1871.404362 | W140: 1871.417459 | X140: 9.86 | Y140: -9.86 | Z140: 18.58358025 | AA140: -8.723580247 | AC140: 0.6470872796 | AD140: 1.741 | AE140: 0 | AI140: -0.02386942306 | AJ140: -0.01875 | AO140: 1877.900455 | AP140: 1877.939746 | AQ140: 7.107142857 | AR140: 7.66377942 | AS140: -0.5566365627 | AU140: 0.3127948578 | AV140: -0.141 | BA140: 1899.510441 | BB140: 1899.628314 | BC140: 11.55581395 | BD140: 11.97710357 | BE140: -0.4212896136 | BG140: -0.9948375109 | BH140: -0.1522 | BM140: 1957.503787 | BN140: 1957.857405 | BO140: =AVERAGEIFS(GeoAA,DecDate,">"&BM140,DecDate,"<="&BM141) -> 31.38527132 | BP140: 26.58261717 | BQ140: 4.802654149 | BS140: 0.8935361904 | BT140: -1.65 | BX140: 125 | BY140: 19.59929577 | BZ140: 19.80816901
A141: 18680519 | B141: 1868.383261 | C141: 140 | D141: 8.7 | G141: 1869.011984 | H141: 1869.016349 | I141: 16.03333333 | J141: 14.4962963 | K141: 1.537037037 | M141: 0.2319708802 | N141: 0.0005 | O141: 0.8311360748 | P141: -0.0423 | V141: 1871.430556 | W141: 1871.443653 | X141: 17.85555556 | Y141: -17.85555556 | Z141: =AVERAGE(X137:X145) -> 18.82308642 | AA141: -0.9675308642 | AC141: 0.8587987949 | AD141: 1.741 | AE141: 0 | AI141: =SIN((2*PI()*(W141-2000+AJ141)/0.235745306106089) + 0.083216746) -> -0.6608895086 | AJ141: =AJ140 -> -0.01875 | AO141: 1877.979037 | AP141: 1878.018327 | AQ141: =AVERAGEIFS(GeoAA,DecDate,">"&AO141,DecDate,"<="&AO142) -> 5.296551724 | AR141: =AVERAGE(AQ137:AQ145) -> 7.786384784 | AS141: -2.48983306 | AU141: 0.850147745 | AV141: -0.141 | BA141: 1899.746187 | BB141: 1899.864059 | BC141: 9.441860465 | BD141: 10.9480338 | BE141: -1.506173335 | BG141: -0.8273202659 | BH141: -0.1522 | BM141: 1958.211023 | BN141: 1958.564641 | BO141: 26.6620155 | BP141: 27.10249585 | BQ141: -0.4404803475 | BS141: 0.3958824684 | BT141: -1.65 | BX141: 126 | BY141: 18.29295775 | BZ141: 19.69653521
A142: 18680520 | B142: 1868.385999 | C142: 141 | D142: 60.1 | G142: 1869.020715 | H142: 1869.025081 | I142: 21.775 | J142: 18.14537037 | K142: 3.62962963 | M142: 0.8268617058 | N142: 0.0005 | O142: 0.9941214883 | P142: -0.0423 | V142: 1871.45675 | W142: 1871.469847 | X142: 22.53 | Y142: -22.53 | Z142: 19.05530864 | AA142: 3.474691358 | AC142: 0.9782983076 | AD142: 1.741 | AE142: 0 | AI142: -0.9886720481 | AJ142: -0.01875 | AO142: 1878.057618 | AP142: 1878.096909 | AQ142: 8.962068966 | AR142: 8.106923919 | AS142: 0.8551450465 | AU142: 0.989707054 | AV142: -0.141 | BA142: 1899.981932 | BB142: 1900.099804 | BC142: 12.77674419 | BD142: 10.09118625 | BE142: 2.685557932 | BG142: -0.2726906739 | BH142: -0.1522 | BM142: 1958.918259 | BN142: 1959.271877 | BO142: 29.31891892 | BP142: 27.14995494 | BQ142: 2.168963981 | BS142: -0.2870090603 | BT142: -1.65 | BX142: 127 | BY142: 16.99788732 | BZ142: 19.59450704
A143: 18680521 | B143: 1868.388737 | C143: 142 | D143: 14.1 | G143: 1869.029446 | H143: 1869.033812 | I143: 18.1 | J143: 18.18611111 | K143: -0.08611111111 | M143: 0.9899194663 | N143: 0.0005 | O143: 0.691946409 | P143: -0.0423 | V143: 1871.482944 | W143: 1871.496041 | X143: 19.93333333 | Y143: -19.93333333 | Z143: 19.53432099 | AA143: 0.3990123457 | AC143: 0.992754769 | AD143: 1.741 | AE143: 0 | AI143: -0.8538439484 | AJ143: -0.01875 | AO143: 1878.1362 | AP143: 1878.175491 | AQ143: 6.1 | AR143: 7.743623426 | AS143: -1.643623426 | AU143: 0.6661714331 | AV143: -0.141 | BA143: 1900.217677 | BB143: 1900.33555 | BC143: 7.656976744 | BD143: 8.913025335 | BE143: -1.256048591 | BG143: 0.4095339151 | BH143: -0.1522 | BM143: 1959.625495 | BN143: 1959.979112 | BO143: 31.70736434 | BP143: 27.08053203 | BQ143: 4.626832314 | BS143: -0.83560586 | BT143: -1.65 | BX143: 128 | BY143: 17.97816901 | BZ143: =AVERAGE(BY131:BY155) -> 19.53574648
A144: 18680522 | B144: 1868.391475 | C144: 143 | D144: 8.3 | G144: 1869.038178 | H144: 1869.042543 | I144: 8.166666667 | J144: =AVERAGE(I140:I148) -> 19.30277778 | K144: =I144-J144 -> -11.13611111 | M144: 0.6359863513 | N144: 0.0005 | O144: 0.06600191479 | P144: -0.0423 | V144: 1871.509138 | W144: 1871.522235 | X144: 13.88 | Y144: -13.88 | Z144: 19.39765432 | AA144: -5.517654321 | AC144: 0.9006159419 | AD144: 1.741 | AE144: 0 | AI144: -0.3194927759 | AJ144: -0.01875 | AO144: 1878.214782 | AP144: 1878.254073 | AQ144: 7.520689655 | AR144: 7.06392994 | AS144: 0.4567597154 | AU144: 0.03092679495 | AV144: -0.141 | BA144: 1900.453422 | BB144: 1900.571295 | BC144: 5.240697674 | BD144: 7.919097686 | BE144: -2.678400012 | BG144: 0.9001330337 | BH144: -0.1522 | BM144: 1960.33273 | BN144: 1960.686348 | BO144: 32.19186047 | BP144: 26.57817252 | BQ144: 5.61368794 | BS144: -0.993213391 | BT144: -1.65 | BX144: 129 | BY144: 16.91690141 | BZ144: 19.4715493
A145: 18680523 | B145: 1868.394213 | C145: 144 | D145: 12.2 | G145: 1869.046909 | H145: 1869.051275 | I145: 16.63333333 | J145: 18.81759259 | K145: -2.184259259 | M145: -0.05009412706 | N145: 0.0005 | O145: -0.5908256089 | P145: -0.0423 | V145: 1871.535332 | W145: 1871.548429 | X145: 26.42222222 | Y145: -26.42222222 | Z145: 21.55098765 | AA145: 4.871234568 | AC145: 0.7117750701 | AD145: 1.741 | AE145: 0 | AI145: 0.3643526173 | AJ145: -0.01875 | AO145: 1878.293364 | AP145: 1878.332655 | AQ145: 8.665517241 | AR145: 6.960071155 | AS145: 1.705446086 | AU145: -0.6187888343 | AV145: -0.141 | BA145: 1900.689168 | BB145: 1900.80704 | BC145: 6.027906977 | BD145: =AVERAGE(BC141:BC149) -> 7.270518875 | BE145: -1.242611898 | BG145: 0.969549902 | BH145: -0.1522 | BM145: 1961.039966 | BN145: 1961.393584 | BO145: 23.44169884 | BP145: 25.1562087 | BQ145: -1.714509859 | BS145: -0.6860853381 | BT145: -1.65 | BX145: 130 | BY145: =AVERAGEIFS(GeoAA,Day,">"&BX144,Day,"<="&BX145) -> 21.40211268 | BZ145: 19.42383099
A146: 18680524 | B146: 1868.396951 | C146: 145 | D146: 56 | G146: 1869.05564 | H146: 1869.060006 | I146: 41.26666667 | J146: 23.24722222 | K146: 18.01944444 | M146: -0.7100126725 | N146: 0.0005 | O146: -0.9711992639 | P146: -0.0423 | V146: 1871.561525 | W146: 1871.574622 | X146: 20.04 | Y146: -20.04 | Z146: 22.01765432 | AA146: -1.977654321 | AC146: 0.4465086083 | AD146: 1.741 | AE146: 0 | AI146: 0.8777133714 | AJ146: -0.01875 | AO146: 1878.371945 | AP146: 1878.411236 | AQ146: 10.12413793 | AR146: 7.20926382 | AS146: =AQ146-AR146 -> 2.914874111 | AU146: -0.9789662909 | AV146: -0.141 | BA146: 1900.924913 | BB146: 1901.042786 | BC146: 6.581395349 | BD146: 6.877624818 | BE146: -0.2962294692 | BG146: 0.5853035958 | BH146: -0.1522 | BM146: 1961.747202 | BN146: 1962.10082 | BO146: 18.11744186 | BP146: 23.78019664 | BQ146: -5.662754781 | BS146: -0.05793033049 | BT146: -1.65 | BX146: =BX145+1 -> 131 | BY146: 18.43098592 | BZ146: 19.37816901
A147: 18680525 | B147: 1868.399688 | C147: 146 | D147: 7.3 | G147: 1869.064371 | H147: 1869.068737 | I147: 12.93333333 | J147: 23.57222222 | K147: -10.63888889 | M147: -0.9991232021 | N147: 0.0005 | O147: -0.8971379896 | P147: -0.0423 | V147: 1871.587719 | W147: 1871.600816 | X147: 23.27777778 | Y147: -23.27777778 | Z147: 21.55098765 | AA147: 1.726790123 | AC147: 0.133299074 | AD147: 1.741 | AE147: 0 | AI147: 0.9803822844 | AJ147: -0.01875 | AO147: 1878.450527 | AP147: 1878.489818 | AQ147: 4.178571429 | AR147: 6.938382594 | AS147: -2.759811166 | AU147: -0.88107454 | AV147: -0.141 | BA147: 1901.160658 | BB147: 1901.278531 | BC147: 5.918390805 | BD147: 6.22607443 | BE147: -0.3076836259 | BG147: -0.07281276778 | BH147: -0.1522 | BM147: 1962.454438 | BN147: 1962.808056 | BO147: 23.55620155 | BP147: 22.10808167 | BQ147: 1.448119881 | BS147: 0.5973309226 | BT147: -1.65 | BX147: 132 | BY147: 19.4915493 | BZ147: 19.31853521
A148: 18680526 | B148: 1868.402426 | C148: 147 | D148: 13.8 | G148: 1869.073103 | H148: 1869.077468 | I148: 21.05 | J148: 24.79074074 | K148: -3.740740741 | M148: -0.7664361545 | N148: 0.0005 | O148: -0.4032958794 | P148: -0.0423 | V148: 1871.613913 | W148: 1871.62701 | X148: 20.78 | Y148: -20.78 | Z148: 20.72382716 | AA148: 0.05617283951 | AC148: =SIN((2*PI()*(W148-2000+AE148)/0.5) + AD148) -> -0.1942232127 | AD148: =AD147 -> 1.741 | AE148: 0 | AI148: 0.6243194308 | AJ148: -0.01875 | AO148: 1878.529109 | AP148: 1878.5684 | AQ148: 5.620689655 | AR148: 7.2613711 | AS148: -1.640681445 | AU148: -0.3709182198 | AV148: -0.141 | BA148: 1901.396404 | BB148: 1901.514276 | BC148: 6.072093023 | BD148: 6.030337996 | BE148: 0.04175502688 | BG148: -0.6968592281 | BH148: -0.1522 | BM148: 1963.161674 | BN148: 1963.515292 | BO148: 22.82277992 | BP148: 20.41596281 | BQ148: 2.406817116 | BS148: 0.9730943984 | BT148: -1.65 | BX148: 133 | BY148: 19.34084507 | BZ148: 19.26259155
A149: 18680527 | B149: 1868.405164 | C149: 148 | D149: 44.8 | G149: 1869.081834 | H149: 1869.0862 | I149: =AVERAGEIFS(GeoAA,DecDate,">"&G149,DecDate,"<="&G150) -> 13.4 | J149: 26.08888889 | K149: -12.68888889 | M149: -0.1334736177 | N149: 0.0005 | O149: 0.2792528548 | P149: -0.0423 | V149: 1871.640107 | W149: 1871.653204 | X149: 29.24 | Y149: -29.24 | Z149: 21.41938272 | AA149: 7.820617284 | AC149: -0.5008911253 | AD149: 1.741 | AE149: 0 | AI149: -0.02386942303 | AJ149: -0.01875 | AO149: 1878.607691 | AP149: 1878.646982 | AQ149: 6.172413793 | AR149: 7.266215107 | AS149: -1.093801314 | AU149: 0.3127948578 | AV149: -0.141 | BA149: 1901.632149 | BB149: 1901.750022 | BC149: 5.718604651 | BD149: 6.121294069 | BE149: -0.4026894176 | BG149: -0.9948375109 | BH149: -0.1522 | BM149: 1963.86891 | BN149: 1964.222528 | BO149: 18.5875969 | BP149: 18.99593697 | BQ149: -0.4083400676 | BS149: 0.8935361904 | BT149: -1.65 | BX149: 134 | BY149: 22.69366197 | BZ149: 19.05309859
A150: 18680528 | B150: 1868.407902 | C150: 149 | D150: 26.8 | G150: 1869.090565 | H150: 1869.094931 | I150: 55.9 | J150: 25.76296296 | K150: 30.13703704 | M150: 0.5691962486 | N150: 0.0005 | O150: 0.8311360748 | P150: -0.0423 | V150: 1871.666301 | W150: 1871.679398 | X150: 22.05555556 | Y150: -22.05555556 | Z150: 20.41444444 | AA150: =X150-Z150 -> 1.641111111 | AC150: -0.7537767388 | AD150: 1.741 | AE150: 0 | AI150: -0.6608895086 | AJ150: -0.01875 | AO150: 1878.686272 | AP150: 1878.725563 | AQ150: 7.539285714 | AR150: 7.024452655 | AS150: 0.5148330597 | AU150: 0.850147745 | AV150: -0.141 | BA150: 1901.867894 | BB150: 1901.985767 | BC150: 5.905813953 | BD150: 6.2674181 | BE150: -0.3616041462 | BG150: -0.8273202659 | BH150: -0.1522 | BM150: 1964.576146 | BN150: 1964.929764 | BO150: 14.27790698 | BP150: 18.65852813 | BQ150: -4.380621153 | BS150: 0.3958824684 | BT150: -1.65 | BX150: 135 | BY150: 23.66338028 | BZ150: 18.88219718
A151: 18680529 | B151: 1868.41064 | C151: 150 | D151: 27.7 | G151: 1869.099297 | H151: 1869.103662 | I151: 24.7 | J151: 23.17777778 | K151: 1.522222222 | M151: 0.9746002494 | N151: 0.0005 | O151: 0.9941214883 | P151: -0.0423 | V151: 1871.692495 | W151: 1871.705592 | X151: 18.33 | Y151: -18.33 | Z151: 20.89888889 | AA151: -2.568888889 | AC151: -0.9257269073 | AD151: 1.741 | AE151: 0 | AI151: -0.9886720481 | AJ151: -0.01875 | AO151: 1878.764854 | AP151: 1878.804145 | AQ151: 6.524137931 | AR151: 6.536713191 | AS151: -0.01257525999 | AU151: 0.989707054 | AV151: -0.141 | BA151: 1902.10364 | BB151: 1902.221512 | BC151: 6.912790698 | BD151: 6.395325076 | BE151: 0.5174656212 | BG151: -0.2726906739 | BH151: -0.1522 | BM151: 1965.283382 | BN151: 1965.637 | BO151: 14.26988417 | BP151: 19.05839893 | BQ151: -4.788514761 | BS151: -0.2870090603 | BT151: -1.65 | BX151: 136 | BY151: 23.0028169 | BZ151: 18.90921127
A152: 18680530 | B152: 1868.413378 | C152: 151 | D152: 16.8 | G152: 1869.108028 | H152: 1869.112394 | I152: 29.06666667 | J152: 24.05185185 | K152: 5.014814815 | M152: 0.8710139197 | N152: 0.0005 | O152: 0.691946409 | P152: -0.0423 | V152: 1871.718689 | W152: 1871.731786 | X152: 12.48888889 | Y152: -12.48888889 | Z152: 21.40024691 | AA152: -8.911358025 | AC152: -0.9982787856 | AD152: 1.741 | AE152: 0 | AI152: -0.8538439484 | AJ152: -0.01875 | AO152: 1878.843436 | AP152: 1878.882727 | AQ152: 9.006896552 | AR152: 6.987370005 | AS152: 2.019526546 | AU152: 0.6661714331 | AV152: -0.141 | BA152: 1902.339385 | BB152: 1902.457258 | BC152: 5.895348837 | BD152: 6.706053046 | BE152: -0.8107042086 | BG152: 0.4095339151 | BH152: -0.1522 | BM152: 1965.990618 | BN152: 1966.344236 | BO152: 16.47829457 | BP152: 18.9833774 | BQ152: -2.505082824 | BS152: -0.83560586 | BT152: -1.65 | BX152: 137 | BY152: 18.09647887 | BZ152: 18.87873239
A153: 18680531 | B153: 1868.416115 | C153: 152 | D153: 7.2 | G153: 1869.116759 | H153: 1869.121125 | I153: 19.85 | J153: 24.41666667 | K153: -4.566666667 | M153: 0.312535789 | N153: 0.0005 | O153: 0.06600191481 | P153: -0.0423 | V153: 1871.744883 | W153: 1871.75798 | X153: 20.14 | Y153: -20.14 | Z153: 23.02592593 | AA153: -2.885925926 | AC153: -0.963642244 | AD153: 1.741 | AE153: 0 | AI153: -0.3194927759 | AJ153: -0.01875 | AO153: 1878.922018 | AP153: 1878.961309 | AQ153: 7.564285714 | AR153: 7.08030925 | AS153: 0.4839764641 | AU153: 0.03092679495 | AV153: -0.141 | BA153: 1902.57513 | BB153: 1902.693003 | BC153: 6.059302326 | BD153: 7.537448395 | BE153: -1.478146069 | BG153: 0.9001330337 | BH153: -0.1522 | BM153: 1966.697854 | BN153: 1967.051472 | BO153: 19.41162791 | BP153: 18.37007971 | BQ153: 1.041548193 | BS153: -0.993213391 | BT153: -1.65 | BX153: 138 | BY153: 16.71690141 | BZ153: 18.86216901
A154: 18680601 | B154: 1868.418853 | C154: 153 | D154: 5.5 | G154: 1869.125491 | H154: 1869.129856 | I154: 13.7 | J154: 24.25833333 | K154: -10.55833333 | M154: -0.4091658733 | N154: 0.0005 | O154: -0.5908256089 | P154: -0.0423 | V154: 1871.771077 | W154: 1871.784174 | X154: 17.37777778 | Y154: -17.37777778 | Z154: 22.42037037 | AA154: -5.042592593 | AC154: -0.8255363198 | AD154: 1.741 | AE154: 0 | AI154: 0.3643526172 | AJ154: -0.01875 | AO154: 1879.0006 | AP154: 1879.03989 | AQ154: 6.489655172 | AR154: 6.9477422 | AS154: -0.4580870279 | AU154: -0.6187888343 | AV154: -0.141 | BA154: 1902.810875 | BB154: 1902.928748 | BC154: 7.343023256 | BD154: 8.958895423 | BE154: -1.615872167 | BG154: 0.969549902 | BH154: -0.1522 | BM154: 1967.40509 | BN154: 1967.758708 | BO154: 20.40501931 | BP154: 18.65901682 | BQ154: 1.746002481 | BS154: -0.6860853381 | BT154: -1.65 | BX154: 139 | BY154: 16.45211268 | BZ154: 18.85256338
A155: 18680602 | B155: 1868.421591 | C155: 154 | D155: 19 | G155: 1869.134222 | H155: 1869.138588 | I155: 18 | J155: 21.65833333 | K155: -3.658333333 | M155: -0.9171784121 | N155: 0.0005 | O155: -0.9711992639 | P155: -0.0423 | V155: 1871.797271 | W155: 1871.810368 | X155: 24.4 | Y155: -24.4 | Z155: 21.15617284 | AA155: 3.24382716 | AC155: -0.5987898926 | AD155: 1.741 | AE155: 0 | AI155: 0.8777133714 | AJ155: -0.01875 | AO155: 1879.079181 | AP155: 1879.118472 | AQ155: 5.734482759 | AR155: 6.897016968 | AS155: -1.162534209 | AU155: -0.9789662909 | AV155: -0.141 | BA155: 1903.046621 | BB155: 1903.164493 | BC155: 7.73255814 | BD155: 9.725045294 | BE155: -1.992487154 | BG155: 0.5853035958 | BH155: -0.1522 | BM155: 1968.112326 | BN155: 1968.465944 | BO155: 21.71627907 | BP155: 19.27064473 | BQ155: =BO155-BP155 -> 2.445634339 | BS155: -0.05793033049 | BT155: -1.65 | BX155: 140 | BY155: 16.97253521 | BZ155: 18.9091831
A156: 18680603 | B156: 1868.424329 | C156: 155 | D156: 23 | G156: 1869.142953 | H156: 1869.147319 | I156: 20.8 | J156: 20.98425926 | K156: -0.1842592593 | M156: -0.9461894902 | N156: 0.0005 | O156: -0.8971379896 | P156: -0.0423 | V156: 1871.823465 | W156: 1871.836562 | X156: 27.79 | Y156: -27.79 | Z156: 20.94061728 | AA156: 6.849382716 | AC156: -0.3077494591 | AD156: 1.741 | AE156: 0 | AI156: 0.9803822844 | AJ156: -0.01875 | AO156: 1879.157763 | AP156: 1879.197054 | AQ156: 8.234482759 | AR156: 6.859811166 | AS156: 1.374671593 | AU156: -0.88107454 | AV156: -0.141 | BA156: 1903.282366 | BB156: 1903.400239 | BC156: 8.714942529 | BD156: 10.35656984 | BE156: -1.641627313 | BG156: -0.07281276778 | BH156: -0.1522 | BM156: 1968.819561 | BN156: 1969.173179 | BO156: 22.88100775 | BP156: 19.90349137 | BQ156: 2.977516387 | BS156: 0.5973309226 | BT156: -1.65 | BX156: 141 | BY156: 17.7084507 | BZ156: 18.79602817
A157: 18680604 | B157: 1868.427067 | C157: 156 | D157: 6.8 | G157: 1869.151685 | H157: 1869.15605 | I157: 24.33333333 | J157: 22.23981481 | K157: 2.093518519 | M157: -0.4810479127 | N157: 0.0005 | O157: -0.4032958795 | P157: -0.0423 | V157: 1871.849659 | W157: 1871.862756 | X157: 35.41111111 | Y157: -35.41111111 | Z157: 21.57024691 | AA157: 13.8408642 | AC157: 0.01633502849 | AD157: 1.741 | AE157: =AE156 -> 0 | AI157: 0.6243194308 | AJ157: -0.01875 | AO157: 1879.236345 | AP157: 1879.275636 | AQ157: 6.457142857 | AR157: 6.639887794 | AS157: -0.1827449371 | AU157: -0.3709182198 | AV157: -0.141 | BA157: 1903.518111 | BB157: 1903.635984 | BC157: 13.55465116 | BD157: 10.84390834 | BE157: 2.71074282 | BG157: -0.6968592281 | BH157: -0.1522 | BM157: 1969.526797 | BN157: 1969.880415 | BO157: 17.30310078 | BP157: 20.4304419 | BQ157: -3.127341129 | BS157: 0.9730943984 | BT157: -1.65 | BX157: 142 | BY157: 17.7556338 | BZ157: 18.74456338
A158: 18680605 | B158: 1868.429805 | C158: 157 | D158: 16.1 | G158: 1869.160416 | H158: 1869.164782 | I158: 11.975 | J158: 22.88981481 | K158: -10.91481481 | M158: 0.2353235779 | N158: 0.0005 | O158: 0.2792528548 | P158: -0.0423 | V158: 1871.875853 | W158: 1871.88895 | X158: 23.79 | Y158: -23.79 | Z158: 20.86580247 | AA158: 2.924197531 | AC158: 0.3386655713 | AD158: 1.741 | AE158: 0 | AI158: -0.02386942301 | AJ158: -0.01875 | AO158: 1879.314927 | AP158: 1879.354218 | AQ158: 4.979310345 | AR158: 6.737342638 | AS158: -1.758032293 | AU158: 0.3127948578 | AV158: -0.141 | BA158: 1903.753857 | BB158: 1903.871729 | BC158: 18.51162791 | BD158: 11.5113502 | BE158: 7.000277704 | BG158: -0.9948375109 | BH158: -0.1522 | BM158: 1970.234033 | BN158: 1970.587651 | BO158: 21.18803089 | BP158: 21.42380969 | BQ158: -0.2357788021 | BS158: 0.8935361904 | BT158: -1.65 | BX158: 143 | BY158: 19.00352113 | BZ158: 18.61842254
A159: 18680606 | B159: 1868.432543 | C159: 158 | D159: 12.6 | G159: 1869.169147 | H159: 1869.173513 | I159: 32.5 | J159: 22.7787037 | K159: 9.721296296 | M159: 0.8287960381 | N159: 0.0005 | O159: 0.8311360748 | P159: -0.0423 | V159: 1871.902046 | W159: 1871.915143 | X159: 10.67777778 | Y159: -10.67777778 | Z159: 20.10716049 | AA159: -9.429382716 | AC159: 0.624632497 | AD159: 1.741 | AE159: 0 | AI159: -0.6608895085 | AJ159: -0.01875 | AO159: 1879.393508 | AP159: 1879.432799 | AQ159: 7.082758621 | AR159: 6.869526546 | AS159: 0.2132320744 | AU159: 0.850147745 | AV159: -0.141 | BA159: 1903.989602 | BB159: 1904.107475 | BC159: 12.80116279 | BD159: 12.50153108 | BE159: 0.2996317087 | BG159: -0.8273202659 | BH159: -0.1522 | BM159: 1970.941269 | BN159: 1971.294887 | BO159: 19.78255814 | BP159: 22.16532779 | BQ159: -2.382769647 | BS159: 0.3958824684 | BT159: -1.65 | BX159: 144 | BY159: 19.52042254 | BZ159: 18.53957746
A160: 18680607 | B160: 1868.43528 | C160: 159 | D160: 20.5 | G160: 1869.177878 | H160: 1869.182244 | I160: 18.63333333 | J160: 23.46759259 | K160: -4.834259259 | M160: 0.9894252176 | N160: 0.0005 | O160: 0.9941214883 | P160: -0.0423 | V160: 1871.92824 | W160: 1871.941337 | X160: 16.39 | Y160: -16.39 | Z160: 19.66271605 | AA160: -3.272716049 | AC160: 0.8435306126 | AD160: 1.741 | AE160: 0 | AI160: -0.9886720481 | AJ160: -0.01875 | AO160: 1879.47209 | AP160: 1879.511381 | AQ160: 6.189285714 | AR160: 6.908949097 | AS160: -0.7196633826 | AU160: 0.989707054 | AV160: -0.141 | BA160: 1904.225347 | BB160: 1904.34322 | BC160: 12.59651163 | BD160: 13.15889542 | BE160: -0.5623837952 | BG160: -0.2726906739 | BH160: -0.1522 | BM160: 1971.648505 | BN160: 1972.002123 | BO160: 19.96550388 | BP160: 23.159229 | BQ160: -3.19372512 | BS160: -0.2870090603 | BT160: -1.65 | BX160: 145 | BY160: 18.92605634 | BZ160: 18.44476056
A161: 18680608 | B161: 1868.438018 | C161: 160 | D161: 50.6 | G161: 1869.18661 | H161: 1869.190975 | I161: 40.36666667 | J161: 21.84537037 | K161: 18.5212963 | M161: 0.6333216457 | N161: 0.0005 | O161: 0.691946409 | P161: -0.0423 | V161: 1871.954434 | W161: 1871.967531 | X161: 18.15555556 | Y161: -18.15555556 | Z161: 19.03382716 | AA161: -0.8782716049 | AC161: 0.9718561197 | AD161: 1.741 | AE161: 0 | AI161: -0.8538439484 | AJ161: -0.01875 | AO161: 1879.550672 | AP161: 1879.589963 | AQ161: 7.027586207 | AR161: 6.915079365 | AS161: 0.1125068418 | AU161: 0.6661714331 | AV161: -0.141 | BA161: 1904.461093 | BB161: 1904.578965 | BC161: 10.28139535 | BD161: 13.70710594 | BE161: -3.425710594 | BG161: 0.4095339151 | BH161: -0.1522 | BM161: 1972.355741 | BN161: 1972.709359 | BO161: 21.22084942 | BP161: 23.14587844 | BQ161: -1.925029016 | BS161: -0.83560586 | BT161: -1.65 | BX161: 146 | BY161: 16.22535211 | BZ161: 18.38943662
A162: 18680609 | B162: 1868.440756 | C162: 161 | D162: 6.7 | G162: 1869.195341 | H162: 1869.199707 | I162: 25.7 | J162: 21.10833333 | K162: 4.591666667 | M162: -0.05353763249 | N162: 0.0005 | O162: 0.06600191484 | P162: -0.0423 | V162: 1871.980628 | W162: 1871.993725 | X162: 13.8 | Y162: -13.8 | Z162: 20.20049383 | AA162: -6.400493827 | AC162: 0.9958302939 | AD162: 1.741 | AE162: 0 | AI162: -0.3194927759 | AJ162: -0.01875 | AO162: 1879.629254 | AP162: 1879.668545 | AQ162: 8.44137931 | AR162: 7.208347017 | AS162: 1.233032293 | AU162: 0.03092679496 | AV162: -0.141 | BA162: 1904.696838 | BB162: 1904.814711 | BC162: 12.06627907 | BD162: 14.0542903 | BE162: -1.988011227 | BG162: 0.9001330337 | BH162: -0.1522 | BM162: 1973.062977 | BN162: 1973.416595 | BO162: 28.35193798 | BP162: 23.85970273 | BQ162: 4.492235259 | BS162: -0.993213391 | BT162: -1.65 | BX162: 147 | BY162: 17.14647887 | BZ162: 18.21738028
A163: 18680610 | B163: 1868.443494 | C163: 162 | D163: 15.5 | G163: 1869.204072 | H163: 1869.208438 | I163: 12.7 | J163: 22.5 | K163: -9.8 | M163: -0.7124365882 | N163: 0.0005 | O163: -0.5908256088 | P163: -0.0423 | V163: 1872.006822 | W163: 1872.019919 | X163: 10.55 | Y163: -10.55 | Z163: 19.43493827 | AA163: -8.884938272 | AC163: 0.9128789507 | AD163: 1.741 | AE163: 0 | AI163: 0.3643526172 | AJ163: -0.01875 | AO163: 1879.707835 | AP163: 1879.747126 | AQ163: 7.679310345 | AR163: 7.341995074 | AS163: 0.3373152709 | AU163: -0.6187888343 | AV163: -0.141 | BA163: 1904.932583 | BB163: 1905.050456 | BC163: 16.25465116 | BD163: 13.15971665 | BE163: 3.094934509 | BG163: 0.969549902 | BH163: -0.1522 | BM163: 1973.770213 | BN163: 1974.123831 | BO163: 27.07868217 | BP163: 23.76798243 | BQ163: 3.310699736 | BS163: -0.6860853381 | BT163: -1.65 | BX163: 148 | BY163: 20.41267606 | BZ163: 18.00797183
A164: 18680611 | B164: 1868.446232 | C164: 163 | D164: 25.5 | G164: 1869.212804 | H164: 1869.217169 | I164: 24.2 | J164: 22.45185185 | K164: 1.748148148 | M164: -0.9992616246 | N164: 0.0005 | O164: -0.9711992638 | P164: -0.0423 | V164: 1872.033016 | W164: 1872.046113 | X164: 20.4 | Y164: -20.4 | Z164: 20.9262963 | AA164: -0.5262962963 | AC164: 0.7319088438 | AD164: 1.741 | AE164: 0 | AI164: 0.8777133714 | AJ164: -0.01875 | AO164: 1879.786417 | AP164: 1879.825708 | AQ164: 6.089285714 | AR164: 7.164600438 | AS164: -1.075314724 | AU164: -0.9789662909 | AV164: -0.141 | BA164: 1905.168329 | BB164: 1905.286201 | BC164: 13.64883721 | BD164: 13.22444534 | BE164: 0.4243918738 | BG164: 0.5853035958 | BH164: -0.1522 | BM164: 1974.477449 | BN164: 1974.831067 | BO164: 30.66138996 | BP164: 23.80209096 | BQ164: 6.859299 | BS164: -0.05793033049 | BT164: -1.65 | BX164: 149 | BY164: 19.22112676 | BZ164: 17.84349296
A165: 18680612 | B165: 1868.44897 | C165: 164 | D165: 7.1 | G165: 1869.221535 | H165: 1869.225901 | I165: 6.2 | J165: 24.48981481 | K165: -18.28981481 | M165: -0.7642167921 | N165: 0.0005 | O165: -0.8971379896 | P165: -0.0423 | V165: 1872.05921 | W165: 1872.072307 | X165: 22.13 | Y165: -22.13 | Z165: 21.57851852 | AA165: 0.5514814815 | AC165: 0.4723513186 | AD165: 1.741 | AE165: 0 | AI165: 0.9803822844 | AJ165: -0.01875 | AO165: 1879.864999 | AP165: 1879.90429 | AQ165: 8.289655172 | AR165: 7.601423098 | AS165: 0.6882320744 | AU165: -0.88107454 | AV165: -0.141 | BA165: 1905.404074 | BB165: 1905.521947 | BC165: 13.64883721 | BD165: 13.17263655 | BE165: 0.4762006594 | BG165: -0.07281276778 | BH165: -0.1522 | BM165: 1975.184685 | BN165: 1975.538303 | BO165: 22.76085271 | BP165: 24.44054919 | BQ165: -1.679696474 | BS165: 0.5973309226 | BT165: -1.65 | BX165: 150 | BY165: 19.18521127 | BZ165: 17.87095775
A166: 18680613 | B166: 1868.451708 | C166: 165 | D166: 11.8 | G166: 1869.230266 | H166: 1869.234632 | I166: 17.7 | J166: 24.15277778 | K166: -6.452777778 | M166: -0.1300555445 | N166: 0.0005 | O166: -0.4032958795 | P166: -0.0423 | V166: 1872.085404 | W166: 1872.098501 | X166: 45.91111111 | Y166: -45.91111111 | Z166: 21.46234568 | AA166: 24.44876543 | AC166: 0.1620759055 | AD166: 1.741 | AE166: 0 | AI166: 0.6243194308 | AJ166: -0.01875 | AO166: 1879.943581 | AP166: 1879.982872 | AQ166: 9.096551724 | AR166: 7.86423098 | AS166: 1.232320744 | AU166: -0.3709182198 | AV166: -0.141 | BA166: 1905.639819 | BB166: 1905.757692 | BC166: 16.67931034 | BD166: 13.44460037 | BE166: 3.234709971 | BG166: -0.6968592281 | BH166: -0.1522 | BM166: 1975.891921 | BN166: 1976.245539 | BO166: 23.72751938 | BP166: 24.90588595 | BQ166: -1.178366573 | BS166: 0.9730943984 | BT166: -1.65 | BX166: 151 | BY166: 18.0528169 | BZ166: 17.90492958
A167: 18680614 | B167: 1868.454445 | C167: 166 | D167: 21.2 | G167: 1869.238998 | H167: 1869.243363 | I167: 24.5 | J167: 24.30833333 | K167: 0.1916666667 | M167: 0.5720279251 | N167: 0.0005 | O167: 0.2792528548 | P167: -0.0423 | V167: 1872.111598 | W167: 1872.124695 | X167: 16.9 | Y167: -16.9 | Z167: 23.20432099 | AA167: -6.304320988 | AC167: -0.1656021214 | AD167: 1.741 | AE167: 0 | AI167: -0.02386942298 | AJ167: -0.01875 | AO167: 1880.022163 | AP167: 1880.061453 | AQ167: 6.182142857 | AR167: 8.322085386 | AS167: -2.139942529 | AU167: 0.3127948578 | AV167: -0.141 | BA167: 1905.875564 | BB167: 1905.993437 | BC167: 10.46046512 | BD167: 13.7041611 | BE167: -3.243695981 | BG167: -0.9948375109 | BH167: -0.1522 | BM167: 1976.599157 | BN167: 1976.952775 | BO167: 20.36254826 | BP167: 23.92703152 | BQ167: -3.564483254 | BS167: 0.8935361904 | BT167: -1.65 | BX167: 152 | BY167: 18.41338028 | BZ167: 17.90292958
A168: 18680615 | B168: 1868.457183 | C168: 167 | D168: 19.5 | G168: 1869.247729 | H168: 1869.252095 | I168: 32.06666667 | J168: 29.44166667 | K168: 2.625 | M168: 0.9753666706 | N168: 0.0005 | O168: 0.8311360748 | P168: -0.0423 | V168: 1872.137792 | W168: 1872.150889 | X168: 24.1 | Y168: -24.1 | Z168: 23.87209877 | AA168: 0.2279012346 | AC168: -0.4754989133 | AD168: 1.741 | AE168: 0 | AI168: -0.6608895085 | AJ168: -0.01875 | AO168: 1880.100744 | AP168: 1880.140035 | AQ168: 5.486206897 | AR168: 8.33166393 | AS168: -2.845457033 | AU168: 0.850147745 | AV168: -0.141 | BA168: 1906.11131 | BB168: 1906.229182 | BC168: 13.38372093 | BD168: 13.82354094 | BE168: -0.4398200125 | BG168: -0.8273202659 | BH168: -0.1522 | BM168: 1977.306392 | BN168: 1977.66001 | BO168: 20.08953488 | BP168: 22.79240619 | BQ168: -2.70287131 | BS168: 0.3958824684 | BT168: -1.65 | BX168: 153 | BY168: 15.14929577 | BZ168: 17.8415493
A169: 18680616 | B169: 1868.459921 | C169: 168 | D169: 20.2 | G169: 1869.25646 | H169: 1869.260826 | I169: 36.975 | J169: 31.54166667 | K169: 5.433333333 | M169: 0.869314818 | N169: 0.0005 | O169: 0.9941214883 | P169: -0.0423 | V169: 1872.163986 | W169: 1872.177083 | X169: 22.26 | Y169: -22.26 | Z169: 25.75975309 | AA169: -3.499753086 | AC169: -0.7343398499 | AD169: 1.741 | AE169: 0 | AI169: -0.9886720481 | AJ169: -0.01875 | AO169: 1880.179326 | AP169: 1880.218617 | AQ169: 10.12068966 | AR169: 8.684961686 | AS169: 1.435727969 | AU169: 0.989707054 | AV169: -0.141 | BA169: 1906.347055 | BB169: 1906.464928 | BC169: 12.13023256 | BD169: 14.1166934 | BE169: -1.986460839 | BG169: -0.2726906739 | BH169: -0.1522 | BM169: 1978.013628 | BN169: 1978.367246 | BO169: 25.71162791 | BP169: 21.97760568 | BQ169: 3.734022228 | BS169: -0.2870090603 | BT169: -1.65 | BX169: 154 | BY169: 15.63028169 | BZ169: 17.79039437
A170: 18680617 | B170: 1868.462659 | C170: 169 | D170: 20.8 | G170: 1869.265192 | H170: 1869.269557 | I170: 37.33333333 | J170: 32.28333333 | K170: =I170-J170 -> 5.05 | M170: 0.3092585294 | N170: 0.0005 | O170: 0.6919464091 | P170: -0.0423 | V170: 1872.19018 | W170: 1872.203277 | X170: 17.11 | Y170: -17.11 | Z170: 25.61753086 | AA170: -8.507530864 | AC170: -0.9143323432 | AD170: 1.741 | AE170: 0 | AI170: -0.8538439484 | AJ170: -0.01875 | AO170: 1880.257908 | AP170: 1880.297199 | AQ170: 9.392857143 | AR170: 10.34880952 | AS170: -0.955952381 | AU170: 0.6661714331 | AV170: -0.141 | BA170: 1906.5828 | BB170: 1906.700673 | BC170: 12.72906977 | BD170: 14.30467789 | BE170: -1.575608126 | BG170: 0.4095339151 | BH170: -0.1522 | BM170: 1978.720864 | BN170: 1979.074482 | BO170: 25.40888031 | BP170: 22.56403979 | BQ170: 2.844840522 | BS170: -0.83560586 | BT170: -1.65 | BX170: 155 | BY170: 18.24859155 | BZ170: 17.73926761
A171: 18680618 | B171: 1868.465397 | C171: 170 | D171: 11.5 | G171: 1869.273923 | H171: 1869.278289 | I171: 27.1 | J171: 31.45 | K171: -4.35 | M171: -0.4123097238 | N171: 0.0005 | O171: 0.06600191486 | P171: -0.0423 | V171: 1872.216374 | W171: 1872.229471 | X171: 29.47777778 | Y171: -29.47777778 | Z171: 22.43851852 | AA171: 7.039259259 | AC171: -0.9961500174 | AD171: 1.741 | AE171: 0 | AI171: -0.3194927759 | AJ171: -0.01875 | AO171: 1880.33649 | AP171: 1880.375781 | AQ171: 12.56206897 | AR171: 10.63156814 | AS171: 1.930500821 | AU171: 0.03092679497 | AV171: -0.141 | BA171: 1906.818546 | BB171: 1906.936418 | BC171: 14.40232558 | BD171: 14.0873088 | BE171: 0.315016781 | BG171: 0.9001330337 | BH171: -0.1522 | BM171: 1979.4281 | BN171: 1979.781718 | BO171: 19.54224806 | BP171: 23.60495279 | BQ171: -4.062704731 | BS171: -0.993213391 | BT171: -1.65 | BX171: 156 | BY171: 16.45985915 | BZ171: 17.66811268
A172: 18680619 | B172: 1868.468135 | C172: 171 | D172: 26.6 | G172: 1869.282654 | H172: 1869.28702 | I172: 58.9 | J172: 30.80555556 | K172: 28.09444444 | M172: -0.9185469604 | N172: 0.0005 | O172: -0.5908256088 | P172: -0.0423 | V172: 1872.242567 | W172: 1872.255664 | X172: 16.56 | Y172: -16.56 | Z172: 22.81185185 | AA172: -6.251851852 | AC172: -0.9710078444 | AD172: 1.741 | AE172: 0 | AI172: 0.3643526172 | AJ172: -0.01875 | AO172: 1880.415071 | AP172: 1880.454362 | AQ172: 7.765517241 | AR172: 11.06343733 | AS172: -3.297920088 | AU172: -0.6187888343 | AV172: -0.141 | BA172: 1907.054291 | BB172: 1907.172164 | BC172: 17.32906977 | BD172: 14.74131397 | BE172: 2.587755799 | BG172: 0.969549902 | BH172: -0.1522 | BM172: 1980.135336 | BN172: 1980.488954 | BO172: 16.86705426 | BP172: 24.7104011 | BQ172: -7.843346835 | BS172: -0.6860853381 | BT172: -1.65 | BX172: 157 | BY172: 17.12112676 | BZ172: 17.61969014
A173: 18680620 | B173: 1868.470872 | C173: 172 | D173: 22 | G173: 1869.291385 | H173: 1869.295751 | I173: 43.1 | J173: 28.4462963 | K173: 14.6537037 | M173: -0.9450680044 | N173: 0.0005 | O173: -0.9711992638 | P173: -0.0423 | V173: 1872.268761 | W173: 1872.281858 | X173: 37.38888889 | Y173: -37.38888889 | Z173: 22.79851852 | AA173: 14.59037037 | AC173: -0.8416054205 | AD173: 1.741 | AE173: 0 | AI173: 0.8777133714 | AJ173: -0.01875 | AO173: 1880.493653 | AP173: 1880.532944 | AQ173: 9.268965517 | AR173: 12.46377942 | AS173: -3.194813903 | AU173: -0.9789662909 | AV173: -0.141 | BA173: 1907.290036 | BB173: 1907.407909 | BC173: 16.2872093 | BD173: 15.23188244 | BE173: 1.055326859 | BG173: 0.5853035958 | BH173: -0.1522 | BM173: 1980.842572 | BN173: 1981.19619 | BO173: 23.32818533 | BP173: 25.61742091 | BQ173: -2.289235581 | BS173: -0.05793033049 | BT173: -1.65 | BX173: 158 | BY173: 17.95774648 | BZ173: 17.47670423
A174: 18680621 | B174: 1868.47361 | C174: 173 | D174: 22.8 | G174: 1869.300117 | H174: 1869.304482 | I174: 12.875 | J174: 25.92314815 | K174: -13.04814815 | M174: -0.478022095 | N174: 0.0005 | O174: -0.8971379896 | P174: -0.0423 | V174: 1872.294955 | W174: 1872.308052 | X174: 20.85 | Y174: -20.85 | Z174: 22.77333333 | AA174: -1.923333333 | AC174: -0.6218371023 | AD174: 1.741 | AE174: 0 | AI174: 0.9803822845 | AJ174: -0.01875 | AO174: 1880.572235 | AP174: 1880.611526 | AQ174: 23.26428571 | AR174: 13.03312808 | AS174: 10.23115764 | AU174: -0.88107454 | AV174: -0.141 | BA174: 1907.525782 | BB174: 1907.643654 | BC174: 15.34069767 | BD174: 15.8000995 | BE174: -0.4594018236 | BG174: -0.07281276778 | BH174: -0.1522 | BM174: 1981.549808 | BN174: 1981.903426 | BO174: 28.03875969 | BP174: 25.98490584 | BQ174: 2.053853854 | BS174: 0.5973309226 | BT174: -1.65 | BX174: 159 | BY174: 18.39225352 | BZ174: 17.46738028
A175: 18680622 | B175: 1868.476348 | C175: 174 | D175: 10.8 | G175: 1869.308848 | H175: 1869.313214 | I175: 10.2 | J175: 25.51111111 | K175: -15.31111111 | M175: 0.2386734777 | N175: 0.0005 | O175: -0.4032958795 | P175: -0.0423 | V175: 1872.321149 | W175: 1872.334246 | X175: 17.3 | Y175: -17.3 | Z175: 22.83333333 | AA175: -5.533333333 | AC175: -0.3353001245 | AD175: 1.741 | AE175: 0 | AI175: 0.6243194309 | AJ175: -0.01875 | AO175: 1880.650817 | AP175: 1880.690108 | AQ175: 11.64137931 | AR175: 13.26648878 | AS175: -1.625109469 | AU175: -0.3709182198 | AV175: -0.141 | BA175: 1907.761527 | BB175: 1907.8794 | BC175: 14.72298851 | BD175: 16.51560337 | BE175: -1.792614868 | BG175: -0.6968592281 | BH175: -0.1522 | BM175: 1982.257044 | BN175: 1982.610662 | BO175: 33.09573643 | BP175: 25.63710604 | BQ175: 7.458630391 | BS175: 0.9730943984 | BT175: -1.65 | BX175: 160 | BY175: 18.42816901 | BZ175: 17.3488169
A176: 18680623 | B176: 1868.479086 | C176: 175 | D176: 9.6 | G176: 1869.317579 | H176: 1869.321945 | I176: 18.7 | J176: 26.45925926 | K176: -7.759259259 | M176: 0.8307205164 | N176: 0.0005 | O176: 0.2792528548 | P176: -0.0423 | V176: 1872.347343 | W176: 1872.36044 | X176: 20.26 | Y176: -20.26 | Z176: 21.20617284 | AA176: -0.9461728395 | AC176: -0.01276088856 | AD176: 1.741 | AE176: 0 | AI176: -0.02386942296 | AJ176: -0.01875 | AO176: 1880.729398 | AP176: 1880.768689 | AQ176: 10.06896552 | AR176: 13.71990969 | AS176: -3.650944171 | AU176: 0.3127948577 | AV176: -0.141 | BA176: 1907.997272 | BB176: 1908.115145 | BC176: 16.34651163 | BD176: 16.86896255 | BE176: -0.5224509192 | BG176: -0.9948375109 | BH176: -0.1522 | BM176: 1982.96428 | BN176: 1983.317898 | BO176: 30.31158301 | BP176: 25.90851649 | BQ176: 4.403066522 | BS176: 0.8935361904 | BT176: -1.65 | BX176: 161 | BY176: 18.89084507 | BZ176: 17.13892958
A177: 18680624 | B177: 1868.481824 | C177: 176 | D177: 19.3 | G177: 1869.326311 | H177: 1869.330676 | I177: 10.83333333 | J177: 27.37407407 | K177: -16.54074074 | M177: 0.988919205 | N177: 0.0005 | O177: 0.8311360748 | P177: -0.0423 | V177: 1872.373537 | W177: 1872.386634 | X177: 23.98 | Y177: -23.98 | Z177: 21.09950617 | AA177: 2.880493827 | AC177: 0.3111485253 | AD177: 1.741 | AE177: 0 | AI177: -0.6608895085 | AJ177: -0.01875 | AO177: 1880.80798 | AP177: 1880.847271 | AQ177: 18.08928571 | AR177: 14.58810892 | AS177: 3.501176793 | AU177: 0.850147745 | AV177: -0.141 | BA177: 1908.233018 | BB177: 1908.35089 | BC177: 17.79883721 | BD177: 16.81405299 | BE177: 0.9847842229 | BG177: -0.8273202659 | BH177: -0.1522 | BM177: 1983.671516 | BN177: 1984.025134 | BO177: 28.25271318 | BP177: 26.12936059 | BQ177: 2.123352588 | BS177: 0.3958824684 | BT177: -1.65 | BX177: 162 | BY177: 18.78309859 | BZ177: 16.97473239
A178: 18680625 | B178: 1868.484562 | C178: 177 | D178: 14 | G178: 1869.335042 | H178: 1869.339408 | I178: 14.26666667 | J178: 24.71111111 | K178: -10.44444444 | M178: 0.6306494101 | N178: 0.0005 | O178: 0.9941214883 | P178: -0.0423 | V178: 1872.399731 | W178: 1872.412828 | X178: 22.03333333 | Y178: -22.03333333 | Z178: 21.60814815 | AA178: 0.4251851852 | AC178: 0.6016489162 | AD178: 1.741 | AE178: 0 | AI178: -0.988672048 | AJ178: -0.01875 | AO178: 1880.886562 | AP178: 1880.925853 | AQ178: 15.24482759 | AR178: 14.61071429 | AS178: 0.6341133005 | AU178: 0.989707054 | AV178: -0.141 | BA178: 1908.468763 | BB178: 1908.586635 | BC178: 17.24418605 | BD178: 16.38937598 | BE178: 0.8548100627 | BG178: -0.2726906739 | BH178: -0.1522 | BM178: 1984.378752 | BN178: 1984.73237 | BO178: 29.01899225 | BP178: 25.77411864 | BQ178: 3.244873611 | BS178: -0.2870090603 | BT178: -1.65 | BX178: 163 | BY178: 17.56619718 | BZ178: 16.87816901
A179: 18680626 | B179: 1868.4873 | C179: 178 | D179: 22.3 | G179: 1869.343773 | H179: 1869.348139 | I179: 33.625 | J179: 24.56574074 | K179: 9.059259259 | M179: -0.05698050137 | N179: 0.0005 | O179: 0.6919464091 | P179: -0.0423 | V179: 1872.425925 | W179: 1872.439022 | X179: 17.65 | Y179: -17.65 | Z179: 21.57148148 | AA179: -3.921481481 | AC179: 0.8275483183 | AD179: 1.741 | AE179: 0 | AI179: -0.8538439485 | AJ179: -0.01875 | AO179: 1880.965144 | AP179: 1881.004435 | AQ179: 11.49310345 | AR179: 13.33882047 | AS179: -1.845717022 | AU179: 0.6661714331 | AV179: -0.141 | BA179: 1908.704508 | BB179: 1908.822381 | BC179: 19.16860465 | BD179: 17.00655945 | BE179: 2.162045205 | BG179: 0.4095339151 | BH179: -0.1522 | BM179: 1985.085988 | BN179: 1985.439606 | BO179: 22.27868217 | BP179: 25.03103037 | BQ179: -2.752348195 | BS179: -0.83560586 | BT179: -1.65 | BX179: 164 | BY179: 16.40211268 | BZ179: 16.8403662
A180: 18680627 | B180: 1868.490037 | C180: 179 | D180: 17.1 | G180: 1869.352505 | H180: 1869.35687 | I180: 35.63333333 | J180: 23.97314815 | K180: 11.66018519 | M180: -0.7148520332 | N180: 0.0005 | O180: 0.06600191488 | P180: -0.0423 | V180: 1872.452119 | W180: 1872.465216 | X180: 14.83333333 | Y180: -14.83333333 | Z180: 21.20604938 | AA180: -6.372716049 | AC180: 0.9645911826 | AD180: 1.741 | AE180: 0 | AI180: -0.319492776 | AJ180: -0.01875 | AO180: 1881.043726 | AP180: 1881.083016 | AQ180: 16.64285714 | AR180: 13.22033388 | AS180: 3.422523262 | AU180: 0.03092679497 | AV180: -0.141 | BA180: 1908.940253 | BB180: 1909.058126 | BC180: 17.58255814 | BD180: 16.83229974 | BE180: 0.7502583979 | BG180: 0.9001330337 | BH180: -0.1522 | BM180: 1985.793224 | BN180: 1986.146841 | BO180: 21.98494208 | BP180: 24.74532838 | BQ180: -2.7603863 | BS180: -0.993213391 | BT180: -1.65 | BX180: 165 | BY180: 15.43802817 | BZ180: 16.82169014
A181: 18680628 | B181: 1868.492775 | C181: 180 | D181: 13.7 | G181: 1869.361236 | H181: 1869.365602 | I181: 67.13333333 | J181: 23.14259259 | K181: 43.99074074 | M181: -0.9993881663 | N181: 0.0005 | O181: -0.5908256088 | P181: -0.0423 | V181: 1872.478313 | W181: 1872.49141 | X181: 15.6 | Y181: -15.6 | Z181: 22.97271605 | AA181: -7.372716049 | AC181: 0.9980627737 | AD181: 1.741 | AE181: 0 | AI181: 0.3643526172 | AJ181: -0.01875 | AO181: 1881.122307 | AP181: 1881.161598 | AQ181: 15.57931034 | AR181: 13.22378216 | AS181: 2.355528188 | AU181: -0.6187888343 | AV181: -0.141 | BA181: 1909.175999 | BB181: 1909.293871 | BC181: 16.83488372 | BD181: 17.12470522 | BE181: -0.2898214975 | BG181: 0.969549902 | BH181: -0.1522 | BM181: 1986.500459 | BN181: 1986.854077 | BO181: 18.85465116 | BP181: 24.38430839 | BQ181: -5.529657232 | BS181: -0.6860853381 | BT181: -1.65 | BX181: 166 | BY181: 16.42957746 | BZ181: 16.89690141
A182: 18680629 | B182: 1868.495513 | C182: 181 | D182: 13.2 | G182: 1869.369967 | H182: 1869.374333 | I182: 19.13333333 | J182: 23.3537037 | K182: -4.22037037 | M182: -0.7619883434 | N182: 0.0005 | O182: -0.9711992638 | P182: -0.0423 | V182: 1872.504507 | W182: 1872.517604 | X182: 41.96666667 | Y182: -41.96666667 | Z182: 22.77382716 | AA182: 19.19283951 | AC182: 0.9243691388 | AD182: 1.741 | AE182: 0 | AI182: 0.8777133714 | AJ182: -0.01875 | AO182: 1881.200889 | AP182: 1881.24018 | AQ182: 9.472413793 | AR182: 12.34949371 | AS182: -2.877079912 | AU182: -0.9789662909 | AV182: -0.141 | BA182: 1909.411744 | BB182: 1909.529617 | BC182: 12.46511628 | BD182: 16.75920134 | BE182: -4.294085063 | BG182: 0.5853035958 | BH182: -0.1522 | BM182: 1987.207695 | BN182: 1987.561313 | BO182: 20.13100775 | BP182: 24.47240247 | BQ182: -4.341394717 | BS182: -0.05793033049 | BT182: -1.65 | BX182: 167 | BY182: 16.47746479 | BZ182: 16.97149296
A183: 18680630 | B183: 1868.498251 | C183: 182 | D183: 32.1 | G183: 1869.378699 | H183: 1869.383064 | I183: 11.56666667 | J183: 23.81666667 | K183: -12.25 | M183: -0.126635925 | N183: 0.0005 | O183: -0.8971379896 | P183: -0.0423 | V183: 1872.530701 | W183: 1872.543798 | X183: 20.52 | Y183: -20.52 | Z183: 22.56148148 | AA183: -2.041481481 | AC183: 0.7514230017 | AD183: 1.741 | AE183: 0 | AI183: 0.9803822845 | AJ183: -0.01875 | AO183: 1881.279471 | AP183: 1881.318762 | AQ183: 11.81724138 | AR183: 11.55363985 | AS183: 0.2636015326 | AU183: -0.88107454 | AV183: -0.141 | BA183: 1909.647489 | BB183: 1909.765362 | BC183: 20.89534884 | BD183: 17.21927886 | BE183: 3.676069975 | BG183: -0.07281276778 | BH183: -0.1522 | BM183: 1987.914931 | BN183: 1988.268549 | BO183: 21.35096525 | BP183: 24.14492616 | BQ183: -2.793960904 | BS183: 0.5973309226 | BT183: -1.65 | BX183: 168 | BY183: 17.22464789 | BZ183: 16.95732394
A184: 18680701 | B184: 1868.500989 | C184: 183 | D184: 14.3 | G184: 1869.38743 | H184: 1869.391796 | I184: 4.866666667 | J184: 22.26574074 | K184: -17.39907407 | M184: 0.5748528004 | N184: 0.0005 | O184: -0.4032958795 | P184: -0.0423 | V184: 1872.556895 | W184: 1872.569991 | X184: 14.01111111 | Y184: -14.01111111 | Z184: 23.58925926 | AA184: -9.578148148 | AC184: 0.497794148 | AD184: 1.741 | AE184: 0 | AI184: 0.6243194309 | AJ184: -0.01875 | AO184: 1881.358053 | AP184: 1881.397344 | AQ184: 10.575 | AR184: 12.30344828 | AS184: -1.728448276 | AU184: -0.3709182198 | AV184: -0.141 | BA184: 1909.883235 | BB184: 1910.001107 | BC184: 13.15465116 | BD184: 17.11023493 | BE184: -3.955583771 | BG184: -0.6968592281 | BH184: -0.1522 | BM184: 1988.622167 | BN184: 1988.975785 | BO184: 30.5244186 | BP184: 25.8315756 | BQ184: 4.692843009 | BS184: 0.9730943984 | BT184: -1.65 | BX184: 169 | BY184: 18.30985915 | BZ184: 17.01577465
A185: 18680702 | B185: 1868.503727 | C185: 184 | D185: 10.3 | G185: 1869.396161 | H185: 1869.400527 | I185: 11.225 | J185: 21.86944444 | K185: -10.64444444 | M185: 0.976121495 | N185: 0.0005 | O185: 0.2792528548 | P185: -0.0423 | V185: 1872.583088 | W185: 1872.596185 | X185: 36.16 | Y185: -36.16 | Z185: 23.49790123 | AA185: 12.66209877 | AC185: 0.1907155276 | AD185: 1.741 | AE185: 0 | AI185: -0.02386942294 | AJ185: -0.01875 | AO185: 1881.436634 | AP185: 1881.475925 | AQ185: 10.1 | AR185: 11.9228243 | AS185: -1.822824302 | AU185: 0.3127948577 | AV185: -0.141 | BA185: 1910.11898 | BB185: 1910.236853 | BC185: 18.97816092 | BD185: 17.71604889 | BE185: 1.262112032 | BG185: -0.9948375109 | BH185: -0.1522 | BM185: 1989.329403 | BN185: 1989.683021 | BO185: 27.0624031 | BP185: 26.24543231 | BQ185: 0.8169707914 | BS185: 0.8935361904 | BT185: -1.65 | BX185: 170 | BY185: 15.35140845 | BZ185: 17.02366197
A186: 18680703 | B186: 1868.506465 | C186: 185 | D186: 10 | G186: 1869.404892 | H186: 1869.409258 | I186: 12.73333333 | J186: 16.13796296 | K186: -3.40462963 | M186: 0.8676053803 | N186: 0.0005 | O186: 0.8311360748 | P186: -0.0423 | V186: 1872.609282 | W186: 1872.622379 | X186: 22.19 | Y186: -22.19 | Z186: 23.79901235 | AA186: -1.609012346 | AC186: -0.1368408355 | AD186: 1.741 | AE186: 0 | AI186: -0.6608895085 | AJ186: -0.01875 | AO186: 1881.515216 | AP186: 1881.554507 | AQ186: 10.22068966 | AR186: 12.29218664 | AS186: -2.07149699 | AU186: 0.850147745 | AV186: -0.141 | BA186: 1910.354725 | BB186: 1910.472598 | BC186: 14.50930233 | BD186: 17.64098429 | BE186: -3.131681963 | BG186: -0.8273202659 | BH186: -0.1522 | BM186: 1990.036639 | BN186: 1990.390257 | BO186: 29.04555985 | BP186: 27.08376134 | BQ186: 1.961798509 | BS186: 0.3958824684 | BT186: -1.65 | BX186: 171 | BY186: 15.99225352 | BZ186: 16.93250704
A187: 18680704 | B187: 1868.509202 | C187: 186 | D187: 26.7 | G187: 1869.413624 | H187: 1869.417989 | I187: 18.43333333 | J187: 16.20462963 | K187: 2.228703704 | M187: 0.3059775929 | N187: 0.0005 | O187: 0.9941214883 | P187: -0.0423 | V187: 1872.635476 | W187: 1872.648573 | X187: 20.12222222 | Y187: -20.12222222 | Z187: 21.81259259 | AA187: -1.69037037 | AC187: -0.4497041557 | AD187: 1.741 | AE187: 0 | AI187: -0.988672048 | AJ187: -0.01875 | AO187: 1881.593798 | AP187: 1881.633089 | AQ187: 8.082142857 | AR187: 13.68797209 | AS187: -5.605829228 | AU187: 0.989707054 | AV187: -0.141 | BA187: 1910.590471 | BB187: 1910.708343 | BC187: 21.38488372 | BD187: 17.6020954 | BE187: 3.782788322 | BG187: -0.2726906739 | BH187: -0.1522 | BM187: 1990.743875 | BN187: 1991.097493 | BO187: 26.07170543 | BP187: 28.11631948 | BQ187: -2.044614049 | BS187: -0.2870090603 | BT187: -1.65 | BX187: 172 | BY187: 14.18239437 | BZ187: 16.8355493
A188: 18680705 | B188: 1868.51194 | C188: 187 | D188: 17.7 | G188: 1869.422355 | H188: 1869.426721 | I188: 19.66666667 | J188: 16.6712963 | K188: 2.99537037 | M188: -0.4154486721 | N188: 0.0005 | O188: 0.6919464091 | P188: -0.0423 | V188: 1872.66167 | W188: 1872.674767 | X188: 26.9 | Y188: -26.9 | Z188: 24.48148148 | AA188: 2.418518519 | AC188: -0.7142812871 | AD188: 1.741 | AE188: 0 | AI188: -0.8538439485 | AJ188: -0.01875 | AO188: 1881.67238 | AP188: 1881.711671 | AQ188: 18.24137931 | AR188: 14.31479201 | AS188: 3.926587302 | AU188: 0.6661714331 | AV188: -0.141 | BA188: 1910.826216 | BB188: 1910.944089 | BC188: 18.1872093 | BD188: 16.56281891 | BE188: 1.624390389 | BG188: 0.4095339151 | BH188: -0.1522 | BM188: 1991.451111 | BN188: 1991.804729 | BO188: 37.45852713 | BP188: 28.61130017 | BQ188: 8.847226961 | BS188: -0.83560586 | BT188: -1.65 | BX188: 173 | BY188: 15.16549296 | BZ188: 16.77084507
A189: 18680706 | B189: 1868.514678 | C189: 188 | D189: 18.1 | G189: 1869.431086 | H189: 1869.435452 | I189: 32.06666667 | J189: 17.96018519 | K189: 14.10648148 | M189: -0.9199045874 | N189: 0.0005 | O189: 0.06600191491 | P189: -0.0423 | V189: 1872.687864 | W189: 1872.700961 | X189: 14.01111111 | Y189: -14.01111111 | Z189: 28.32469136 | AA189: -14.31358025 | AC189: -0.902163728 | AD189: 1.741 | AE189: 0 | AI189: -0.319492776 | AJ189: -0.01875 | AO189: 1881.750961 | AP189: 1881.790252 | AQ189: 13.21724138 | AR189: 15.293815 | AS189: -2.076573618 | AU189: 0.03092679498 | AV189: -0.141 | BA189: 1911.061961 | BB189: 1911.179834 | BC189: 23.03488372 | BD189: 15.95312899 | BE189: 7.08175473 | BG189: 0.9001330337 | BH189: -0.1522 | BM189: 1992.158347 | BN189: 1992.511965 | BO189: 25.70965251 | BP189: 27.69945693 | BQ189: -1.989804422 | BS189: -0.993213391 | BT189: -1.65 | BX189: 174 | BY189: 15.11619718 | BZ189: 16.77343662
A190: 18680707 | B190: 1868.517416 | C190: 189 | D190: 10.1 | G190: 1869.439818 | H190: 1869.444183 | I190: 15.55 | J190: 18.35740741 | K190: -2.807407407 | M190: -0.943935282 | N190: 0.0005 | O190: -0.5908256088 | P190: -0.0423 | V190: 1872.714058 | W190: 1872.727155 | X190: 18.31 | Y190: -18.31 | Z190: 27.0982716 | AA190: -8.788271605 | AC190: -0.9931779333 | AD190: 1.741 | AE190: 0 | AI190: 0.3643526171 | AJ190: -0.01875 | AO190: 1881.829543 | AP190: 1881.868834 | AQ190: 18.90357143 | AR190: 15.99778325 | AS190: 2.905788177 | AU190: -0.6187888343 | AV190: -0.141 | BA190: 1911.297707 | BB190: 1911.415579 | BC190: 16.15930233 | BD190: 14.85427842 | BE190: 1.305023909 | BG190: 0.969549902 | BH190: -0.1522 | BM190: 1992.865583 | BN190: 1993.219201 | BO190: 26.3996124 | BP190: 26.90979285 | BQ190: -0.5101804462 | BS190: -0.6860853381 | BT190: -1.65 | BX190: 175 | BY190: 16.77112676 | BZ190: 16.69073239
A191: 18680708 | B191: 1868.520154 | C191: 190 | D191: 17.8 | G191: 1869.448549 | H191: 1869.452915 | I191: 19.73333333 | J191: 18.61203704 | K191: 1.121296296 | M191: -0.4749905937 | N191: 0.0005 | O191: -0.9711992638 | P191: -0.0423 | V191: 1872.740252 | W191: 1872.753349 | X191: 24.08888889 | Y191: -24.08888889 | Z191: 28.43382716 | AA191: -4.344938272 | AC191: -0.9775514137 | AD191: 1.741 | AE191: 0 | AI191: 0.8777133714 | AJ191: -0.01875 | AO191: 1881.908125 | AP191: 1881.947416 | AQ191: 22.03448276 | AR191: 17.98820471 | AS191: 4.046278051 | AU191: -0.9789662909 | AV191: -0.141 | BA191: 1911.533452 | BB191: 1911.651324 | BC191: 12.11511628 | BD191: 14.25014405 | BE191: -2.13502777 | BG191: 0.5853035958 | BH191: -0.1522 | BM191: 1993.572819 | BN191: 1993.926437 | BO191: 29.42403101 | BP191: 25.67088251 | BQ191: 3.753148497 | BS191: -0.05793033049 | BT191: -1.65 | BX191: 176 | BY191: 17.10774648 | BZ191: 16.74552113
A192: 18680709 | B192: 1868.522892 | C192: 191 | D192: 37.3 | G192: 1869.45728 | H192: 1869.461646 | I192: 15.76666667 | J192: 20.14907407 | K192: -4.382407407 | M192: 0.2420205397 | N192: 0.0005 | O192: -0.8971379897 | P192: -0.0423 | V192: 1872.766446 | W192: 1872.779543 | X192: 44.54 | Y192: -44.54 | Z192: 28.0054321 | AA192: 16.5345679 | AC192: -0.856962039 | AD192: 1.741 | AE192: 0 | AI192: 0.9803822845 | AJ192: -0.01875 | AO192: 1881.986707 | AP192: 1882.025998 | AQ192: 17.45862069 | AR192: 19.90283251 | AS192: -2.444211823 | AU192: -0.88107454 | AV192: -0.141 | BA192: 1911.769197 | BB192: 1911.88707 | BC192: 11.54186047 | BD192: 12.96228875 | BE192: -1.420428287 | BG192: -0.07281276778 | BH192: -0.1522 | BM192: 1994.280055 | BN192: 1994.633672 | BO192: 25.80579151 | BP192: 24.55619689 | BQ192: 1.249594611 | BS192: 0.5973309226 | BT192: -1.65 | BX192: 177 | BY192: 17.94647887 | BZ192: 16.86450704
A193: 18680710 | B193: 1868.52563 | C193: 192 | D193: 27.6 | G193: 1869.466012 | H193: 1869.470377 | I193: 16.46666667 | J193: 20.71203704 | K193: -4.24537037 | M193: 0.8326351177 | N193: 0.0005 | O193: -0.4032958796 | P193: -0.0423 | V193: 1872.79264 | W193: 1872.805737 | X193: 48.6 | Y193: -48.6 | Z193: 27.11432099 | AA193: 21.48567901 | AC193: -0.6443578803 | AD193: 1.741 | AE193: 0 | AI193: 0.6243194309 | AJ193: -0.01875 | AO193: 1882.065289 | AP193: 1882.104579 | AQ193: 19.3862069 | AR193: 19.8402983 | AS193: -0.4540914067 | AU193: -0.3709182198 | AV193: -0.141 | BA193: 1912.004942 | BB193: 1912.122815 | BC193: 7.66744186 | BD193: 11.96603552 | BE193: -4.298593662 | BG193: -0.6968592281 | BH193: -0.1522 | BM193: 1994.98729 | BN193: 1995.340908 | BO193: 22.31782946 | BP193: 22.48802291 | BQ193: -0.1701934493 | BS193: 0.9730943984 | BT193: -1.65 | BX193: 178 | BY193: 17.02957746 | BZ193: 16.91301408
A194: 18680711 | B194: 1868.528367 | C194: 193 | D194: 43 | G194: 1869.474743 | H194: 1869.479109 | I194: 14.8 | J194: 18.55648148 | K194: -3.756481481 | M194: 0.9884014345 | N194: 0.0005 | O194: 0.2792528547 | P194: -0.0423 | V194: 1872.818834 | W194: 1872.831931 | X194: 25.12222222 | Y194: -25.12222222 | Z194: 27.3982716 | AA194: -2.276049383 | AC194: -0.3625669332 | AD194: 1.741 | AE194: 0 | AI194: -0.02386942291 | AJ194: -0.01875 | AO194: 1882.14387 | AP194: 1882.183161 | AQ194: 16.43571429 | AR194: 20.31922551 | AS194: -3.883511221 | AU194: 0.3127948577 | AV194: -0.141 | BA194: 1912.240688 | BB194: 1912.35856 | BC194: 9.088505747 | BD194: 10.53024741 | BE194: -1.441741661 | BG194: -0.9948375109 | BH194: -0.1522 | BM194: 1995.694526 | BN194: 1996.048144 | BO194: 19.95542636 | BP194: 22.07416619 | BQ194: -2.118739836 | BS194: 0.8935361904 | BT194: -1.65 | BX194: 179 | BY194: 17.49507042 | BZ194: 17.00061972
A195: 18680712 | B195: 1868.531105 | C195: 194 | D195: 18.3 | G195: 1869.483474 | H195: 1869.48784 | I195: 15.025 | J195: 18.725 | K195: -3.7 | M195: 0.6279696763 | N195: 0.0005 | O195: 0.8311360747 | P195: -0.0423 | V195: 1872.845028 | W195: 1872.858125 | X195: 34.21 | Y195: -34.21 | Z195: 27.97493827 | AA195: 6.235061728 | AC195: -0.04184600255 | AD195: 1.741 | AE195: 0 | AI195: -0.6608895085 | AJ195: -0.01875 | AO195: 1882.222452 | AP195: 1882.261743 | AQ195: 28.13448276 | AR195: 20.52380952 | AS195: 7.610673235 | AU195: 0.850147745 | AV195: -0.141 | BA195: 1912.476433 | BB195: 1912.594306 | BC195: 9.072093023 | BD195: 9.474950251 | BE195: =BC195-BD195 -> -0.4028572277 | BG195: -0.8273202659 | BH195: -0.1522 | BM195: 1996.401762 | BN195: 1996.75538 | BO195: 17.8953668 | BP195: 21.68381305 | BQ195: -3.788446254 | BS195: 0.3958824684 | BT195: -1.65 | BX195: 180 | BY195: 17.8943662 | BZ195: 16.99974648
A196: 18680713 | B196: =B195 + (1/365.25) -> 1868.533843 | C196: 195 | D196: 10.7 | G196: =G195+0.00873130763355885 -> 1869.492206 | H196: =H195+0.00873130763355885 -> 1869.496571 | I196: 32.26666667 | J196: 17.7287037 | K196: 14.53796296 | M196: -0.06042269277 | N196: 0.0005 | O196: 0.9941214883 | P196: -0.0423 | V196: =V195+0.0261939229006765 -> 1872.871222 | W196: 1872.884319 | X196: 16.26666667 | Y196: -16.26666667 | Z196: 27.83395062 | AA196: -11.56728395 | AC196: 0.2833680687 | AD196: 1.741 | AE196: 0 | AI196: -0.988672048 | AJ196: -0.01875 | AO196: =AO195+0.0785817687020297 -> 1882.301034 | AP196: =AP195+0.0785817687020297 -> 1882.340325 | AQ196: 25.3137931 | AR196: 19.858867 | AS196: 5.454926108 | AU196: 0.989707054 | AV196: -0.141 | BA196: =BA195+0.235745306106089 -> 1912.712178 | BB196: =BB195+0.235745306106089 -> 1912.830051 | BC196: 9.794186047 | BD196: 9.16629392 | BE196: 0.6278921263 | BG196: -0.2726906739 | BH196: -0.1522 | BM196: =BM195+0.707235918318267 -> 1997.108998 | BN196: =BN195+0.707235918318267 -> 1997.462616 | BO196: 16.03953488 | BP196: 21.11714638 | BQ196: -5.077611499 | BS196: -0.2870090603 | BT196: -1.65 | BX196: 181 | BY196: 17.92112676 | BZ196: 16.97284507
A197: 18680714 | B197: 1868.536581 | C197: 196 | D197: 21.1 | G197: 1869.500937 | H197: 1869.505303 | I197: 24.73333333 | J197: 17.8212963 | K197: 6.912037037 | M197: -0.7172589788 | N197: 0.0005 | O197: 0.6919464091 | P197: -0.0423 | V197: 1872.897416 | W197: 1872.910512 | X197: 18.88 | Y197: -18.88 | Z197: 27.8517284 | AA197: -8.971728395 | AC197: 0.5781559944 | AD197: 1.741 | AE197: 0 | AI197: -0.8538439485 | AJ197: -0.01875 | AO197: 1882.379616 | AP197: 1882.418907 | AQ197: 17.67857143 | AR197: 20.27074439 | AS197: -2.592172961 | AU197: 0.6661714331 | AV197: -0.141 | BA197: 1912.947924 | BB197: 1913.065796 | BC197: 9.220930233 | BD197: 8.661642757 | BE197: 0.5592874751 | BG197: 0.4095339151 | BH197: -0.1522 | BM197: 1997.816234 | BN197: 1998.169852 | BO197: 18.84496124 | BP197: 20.97033578 | BQ197: -2.125374544 | BS197: -0.83560586 | BT197: -1.65 | BX197: 182 | BY197: 17.31830986 | BZ197: 16.99695775
A198: 18680715 | B198: 1868.539319 | C198: =ROUND(365.25*(B198-INT(B198)),0) -> 197 | D198: 69.6 | G198: 1869.509668 | H198: 1869.514034 | I198: 12.66666667 | J198: 20.28796296 | K198: -7.621296296 | M198: -0.9995028257 | N198: 0.0005 | O198: 0.06600191493 | P198: -0.0423 | V198: 1872.923609 | W198: 1872.936706 | X198: 16.56666667 | Y198: -16.56666667 | Z198: 24.77283951 | AA198: -8.20617284 | AC198: 0.8108654422 | AD198: 1.741 | AE198: 0 | AI198: -0.319492776 | AJ198: -0.01875 | AO198: 1882.458197 | AP198: 1882.497488 | AQ198: 17.52758621 | AR198: 20.30867542 | AS198: -2.781089217 | AU198: 0.03092679498 | AV198: -0.141 | BA198: 1913.183669 | BB198: 1913.301542 | BC198: =AVERAGEIFS(GeoAA,DecDate,">"&BA198,DecDate,"<="&BA199) -> 10.1127907 | BD198: 8.946138881 | BE198: 1.166651816 | BG198: 0.9001330337 | BH198: -0.1522 | BM198: 1998.52347 | BN198: 1998.877088 | BO198: 21.98494208 | BP198: 20.87569064 | BQ198: 1.109251444 | BS198: -0.993213391 | BT198: -1.65 | BX198: 183 | BY198: 15.67887324 | BZ198: 17.14901408
A199: 18680716 | B199: 1868.542057 | C199: 198 | D199: 18.3 | G199: 1869.518399 | H199: 1869.522765 | I199: 17.06666667 | J199: 20.17685185 | K199: -3.110185185 | M199: -0.7597508349 | N199: 0.0005 | O199: -0.5908256088 | P199: -0.0423 | V199: 1872.949803 | W199: 1872.9629 | X199: 23.5 | Y199: -23.5 | Z199: 25.10617284 | AA199: -1.60617284 | AC199: 0.9565096466 | AD199: 1.741 | AE199: 0 | AI199: 0.3643526171 | AJ199: -0.01875 | AO199: 1882.536779 | AP199: 1882.57607 | AQ199: 20.74482759 | AR199: 24.72654625 | AS199: -3.981718664 | AU199: -0.6187888342 | AV199: -0.141 | BA199: 1913.419414 | BB199: 1913.537287 | BC199: 6.661627907 | BD199: 9.256976744 | BE199: -2.595348837 | BG199: 0.969549902 | BH199: -0.1522 | BM199: 1999.230706 | BN199: 1999.584324 | BO199: 22.88643411 | BP199: 21.03275352 | BQ199: 1.853680591 | BS199: -0.6860853381 | BT199: -1.65 | BX199: 184 | BY199: 15.96830986 | BZ199: 17.28335211
A200: 18680717 | B200: 1868.544794 | C200: 199 | D200: 29.5 | G200: 1869.527131 | H200: 1869.531496 | I200: 10.76666667 | J200: 20.11111111 | K200: -9.344444444 | M200: -0.1232147998 | N200: 0.0005 | O200: -0.9711992638 | P200: -0.0423 | V200: 1872.975997 | W200: 1872.989094 | X200: 22.82 | Y200: -22.82 | Z200: 23.38395062 | AA200: -0.5639506173 | AC200: 0.9994503185 | AD200: 1.741 | AE200: 0 | AI200: 0.8777133714 | AJ200: -0.01875 | AO200: 1882.615361 | AP200: 1882.654652 | AQ200: 16.05 | AR200: 23.87073071 | AS200: -7.820730706 | AU200: -0.9789662909 | AV200: -0.141 | BA200: 1913.65516 | BB200: 1913.773032 | BC200: 9.337209302 | BD200: 9.66301494 | BE200: -0.3258056372 | BG200: 0.5853035958 | BH200: -0.1522 | BM200: 1999.937942 | BN200: 2000.29156 | BO200: 24.32403101 | BP200: 22.76875497 | BQ200: 1.55527604 | BS200: -0.05793033049 | BT200: -1.65 | BX200: 185 | BY200: 16.81056338 | BZ200: 17.46577465
... 2050 more rows

Sheet Documentation
A2: NOAA: Geomagnetic AA, [2009].
A3: Daily Geomagnetic AA Index since 1868.
A4: National Oceanic and Atmospheric Administration,
A5: National Geophysical Data Center.
A6: ftp://ftp.ngdc.noaa.gov/STP/GEOMAGNETIC_DATA/AASTAR/aaindex

Sheet Charts

Sheet Statistics
A3: Table E29.1.1 – Information about the Geomagnetic AA Time-Series.
A4: Description | B4: Details for this Time-Series
A6: Data Source
A7: Brief description of the data | B7: Daily Geomagnetic AA Index.
A8: Abbreviated reference | B8: NOAA: Geomagnetic AA, 2009
A9: Details about the data source | B9: A text file from NOAA’s National Geophysical Data Center.
A11: Original Time-Series
A12: Beginning time | B12: 1868
A13: Ending time | B13: 2009
A14: No. of samples (observations) | B14: 51830
A15: Estimated ages: Mean error | B15: No age errors
A16: Estimated ages: Minimum error | B16: No age errors
A17: Estimated ages: Maximum error | B17: No age errors
B20: Table E29.2.1 – Daily Geomagnetic AA Index: Data Preparation.
B21: Preparation Summary | C21: Test # 1 | D21: Test # 2 | E21: Test # 3 | F21: Test # 4 | G21: Test # 5 | H21: Test # 6
B23: Data Preparation Steps | C23: 28.7-day | D23: 28.7-day | E23: 28.7-day | F23: 28.7-day | G23: 28.7-day | H23: 86.1-day
B25: Bin Sizes for Histogram | C25: 3.19-day | D25: 3.19-day | E25: 3.19-day | F25: 3.19-day | G25: 3.19-day | H25: 9.57-day
B26: Detrending Method | C26: BP filter | D26: BP filter | E26: BP filter | F26: BP filter | G26: BP filter | H26: BP filter
B27: Band-Pass Filter Used | C27: 1-9 cell | D27: 1-9 cell | E27: 1-9 cell | F27: 1-9 cell | G27: 1-9 cell | H27: 1-9 cell
B28: Moving Avr. Indentation | C28: 4 cell | D28: 4 cell | E28: 4 cell | F28: 4 cell | G28: 4 cell | H28: 4 cell
B29: Empty Bins Interpolated | C29: 0 | D29: 0 | E29: 0 | F29: 0 | G29: 0 | H29: 0
B30: Beginning Time of Test | C30: 1868 | D30: 1900 | E30: 1929 | F30: 1958 | G30: 1987 | H30: 1987.01
B31: Ending Time of Test | C31: 1899 | D31: 1928 | E31: 1957 | F31: 1986 | G31: 2009 | H31: 2009.49
B33: Basic Time-Series Stats | C33: 28.7-day | D33: 28.7-day | E33: 28.7-day | F33: 28.7-day | G33: 28.7-day | H33: 86.1-day
B35: Number of observations | C35: 3662 | D35: 3321 | E35: 3322 | F35: 3321 | G35: 2583 | H35: 859
B36: Approximate # of cycles | C36: 407 | D36: 369 | E36: 369 | F36: 369 | G36: 287 | H36: 95
B38: Minimum | C38: -35.52 | D38: -35.3 | E38: -40.56 | F38: -43.65 | G38: -39.78 | H38: -27.2
B39: 1st Quartile | C39: -5.91 | D39: -5.21 | E39: -7.65 | F39: -7.55 | G39: -7.3 | H39: -4.89
B40: 2nd Quartile (Median) | C40: -1.71 | D40: -1.55 | E40: -1.92 | F40: -1.84 | G40: -1.8 | H40: -0.67
B41: 3rd Quartile | C41: 3.86 | D41: 3.52 | E41: 5.62 | F41: 5.42 | G41: 5.41 | H41: 3.37
B42: Maximum | C42: 99.34 | D42: 166.48 | E42: 149.85 | F42: 126.39 | G42: 172.92 | H42: 53.54
B43: Average (Mean) | C43: 0 | D43: 0 | E43: 0.01 | F43: 0 | G43: 0 | H43: 0
B45: Standard Error of Mean | C45: 0.17237 | D45: 0.16915 | E45: 0.22149 | F45: 0.22235 | G45: 0.24922 | H45: 0.29162
B46: Lower C.L. of the Mean | C46: -0.33591 | D46: -0.33546 | E46: -0.42829 | F46: -0.44013 | G46: -0.49151 | H46: -0.57506
B47: Upper C.L. of the Mean | C47: 0.34 | D47: 0.32784 | E47: 0.44027 | F47: 0.43178 | G47: 0.48589 | H47: 0.56968
B48: Variance | C48: 108.8069 | D48: 95.01921 | E48: 162.97679 | F48: 164.187 | G48: 160.4365 | H48: 73.0507
B49: Standard Deviation | C49: 10.43106 | D49: 9.74778 | E49: 12.76624 | F49: 12.29034 | G49: 12.6664 | H49: 8.54697
B51: Skewness | C51: 2.22 | D51: 3.41 | E51: 2.1 | F51: 2.06 | G51: 2.55 | H51: 1.52
B52: Kurtosis | C52: 12.07 | D52: 36.58 | E52: 13.29 | F52: 11.29 | G52: 20.85 | H52: 6.23
B55: Table E29.2.2 – Daily Geomagnetic AA Index: Data Preparation.
B56: Preparation Summary | C56: Test # 7 | D56: Test # 8
B58: Data Preparation Steps | C58: 258-day | D58: 2.12-yr
B60: Bin Sizes for Histogram | C60: 28.7-day | D60: 86.1-day
B61: Detrending Method | C61: BP filter | D61: BP filter
B62: Band-Pass Filter Used | C62: 1-9 cell | D62: 1-9 cell
B63: Moving Avr. Indentation | C63: 4 cell | D63: 4 cell
B64: Empty Bins Interpolated | C64: 0 | D64: 0
B65: Beginning Time of Test | C65: 1868.35 | D65: 1868.98
B66: Ending Time of Test | C66: 2009.25 | D66: 2008.54
B68: Basic Time-Series Stats | C68: 258-day | D68: 2.12-yr
B70: Number of observations | C70: 1794 | D70: 593
B71: Approximate # of cycles | C71: 199 | D71: 66
B73: Minimum | C73: -16.79 | D73: -11.63
B74: 1st Quartile | C74: -2.91 | D74: -2.26
B75: 2nd Quartile (Median) | C75: -0.55 | D75: -0.27
B76: 3rd Quartile | C76: 2.18 | D76: 1.82
B77: Maximum | C77: 32.79 | D77: 14.75
B78: Average (Mean) | C78: 0 | D78: 0.01
B80: Standard Error of Mean | C80: 0.11282 | D80: 0.15188
B81: Lower C.L. of the Mean | C81: -0.21959 | D81: -0.28831
B82: Upper C.L. of the Mean | C82: 0.22297 | D82: 0.30828
B83: Variance | C83: 22.83621 | D83: 13.67944
B84: Standard Deviation | C84: 4.77872 | D84: 3.69857
B86: Skewness | C86: 1.38 | D86: 0.7
B87: Kurtosis | C87: 5.26 | D87: 1.8
B90: Table E29.3.1 – Results from Daily Geomagnetic AA Tests.
B91: Preparation Summary | C91: Test # 1 | D91: Test # 2 | E91: Test # 3 | F91: Test # 4 | G91: Test # 5 | H91: Test # 6
B93: Least Squares Tests | C93: 28.7-day | D93: 28.7-day | E93: 28.7-day | F93: 28.7-day | G93: 28.7-day | H93: 86.1-day
B95: Stat. Signif. from p-value | C95: 0.9 | D95: 0.9 | E95: N.S. | F95: 0.99 | G95: 0.95 | H95: 0.95
B96: Practical Signif. (Adj. R2) | C96: 0.0006 | D96: 0.0006 | E96: 0.0001 | F96: 0.0019 | G96: 0.0011 | H96: 0.0035
B98: Lomb-Scargle Period’gm
B100: Estimated Wavelength | C100: 25.03-day | D100: 25.95-day | E100: 27.27-day | F100: 26.06-day | G100: 27.66-day | H100: 62.79-day
B101: p-value | C101: 0.00163 | D101: 0 | E101: 1e-05 | F101: 0.00246 | G101: 0.00341 | H101: 0.30435
B102: Secondary Wavelength | C102: 29.03-day | D102: 29.91-day | E102: 29.36-day | F102: 28.73-day | G102: 29.58-day | H102: 74.12-day
B104: Smoothed Periodogram
B106: Estimated Wavelength | C106: 25.40-day | D106: 26.04-day | E106: 27.27-day | F106: 26.04-day | G106: 26.79-day | H106: 59.49-day
B107: Confidence Level | C107: 0.95 | D107: 0.75 | E107: 0.9999 | F107: 0.99 | G107: N.S. | H107: 0.99
B108: Secondary Wavelength | C108: 27.38-day | D108: 30.04-day | E108: 29.25-day | F108: 29.37-day | G108: 30.22-day | H108: 74.95-day
B110: Correlation & Lag Tests | C110: 28.7-day | D110: 28.7-day | E110: 28.7-day | F110: 28.7-day | G110: 28.7-day | H110: 86.1-day
B112: Correlation with lag | C112: 0.033 | D112: 0.035 | E112: 0.031 | F112: 0.056 | G112: 0.04 | H112: 0.078
B113: Confidence Level | C113: 0.8 | D113: 0.8 | E113: 0.75 | F113: 0.95 | G113: 0.85 | H113: 0.9
B114: Offset used with Model | C114: =-15-Day -> -128 | D114: =-11.8-Day -> -124.8 | E114: =3.9-Day -> -109.1 | F114: =-16.9-Day -> -129.9 | G114: =-15.5-Day -> -128.5 | H114: =-6.9-Day -> -119.9
B117: Table E29.3.2 – Results from Daily Geomagnetic AA Tests.
B118: Preparation Summary | C118: Test # 7 | D118: Test # 8
B120: Least Squares Tests | C120: 258-day | D120: 2.12-yr
B122: Stat. Signif. from p-value | C122: N.S. | D122: N.S.
B123: Practical Signif. (Adj. R2) | C123: -0.0004 | D123: 0.002
B125: Lomb-Scargle Period’gm
B127: Estimated Wavelength | C127: 182.6-day | D127: 1.920-yr
B128: p-value | C128: 0 | D128: 0.00127
B129: Secondary Wavelength | C129: --- | D129: 1.330-yr
B131: Smoothed Periodogram
B133: Estimated Wavelength | C133: 182.9-day | D133: 1.358-yr
B134: Confidence Level | C134: 0.9999 | D134: 0.9999
B135: Secondary Wavelength | C135: 261.2-day | D135: 1.860-yr
B137: Correlation & Lag Tests | C137: 258-day | D137: 2.12-yr
B139: Correlation with lag | C139: 0.037 | D139: 0.067
B140: Confidence Level | C140: 0.7 | D140: 0.75
B141: Offset used with Model | C141: =-51.5-Day -> -191.5 | D141: =-55.6-Day -> -195.6

Sheet Input_Data
A1: File Name | B1: Geo_a_28-day_1868-1899.txt | C1: Geo_b_28-day_1900-1928.txt | D1: Geo_c_28-day_1929-1957.txt | E1: Geo_d_28-day_1958-1986.txt | F1: Geo_e_28-day_1987-2009.txt | G1: Geo_f_86-day.txt | H1: Geo_g_258-day.txt | I1: Geo_h_2-yr.txt | J1: Geo_i_6-yr.txt
A2: Input data | B2: -2.413 | C2: -5.167 | D2: -6.974 | E2: -8.063 | F2: 8.535 | G2: -2.091 | H2: -2.018 | I2: -1.984 | J2: 1.678
A3: used in | B3: 2.48 | C3: -1.656 | D3: 11.186 | E3: -10.719 | F3: -9.309 | G3: -1.553 | H3: 0.429 | I3: 3.6 | J3: 1.367
A4: periodogram | B4: -2.481 | C4: -10.914 | D4: -1.501 | E4: -9.056 | F4: -2.124 | G4: 1.088 | H4: 0.917 | I4: -0.017 | J4: 2.126
A5: scripts. | B5: 12.602 | C5: -1.144 | D5: 13.499 | E5: 0.193 | F5: -2.817 | G5: -5.349 | H5: -0.85 | I5: 0.376 | J5: 5.879
B6: -1.512 | C6: 9.216 | D6: 2.747 | E6: 4.652 | F6: -0.919 | G6: 0.19 | H6: -0.498 | I6: -2.856 | J6: 1.121
B7: -8.431 | C7: 1.301 | D7: -5.817 | E7: 10.593 | F7: 1.381 | G7: 2.488 | H7: 5.904 | I7: 0.102 | J7: -1.342
B8: -0.89 | C8: 13.056 | D8: -4.741 | E8: 10.34 | F8: 8.398 | G8: 4.587 | H8: 2.685 | I8: -1.635 | J8: -1.618
B9: 8.334 | C9: -6.918 | D9: -2.877 | E9: -2.89 | F9: 0.998 | G9: 1.204 | H9: -6.129 | I9: 2.464 | J9: -2.163
B10: 7.148 | C10: 4.153 | D10: -5.277 | E10: -21.212 | F10: -0.472 | G10: 2.971 | H10: -6.054 | I10: 1.98 | J10: -1.605
B11: -8.316 | C11: -7.344 | D11: -2.01 | E11: -25.808 | F11: -4.068 | G11: -2.328 | H11: 1.316 | I11: -1.566 | J11: 0.045
B12: -9.271 | C12: -7.455 | D12: -1.355 | E12: -13.244 | F12: -6.281 | G12: 1.251 | H12: 0.281 | I12: 1.024 | J12: -1.881
B13: -5.149 | C13: 4.404 | D13: -3.819 | E13: 0.229 | F13: -1.079 | G13: -3.008 | H13: 1.839 | I13: -0.21 | J13: -2.184
B14: 11.766 | C14: 3.109 | D14: 7.153 | E14: 80.518 | F14: 5.129 | G14: -4.578 | H14: 6.934 | I14: -1.466 | J14: -3.802
B15: 7.659 | C15: -0.383 | D15: -0.573 | E15: 11.877 | F15: 0.866 | G15: -1.763 | H15: 1.017 | I15: -2.063 | J15: -3.909
B16: -3.994 | C16: 2.391 | D16: -18.618 | E16: -11.579 | F16: -4.023 | G16: -4.843 | H16: -3.599 | I16: -0.226 | J16: 0.646
B17: -3.935 | C17: -5.654 | D17: 21.364 | E17: -2.056 | F17: 1.685 | G17: 11.012 | H17: -1.759 | I17: -0.079 | J17: -1.742
B18: 10.376 | C18: -2.341 | D18: 0.481 | E18: -14.075 | F18: 5.566 | G18: 0.892 | H18: -1.792 | I18: 6.247 | J18: 5.891
B19: -5.857 | C19: 0.665 | D19: -9.231 | E19: -19.864 | F19: -4.823 | G19: -0.626 | H19: 4.168 | I19: 1.561 | J19: 8.98
B20: -11.956 | C20: -4.378 | D20: 29.782 | E20: -16.223 | F20: 4.029 | G20: -7.34 | H20: 0.431 | I20: 0.184 | J20: -0.387
B21: -14.311 | C21: 0.441 | D21: -15.329 | E21: 9.355 | F21: -6.201 | G21: -4.964 | H21: -0.742 | I21: 2.6 | J21: -3.724
B22: -6.992 | C22: -8.644 | D22: -16.684 | E22: 0.759 | F22: 8.074 | G22: 3.155 | H22: -2.47 | I22: 0.111 | J22: -3.635
B23: 23.482 | C23: 17.465 | D23: -6.101 | E23: 9.136 | F23: -1.508 | G23: 3.026 | H23: -2.848 | I23: -4.098 | J23: -0.949
B24: 26.223 | C24: 14.759 | D24: 20.596 | E24: 2.009 | F24: -1.971 | G24: -4.195 | H24: 2.993 | I24: 0.507 | J24: 5.489
B25: -9.732 | C25: -3.703 | D25: 12.527 | E25: -3.169 | F25: 0.514 | G25: 1.8 | H25: -3.333 | I25: -2.601 | J25: 2.704
B26: -0.641 | C26: -5.281 | D26: -7.036 | E26: 14.476 | F26: -0.353 | G26: 1.24 | H26: 5.629 | I26: 0.381 | J26: 0.396
B27: 11.241 | C27: -5.94 | D27: 15.427 | E27: -1.171 | F27: 0.207 | G27: -0.561 | H27: 2.024 | I27: 1.309 | J27: -0.066
B28: -17.67 | C28: -2.903 | D28: -5.362 | E28: -2.767 | F28: 6.73 | G28: 8.521 | H28: -1.707 | I28: -0.678 | J28: -4.542
B29: -9.941 | C29: -0.796 | D29: -5.93 | E29: -2.334 | F29: -4.866 | G29: -4.38 | H29: -4.793 | I29: 0.228 | J29: -3.516
B30: -8.459 | C30: -0.316 | D30: -6.219 | E30: 3.692 | F30: -4.651 | G30: 8.608 | H30: -8.429 | I30: -0.662 | J30: -5.517
B31: 5.752 | C31: 1.518 | D31: -0.293 | E31: 4.547 | F31: 1.69 | G31: -4.382 | H31: -1.186 | I31: 0.104 | J31: 0.195
B32: 17.953 | C32: -3.149 | D32: -5.348 | E32: -12.649 | F32: 3.279 | G32: -5.003 | H32: 14.012 | I32: -0.091 | J32: 6.658
B33: -1.166 | C33: 7.951 | D33: -3.278 | E33: -17.615 | F33: 0.6 | G33: 9.214 | H33: 5.601 | I33: -1.479 | J33: 3.876
B34: -7.766 | C34: -1 | D34: -4.641 | E34: 7.178 | F34: 1.674 | G34: -2.75 | H34: -1.148 | I34: -1.431 | J34: -1.545
B35: 12.612 | C35: 0.537 | D35: 16.292 | E35: 24.526 | F35: -6.537 | G35: -0.338 | H35: -3.302 | I35: 1.045 | J35: 1.61
B36: -2.615 | C36: -3.575 | D36: -1.405 | E36: -5.6 | F36: 4.474 | G36: 2.322 | H36: -5.879 | I36: 0.344 | J36: 0.541
B37: -9.592 | C37: -5.475 | D37: -6.712 | E37: -6.537 | F37: -0.27 | G37: -5.28 | H37: 1.455 | I37: 1.326 | J37: 0.155
B38: -10.04 | C38: -6.386 | D38: -5.427 | E38: 3.885 | F38: -1.778 | G38: -2.298 | H38: -2.649 | I38: 0.694 | J38: 2.052
B39: 12.134 | C39: -3.06 | D39: 5.752 | E39: 1.97 | F39: -2.158 | G39: -6.159 | H39: 10.334 | I39: -1.116 | J39: -0.783
B40: -4.584 | C40: 5.73 | D40: 2.96 | E40: -8.918 | F40: -0.695 | G40: 6.88 | H40: -1.37 | I40: -0.162 | J40: -2.227
B41: -11.963 | C41: 29.198 | D41: -4.306 | E41: -9.795 | F41: 2.368 | G41: 7.974 | H41: -4.999 | I41: -0.378 | J41: 2.245
B42: 8.784 | C42: -6.702 | D42: -3.984 | E42: 0.075 | F42: 1.582 | G42: -5.365 | H42: -2.761 | I42: 0.22 | J42: 3.334
B43: 5.562 | C43: -3.176 | D43: -5.225 | E43: 15.105 | F43: -0.456 | G43: -9.333 | H43: 1.096 | I43: -0.799 | J43: 0.699
B44: 9.488 | C44: -7.25 | D44: 17.707 | E44: 7.422 | F44: -6.576 | G44: -1.457 | H44: 3.794 | I44: 0.476 | J44: -3.642
B45: -1.971 | C45: -3.415 | D45: 0.878 | E45: -11.227 | F45: -9.836 | G45: 13.064 | H45: -2.857 | I45: -0.279 | J45: -4.006
B46: -5.007 | C46: -0.95 | D46: -7.403 | E46: -20.508 | F46: -2.788 | G46: -9.085 | H46: 2.057 | I46: -1.281 | J46: -3.726
B47: -5.967 | C47: -0.609 | D47: 2.553 | E47: 2.895 | F47: 15.708 | G47: 1.777 | H47: 1.536 | I47: -0.844 | J47: -3.405
B48: 5.285 | C48: 0.106 | D48: -0.958 | E48: 10.218 | F48: 9.232 | G48: -12.92 | H48: -5.883 | I48: -1.461 | J48: 0.077
B49: -3.078 | C49: 2.424 | D49: 0.09 | E49: 15.77 | F49: 0.081 | G49: 19.004 | H49: -3.942 | I49: -2.646 | J49: 3.772
B50: 2.707 | C50: 0.963 | D50: -3.674 | E50: -13.558 | F50: -5.206 | G50: 8.459 | H50: 6.885 | I50: 0.523 | J50: 0.974
B51: 1.7 | C51: 2.039 | D51: -6.56 | E51: 12.219 | F51: 5.501 | G51: -3.926 | H51: 0.838 | I51: 2.676 | J51: 1.557
B52: -2.093 | C52: -1.183 | D52: 12.399 | E52: 0.731 | F52: -6.881 | G52: -6.54 | H52: 2.488 | I52: 1.9 | J52: -2.388
B53: 0.523 | C53: -0.902 | D53: 3.732 | E53: -7.573 | F53: 0.701 | G53: 8.984 | H53: -1.895 | I53: 1.78 | J53: -0.172
B54: -4.992 | C54: -2.024 | D54: -7.219 | E54: -16.87 | F54: -1.422 | G54: -2.876 | H54: -5.649 | I54: -1.971 | J54: 0.049
B55: -2.258 | C55: -0.778 | D55: -9.474 | E55: 18.581 | F55: 6.589 | G55: -6.056 | H55: 0.809 | I55: -5.02 | J55: 1.036
B56: -3.103 | C56: -0.616 | D56: 10.257 | E56: -12.559 | F56: -3.281 | G56: -6.894 | H56: 0.402 | I56: -2.747 | J56: 2.238
B57: -1.396 | C57: -0.284 | D57: 2.02 | E57: -11.848 | F57: -0.807 | G57: -2.709 | H57: -4.082 | I57: 1.37 | J57: 0.178
B58: 7.745 | C58: 3.982 | D58: -7.054 | E58: 0.878 | F58: -5.63 | G58: 5.916 | H58: 4.292 | I58: 2.442 | J58: 3.65
B59: 11.311 | C59: -0.806 | D59: 0.272 | E59: -17.056 | F59: -3.807 | G59: 3.131 | H59: 11.266 | I59: 0.856 | J59: 5.216
B60: -1.83 | C60: 0.413 | D60: -7.159 | E60: 73.616 | F60: -4.724 | G60: 2.185 | H60: -7.853 | I60: -0.922 | J60: -2.885
B61: 4.407 | C61: -1.178 | D61: -7.081 | E61: -2.636 | F61: 4.806 | G61: 1.209 | H61: 5.388 | I61: 11.773 | J61: -3.633
B62: -4.853 | C62: -1.405 | D62: 17.211 | E62: -11.532 | F62: -1.482 | G62: -7.888 | H62: -2.39 | I62: 2.176 | J62: -4.66
B63: 1.415 | C63: -1.723 | D63: 6.681 | E63: -21.166 | F63: 7.436 | G63: 1.032 | H63: -4.07 | I63: -2.983 | J63: -4.849
B64: -2.332 | C64: -1.038 | D64: 10.541 | E64: 0.693 | F64: 2.531 | G64: -1.658 | H64: 3.56 | I64: 0.42 | J64: -1.589
B65: -12.666 | C65: 1.258 | D65: -6.47 | E65: 5.27 | F65: -8.467 | G65: -0.309 | H65: -4.538 | I65: -2.752 | J65: 0.041
B66: 1.212 | C66: 3.796 | D66: -3.733 | E66: 9.504 | F66: -0.776 | G66: 5.132 | H66: 1.856 | I66: -2.951 | J66: 2.556
B67: -2.703 | C67: 0.006 | D67: -9.792 | E67: -5.226 | F67: 17.646 | G67: 2.056 | H67: 3.626 | I67: -0.355 | J67: 4.109
B68: 14.963 | C68: 1.781 | D68: -7.336 | E68: 0.03 | F68: -1.539 | G68: -7.42 | H68: -0.247 | I68: -0.992 | J68: -1.596
B69: 3.67 | C69: -1.79 | D69: 17.453 | E69: -12.83 | F69: -7.683 | G69: 11.29 | H69: 0.845 | I69: 0.155 | J69: -0.175
B70: -13.007 | C70: -0.997 | D70: -4.155 | E70: -8.985 | F70: -4.311 | G70: -1.033 | H70: 0.45 | I70: -0.864 | J70: 6.899
B71: 0.074 | C71: -1.419 | D71: -14.033 | E71: -0.894 | F71: -9.731 | G71: -8.743 | H71: 1.098 | I71: -2.151 | J71: 0.514
B72: -12.97 | C72: 1.009 | D72: 0.521 | E72: -8.923 | F72: 10.01 | G72: 5.257 | H72: -4.241 | I72: 0.159 | J72: -0.663
B73: -5.348 | C73: -1.125 | D73: 18.929 | E73: 22.062 | F73: 5.151 | G73: 0.694 | H73: -2.893 | I73: 0.939 | J73: 0.76
B74: 36.042 | C74: 3.456 | D74: 12.466 | E74: -13.171 | F74: -11.253 | G74: -8.84 | H74: -1.407 | I74: -3.606 | J74: -1.003
B75: -9.936 | C75: -1.203 | D75: -6.29 | E75: 10.633 | F75: -8.693 | G75: -4.832 | H75: 3.717 | I75: 4.649 | J75: 5.414
B76: 7.123 | C76: -0.116 | D76: -9.37 | E76: 3.058 | F76: 24.249 | G76: 4.31 | H76: -1.168 | I76: 1.539 | J76: -4.263
B77: -11.184 | C77: 1.096 | D77: -10.117 | E77: -16.983 | F77: -2.866 | G77: 0.17 | H77: 3.685 | I77: 2.722 | J77: -4.477
B78: -16.278 | C78: -2.6 | D78: -5.471 | E78: -4.428 | F78: 8.768 | G78: -3.304 | H78: -2 | I78: 0.644 | J78: -5.282
B79: 12.044 | C79: 2.207 | D79: -10.016 | E79: 50.309 | F79: -18.899 | G79: 4.161 | H79: 1.382 | I79: 0.205 | J79: -3.247
B80: -4.164 | C80: -1.767 | D80: 2.788 | E80: 1.866 | F80: -10.644 | G80: 12.463 | H80: -4.983 | I80: -0.538 | J80: 7.143
B81: 4.418 | C81: 0.604 | D81: 7.653 | E81: -15.73 | F81: 18.584 | G81: -2.817 | H81: 0.339 | I81: -2.865 | J81: -0.074
B82: -5.542 | C82: -0.344 | D82: 19.4 | E82: -3.898 | F82: 11.802 | G82: -7.239 | H82: -1.796 | I82: -1.114 | J82: -0.265
B83: 18.596 | C83: 0.121 | D83: 3.794 | E83: -16.383 | F83: -5.72 | G83: -18.255 | H83: 2.578 | I83: 1.567 | J83: -3.783
B84: 13.163 | C84: -1.682 | D84: -12.25 | E84: -13.569 | F84: -16.791 | G84: -18.424 | H84: 5.599 | I84: 3.268 | J84: 0.647
B85: -9.822 | C85: 1.677 | D85: 10.913 | E85: 15.669 | F85: -0.005 | G85: 32.893 | H85: 0.585 | I85: -1.356 | J85: -0.79
B86: -1.059 | C86: -0.812 | D86: -7.739 | E86: -1.481 | F86: 9.833 | G86: 25.522 | H86: -2.454 | I86: 0.785 | J86: 10.741
B87: -20.022 | C87: 1.093 | D87: -7.033 | E87: 9.221 | F87: 16.634 | G87: 10.196 | H87: -4.045 | I87: -2.077 | J87: -0.864
B88: -19.896 | C88: 1.103 | D88: -14.662 | E88: 4.032 | F88: 0.034 | G88: -4.738 | H88: -3.319 | I88: -1.268 | J88: 0.085
B89: -4.07 | C89: -0.612 | D89: -12.873 | E89: 0.962 | F89: -15.762 | G89: -17.943 | H89: 5.005 | I89: -1.108 | J89: 1.543
B90: 10.748 | C90: 1.092 | D90: 33.631 | E90: -14.223 | F90: -13.477 | G90: 5.09 | H90: -0.331 | I90: 2.957 | J90: -1.188
B91: 46.174 | C91: -4.142 | D91: -1.484 | E91: -11.619 | F91: 12.63 | G91: -4.856 | H91: 2.871 | I91: 1.48 | J91: -2.231
B92: 9.944 | C92: -3.248 | D92: 5.222 | E92: -9.946 | F92: 6.34 | G92: -11.542 | H92: -1.765 | I92: -2.142 | J92: -3.078
B93: -5.496 | C93: -1.144 | D93: 12.452 | E93: -10.209 | F93: -11.468 | G93: 7.996 | H93: -0.102 | I93: -4.356 | J93: -2.89
B94: -14.189 | C94: -2.831 | D94: -12.822 | E94: 45.48 | F94: -7.201 | G94: 0.128 | H94: -1.925 | I94: -1.568 | J94: -0.345
B95: -13.759 | C95: 14.061 | D95: -10.07 | E95: 3.931 | F95: 2.021 | G95: 14.39 | H95: -0.227 | I95: -2.487 | J95: -2.314
B96: -4.314 | C96: 0.746 | D96: -22.085 | E96: 9.641 | F96: 19.278 | G96: -5.008 | H96: 4.529 | I96: 0.884 | J96: -0.862
B97: -10.806 | C97: 3.127 | D97: 9.704 | E97: -2.483 | F97: -1.069 | G97: -3.461 | H97: -2.107 | I97: 1.932 | J97: 4.845
B98: -0.066 | C98: -3.219 | D98: 27.756 | E98: -14.897 | F98: 2.192 | G98: -10.981 | H98: -1.081 | I98: -3.767 | J98: -2.154
B99: 11.049 | C99: -4.993 | D99: 14.343 | E99: -9.234 | F99: -12.579 | G99: -7.254 | H99: -1.704 | I99: -0.84 | J99: 4.266
B100: 12.967 | C100: -3.133 | D100: -8.961 | E100: 6.284 | F100: -3.008 | G100: -6.76 | H100: -0.554 | I100: 8.834 | J100: 0.753
B101: 4.581 | C101: 2.737 | D101: -14.787 | E101: -5.999 | F101: 13.224 | G101: -1.195 | H101: 3.854 | I101: 2.214 | J101: 0.155
B102: -8.086 | C102: -0.856 | D102: 9.769 | E102: 2.044 | F102: -10.13 | G102: 19.01 | H102: 2.29 | I102: 4.286 | J102: 1.469
B103: -8.438 | C103: 0.552 | D103: -6.189 | E103: -10.156 | F103: -4.427 | G103: 1.545 | H103: -2.645 | I103: -1.014 | J103: -2.216
B104: -6.294 | C104: 1.731 | D104: -7.857 | E104: -1.074 | F104: 14.581 | G104: -0.894 | H104: -1.179 | I104: 0.203 | J104: 0.108
B105: -0.774 | C105: -0.272 | D105: -9.135 | E105: 5.87 | F105: 3.973 | G105: 3.338 | H105: -2.927 | I105: -4.879 | J105: 6.637
B106: -3.001 | C106: -1.976 | D106: 0.554 | E106: -11.048 | F106: -7.979 | G106: -5.907 | H106: 0.023 | I106: -3.849 | J106: -4.268
B107: 18.269 | C107: 1.165 | D107: -9.531 | E107: 19.715 | F107: -5.489 | G107: -12.03 | H107: 0.67 | I107: 0.722 | J107: -4.658
B108: 1.51 | C108: -0.341 | D108: 26.863 | E108: -10.096 | F108: -1.399 | G108: -13.023 | H108: 0.364 | I108: -2.845 | J108: -4.3
B109: 0.099 | C109: 3.666 | D109: 0.194 | E109: -10.926 | F109: 0.756 | G109: 23.469 | H109: 1.164 | I109: 4.682 | J109: 4.798
B110: -7.052 | C110: -0.634 | D110: 2.413 | E110: 19.6 | F110: -0.895 | G110: 4.463 | H110: 1.155 | I110: 2.967 | J110: 0.159
B111: -4.193 | C111: -2.082 | D111: -10.698 | E111: 8.063 | F111: 7.96 | G111: 12.732 | H111: -1.113 | I111: 1.082 | J111: 3.181
B112: -4.193 | C112: -2.634 | D112: 10.031 | E112: 7.519 | F112: -0.763 | G112: -11.109 | H112: 0.668 | I112: -2.204 | J112: -0.551
B113: 3.419 | C113: -2.563 | D113: -3.644 | E113: -7.144 | F113: 5.797 | G113: 5.358 | H113: -1.391 | I113: 0.157 | J113: -5.033
B114: 1.537 | C114: -2.744 | D114: -2.676 | E114: -7.967 | F114: -7.825 | G114: -14.722 | H114: 1.278 | I114: -0.876 | J114: -2.188
B115: 3.63 | C115: 7.57 | D115: -13.006 | E115: -3.481 | F115: -13.014 | G115: 1.44 | H115: -0.541 | I115: -4.384 | J115: 0.84
B116: -0.086 | C116: -2.219 | D116: -7.977 | E116: -15.478 | F116: -12.158 | G116: 9.981 | H116: 0.525 | I116: 2.5 | J116: 6.413
B117: -11.136 | C117: 0.015 | D117: 3.475 | E117: 1.862 | F117: 5.626 | G117: -5.724 | H117: 2.011 | I117: 5.386 | J117: 7.519
B118: -2.184 | C118: 8.178 | D118: 31.336 | E118: 16.911 | F118: 18.494 | G118: -5.598 | H118: -0.114 | I118: 0.692 | J118: -0.06
B119: 18.019 | C119: -2.715 | D119: 1.396 | E119: 10.23 | F119: -10.09 | G119: 1.338 | H119: -0.778 | I119: -0.851 | J119: -1.214
B120: -10.639 | C120: -4.015 | D120: -10.893 | E120: -6.77 | F120: 20.951 | G120: -6.52 | H120: -1.282 | I120: -0.268 | J120: -6.539
B121: -3.741 | C121: -3.063 | D121: -7.97 | E121: 5.185 | F121: 6.129 | G121: 11.52 | H121: -1.071 | I121: -2.976 | J121: -4.823
B122: -12.689 | C122: -4.578 | D122: 0.363 | E122: -14.363 | F122: -1.587 | G122: 4.811 | H122: -0.614 | I122: 2.805 | J122: -5.426
B123: 30.137 | C123: 10.741 | D123: 6.507 | E123: -5.856 | F123: -7.959 | G123: -14.15 | H123: 3.988 | I123: -3.576 | J123: 0.367
B124: 1.522 | C124: 0.348 | D124: -6.281 | E124: 0.656 | F124: -2.769 | G124: 1.256 | H124: -0.557 | I124: -2.412 | J124: 2.458
B125: 5.015 | C125: -1.481 | D125: -6.886 | E125: -2.521 | F125: -7.457 | G125: 7.595 | H125: -2.49 | I125: 0.062 | J125: 4.803
B126: -4.567 | C126: 2.452 | D126: 5.114 | E126: -0.803 | F126: -8.657 | G126: -0.091 | H126: 0.855 | I126: 2.082 | J126: -0.44
B127: -10.558 | C127: -1.941 | D127: 1.658 | E127: 9.201 | F127: 2.343 | G127: 16.311 | H127: -1.644 | I127: -0.031 | J127: 2.169
B128: -3.658 | C128: -1.367 | D128: -14.597 | E128: -9.963 | F128: -2.889 | G128: -0.355 | H128: 0.457 | I128: 0.823 | J128: 4.627
B129: -0.184 | C129: -4.252 | D129: -17.819 | E129: 10.069 | F129: -0.086 | G129: -12.809 | H129: 1.705 | I129: 0.116 | J129: 5.614
B130: 2.094 | C130: 0.178 | D130: 31.169 | E130: 22.58 | F130: 0.181 | G130: -8.676 | H130: 2.915 | I130: 2.517 | J130: -1.715
B131: -10.915 | C131: -3.201 | D131: 13.003 | E131: -19.483 | F131: 8.292 | G131: 7.037 | H131: -2.76 | I131: 2.026 | J131: -5.663
B132: 9.721 | C132: 6.736 | D132: 2.866 | E132: -20.05 | F132: -1.449 | G132: -6.072 | H132: -1.641 | I132: -0.421 | J132: 1.448
B133: -4.834 | C133: 8.536 | D133: -12.453 | E133: 12.893 | F133: 26.167 | G133: 27.184 | H133: -1.094 | I133: -1.506 | J133: 2.407
B134: 18.521 | C134: -4.075 | D134: 5.401 | E134: 29.954 | F134: -12.923 | G134: -12.983 | H134: 0.515 | I134: 2.686 | J134: -0.408
B135: 4.592 | C135: -2.222 | D135: 9.348 | E135: 9.776 | F135: -16.755 | G135: -9.165 | H135: -0.013 | I135: -1.256 | J135: -4.381
B136: -9.8 | C136: -3.463 | D136: -12.269 | E136: -9.88 | F136: -0.766 | G136: -6.901 | H136: 2.02 | I136: -2.678 | J136: -4.789
B137: 1.748 | C137: -0.704 | D137: -25.557 | E137: -16.039 | F137: 10.708 | G137: -10.108 | H137: 0.484 | I137: -1.243 | J137: -2.505
B138: -18.29 | C138: -2.219 | D138: -20.002 | E138: -5.604 | F138: 6.046 | G138: 15.595 | H138: -0.458 | I138: -0.296 | J138: 1.042
B139: -6.453 | C139: 1.233 | D139: 45.243 | E139: -18.393 | F139: 1.463 | G139: -10.422 | H139: -1.163 | I139: -0.308 | J139: 1.746
B140: 0.192 | C140: -0.756 | D140: 8.137 | E140: -16.417 | F140: -7.235 | G140: 6.423 | H140: 1.375 | I140: 0.042 | J140: 2.446
B141: 2.625 | C141: -1.777 | D141: -1.58 | E141: -15.754 | F141: -19.787 | G141: 12.25 | H141: -0.183 | I141: -0.403 | J141: 2.978
B142: 5.433 | C142: 12.253 | D142: 0.394 | E142: 17.917 | F142: -21.035 | G142: -7.378 | H142: -1.758 | I142: -0.362 | J142: -3.127
B143: 5.05 | C143: -3.225 | D143: -7.828 | E143: 72.78 | F143: 14.465 | G143: 8.847 | H143: 0.213 | I143: 0.517 | J143: -0.236
B144: -4.35 | C144: -0.292 | D144: -1.42 | E144: -14.848 | F144: 16.133 | G144: -3.778 | H144: -0.72 | I144: -0.811 | J144: -2.383
B145: 28.094 | C145: -0.815 | D145: -17.259 | E145: -21.969 | F145: 15.444 | G145: -8.769 | H145: 0.113 | I145: -1.478 | J145: -3.194
B146: 14.654 | C146: -3.115 | D146: -17.019 | E146: -13.021 | F146: 26.281 | G146: 11.649 | H146: 1.233 | I146: -1.616 | J146: -1.925
B147: -13.048 | C147: -1.243 | D147: 21.741 | E147: 33.371 | F147: -14.389 | G147: -0.788 | H147: 0.337 | I147: -1.992 | J147: 4.492
B148: -15.311 | C148: -1.446 | D148: 19.856 | E148: -8.106 | F148: -7.378 | G148: -2.875 | H148: -1.075 | I148: -1.642 | J148: 3.311
B149: -7.759 | C149: 6.224 | D149: -3.726 | E149: -13.722 | F149: -11.663 | G149: -3.113 | H149: 0.688 | I149: 2.711 | J149: 6.859
B150: -16.541 | C150: -1.891 | D150: -9.23 | E150: -15.082 | F150: -7.386 | G150: -3.019 | H150: 1.232 | I150: 7 | J150: -1.68
B151: -10.444 | C151: -0.537 | D151: 25.688 | E151: 5.257 | F151: 11.418 | G151: 7.284 | H151: -2.14 | I151: 0.3 | J151: -1.178
B152: 9.059 | C152: -0.368 | D152: -1.907 | E152: 8.398 | F152: -3.386 | G152: -3.18 | H152: -2.845 | I152: -0.562 | J152: -3.564
B153: 11.66 | C153: -0.253 | D153: -13.763 | E153: 4.413 | F153: -7.245 | G153: -2.564 | H153: 1.436 | I153: -3.426 | J153: -2.703
B154: 43.991 | C154: -2.412 | D154: -10.281 | E154: -15.764 | F154: -9.322 | G154: -2.067 | H154: -0.956 | I154: -1.988 | J154: 3.734
B155: -4.22 | C155: -3.553 | D155: -21.981 | E155: -12.481 | F155: 0.895 | G155: -0.779 | H155: 1.931 | I155: 3.095 | J155: 2.845
B156: -12.25 | C156: -1.815 | D156: 27.989 | E156: 3.43 | F156: 31.878 | G156: -3.598 | H156: -3.298 | I156: 0.424 | J156: -4.063
B157: -17.399 | C157: 15.8 | D157: -3.074 | E157: 28.915 | F157: -3.559 | G157: 3.171 | H157: -3.195 | I157: 0.476 | J157: -7.843
B158: -10.644 | C158: -2.348 | D158: -1.559 | E158: 5.437 | F158: -12.526 | G158: 1.585 | H158: 10.231 | I158: 3.235 | J158: -2.289
B159: -3.405 | C159: -3.696 | D159: 21.289 | E159: -1.93 | F159: 5.59 | G159: -9.246 | H159: -1.625 | I159: -3.244 | J159: 2.054
B160: 2.229 | C160: -3.656 | D160: -6.063 | E160: -8.133 | F160: -1.641 | G160: -4.574 | H160: -3.651 | I160: -0.44 | J160: 7.459
B161: 2.995 | C161: 0.889 | D161: -7.052 | E161: 9.971 | F161: 0.007 | G161: 1.74 | H161: 3.501 | I161: -1.986 | J161: 4.403
B162: 14.106 | C162: 0.425 | D162: -19.728 | E162: -17.532 | F162: -4.093 | G162: -5.855 | H162: 0.634 | I162: -1.576 | J162: 2.123
B163: -2.807 | C163: 1.044 | D163: -13.487 | E163: -2.755 | F163: -0.826 | G163: 37.748 | H163: -1.846 | I163: 0.315 | J163: 3.245
B164: 1.121 | C164: -0.012 | D164: 37.643 | E164: 7.082 | F164: -0.952 | G164: 3.377 | H164: 3.423 | I164: 2.588 | J164: -2.752
B165: -4.382 | C165: -2.908 | D165: 4.109 | E165: 1.007 | F165: -4.3 | G165: -13.689 | H165: 2.356 | I165: 1.055 | J165: -2.76
B166: -4.245 | C166: 0.315 | D166: -0.474 | E166: 8.836 | F166: -0.445 | G166: -13.737 | H166: -2.877 | I166: -0.459 | J166: -5.53
B167: -3.756 | C167: -0.189 | D167: -5.994 | E167: -9.031 | F167: -2.99 | G167: -6.306 | H167: 0.264 | I167: -1.793 | J167: -4.341
B168: -3.7 | C168: 4.366 | D168: -11.58 | E168: -11.645 | F168: 2.018 | G168: -14.215 | H168: -1.728 | I168: -0.522 | J168: -2.794
B169: 14.538 | C169: -2.553 | D169: 21.061 | E169: -6.442 | F169: -2.938 | G169: -7.682 | H169: -1.823 | I169: 0.985 | J169: 4.693
B170: 6.912 | C170: 3.699 | D170: -3.62 | E170: -1.389 | F170: 0.348 | G170: 9.746 | H170: -2.071 | I170: 0.855 | J170: 0.817
B171: -7.621 | C171: -1.938 | D171: -18.982 | E171: 2.855 | F171: 7.537 | G171: 45.943 | H171: -5.606 | I171: 2.162 | J171: 1.962
B172: -3.11 | C172: -0.756 | D172: 2.204 | E172: 28.268 | F172: 1.175 | G172: 0.377 | H172: 3.927 | I172: 0.75 | J172: -2.045
B173: -9.344 | C173: 0.089 | D173: 0.437 | E173: -25.969 | F173: 14.708 | G173: -15.24 | H173: -2.077 | I173: -0.29 | J173: 8.847
B174: -0.733 | C174: -1.83 | D174: 3.03 | E174: -24.529 | F174: -9.995 | G174: 1.637 | H174: 2.906 | I174: -4.294 | J174: -1.99
B175: 22.529 | C175: -0.996 | D175: -7.004 | E175: -18.772 | F175: -5.462 | G175: 2.902 | H175: 4.046 | I175: 3.676 | J175: -0.51
B176: -2.768 | C176: -2.193 | D176: 2.707 | E176: -17.704 | F176: -2.956 | G176: -19.644 | H176: -2.444 | I176: -3.956 | J176: 3.753
B177: -4.438 | C177: 0.893 | D177: 17.711 | E177: 93.495 | F177: -1.343 | G177: 3.714 | H177: -0.454 | I177: 1.262 | J177: 1.25
B178: -13.153 | C178: 4.949 | D178: 3.269 | E178: 42.214 | F178: 6.191 | G178: 10.701 | H178: -3.884 | I178: -3.132 | J178: -0.17
B179: -5.022 | C179: 2.327 | D179: -12.213 | E179: -24.223 | F179: -6.057 | G179: -1.923 | H179: 7.611 | I179: 3.783 | J179: -2.119
B180: -0.848 | C180: -0.773 | D180: -15.746 | E180: -9.727 | F180: 13.691 | G180: 3.726 | H180: 5.455 | I180: 1.624 | J180: -3.788
B181: 18.83 | C181: -1.14 | D181: 11.657 | E181: -14.641 | F181: 1.326 | G181: -7.059 | H181: -2.592 | I181: 7.082 | J181: -5.078
B182: 5.226 | C182: -2.237 | D182: -4.444 | E182: -13.562 | F182: -3.304 | G182: -12.148 | H182: -2.781 | I182: 1.305 | J182: -2.125
B183: -16.793 | C183: -1.385 | D183: -14.983 | E183: -4.288 | F183: -5.059 | G183: 4.266 | H183: -3.982 | I183: -2.135 | J183: 1.109
B184: 3.352 | C184: -2.119 | D184: -19.335 | E184: -10.544 | F184: -7.774 | G184: -17.764 | H184: -7.821 | I184: -1.42 | J184: 1.854
B185: 5.578 | C185: -0.901 | D185: 42.42 | E185: -8.269 | F185: -9.004 | G185: -4.669 | H185: -1.603 | I185: -4.299 | J185: 1.555
B186: -4.022 | C186: -3.286 | D186: 8.794 | E186: -21.596 | F186: 4.196 | G186: 34.61 | H186: -4.082 | I186: -1.442 | J186: -0.488
B187: -3.863 | C187: 14.125 | D187: 11.037 | E187: 58.33 | F187: 16.794 | G187: 17.3 | H187: 31.739 | I187: -0.403 | J187: -3.781
B188: -8.63 | C188: -0.715 | D188: -13.31 | E188: 9.647 | F188: -5.843 | G188: 13.301 | H188: -3.754 | I188: 0.628 | J188: -4.136
B189: 6.126 | C189: -0.04 | D189: -5.156 | E189: 2.484 | F189: -1.643 | G189: -16.177 | H189: -8.583 | I189: 0.559 | J189: 8.469
B190: 16.677 | C190: -3.181 | D190: 7.625 | E190: -13.764 | F190: 0.435 | G190: -16.721 | H190: 3.707 | I190: 1.167 | J190: 11.665
B191: -15.877 | C191: -2.695 | D191: -10.46 | E191: -25.149 | F191: -0.174 | G191: -4.28 | H191: -0.244 | I191: -2.595 | J191: -1.821
B192: 7.053 | C192: -1.281 | D192: -12.969 | E192: -2.326 | F192: 2.329 | G192: 0.385 | H192: -0.941 | I192: -0.326 | J192: 1.705
B193: 13.671 | C193: -2.593 | D193: 11.485 | E193: 32.279 | F193: -4.609 | G193: -1.396 | H193: -4.746 | I193: -2.798 | J193: -2.663
B194: -8.009 | C194: -2.939 | D194: 8.56 | E194: -13.195 | F194: -1.498 | G194: -3.505 | H194: -3.327 | I194: -0.168 | J194: -1.951
B195: -15.844 | C195: 5.954 | D195: 2.238 | E195: -18.473 | F195: -7.598 | G195: -14.773 | H195: 4.65 | I195: 0.978
B196: -14.731 | C196: 4.839 | D196: -7.036 | E196: -12.258 | F196: 17.31 | G196: 16.772 | H196: 0.336 | I196: 0.993
B197: 22.954 | C197: -0.631 | D197: -14.947 | E197: -6.022 | F197: -4.707 | G197: -2.777 | H197: 1.503 | I197: -1.929
B198: 18.661 | C198: 0.759 | D198: 12.122 | E198: 35.579 | F198: 14.069 | G198: 30.38 | H198: -0.056 | I198: 0.44
B199: 5.376 | C199: -1.396 | D199: -7.03 | E199: 9.734 | F199: -2.131 | G199: -7.532 | H199: -1.796 | I199: -0.356
B200: 2.589 | C200: -1.698 | D200: -3.681 | E200: -0.692 | F200: -7.283 | G200: -4.991 | H200: 1.574 | I200: -2.031
... 3463 more rows

Sheet Periodograms
B1: Periodogram for 28.7-day test 1.
B52: Periodogram for 28.7-day test 2.
B103: Periodogram for 28.7-day test 3.
B154: Periodogram for 28.7-day test 4.
B205: Periodogram for 28.7-day test 5.
B256: Periodogram for 86.1-day test.
B307: Periodogram for 258-day test.
B358: Periodogram for 2.12-year test.
B409: Periodogram for 6.37-year test.
